Merchant Category,Supplier,Service,Summary of Purpose of Expenditure,invoice_date,net_amount
Local Authority,Northumberland County Council,Services to People,Fees and Charges,28/04/2023,9185
Childcare Provision,Kids Go Wild Forest School,Services to People,Care Payments,28/04/2023,238
Childcare Provision,Kids Go Wild Forest School,Services to People,Care Payments,28/04/2023,833
Childcare Provision,Kids Go Wild Forest School,Services to People,Care Payments,28/04/2023,238
Childcare Provision,Kids Go Wild Forest School,Services to People,Care Payments,28/04/2023,119
Education Services,Net School Ltd,Services to People,Fees and Charges,28/04/2023,807
Client/Customer (Non-Trade),*Redact - Personal Information,Services to People,Care Payments,28/04/2023,2551.71
Child / Family Support,FIVE RIVERS CHILD CARE LTD,Services to People,Fees and Charges,02/05/2023,7500
Charity/Third Sector,Active Communities Experiences Ltd,Services to People,Publicity and Promotion,02/05/2023,1528.8
Client/Customer (Non-Trade),*Redact - Personal Information,Services to People,Care Payments,02/05/2023,528
Education Services,Ladybird Childcare Ltd,Services to People,Expenses and Allowances,02/05/2023,171.6
Education Services,Ladybird Childcare Ltd,Services to People,Expenses and Allowances,02/05/2023,171.6
Education Services,Ladybird Childcare Ltd,Services to People,Expenses and Allowances,02/05/2023,171.6
Education Services,Ladybird Childcare Ltd,Services to People,Expenses and Allowances,02/05/2023,171.6
Education Services,Ladybird Childcare Ltd,Services to People,Expenses and Allowances,02/05/2023,171.6
Health Services,ABL Health Ltd,Services to People,Care Payments,02/05/2023,3942.86
Health Services,ABL Health Ltd,Services to People,Care Payments,02/05/2023,857.14
Health Services,ABL Health Ltd,Services to People,Care Payments,02/05/2023,5520
Health Services,ABL Health Ltd,Services to People,Care Payments,02/05/2023,1200
Health Services,ABL Health Ltd,Services to People,Care Payments,02/05/2023,2809.29
Health Services,ABL Health Ltd,Services to People,Care Payments,02/05/2023,610.71
Health Services,ABL Health Ltd,Services to People,Care Payments,02/05/2023,4419.29
Health Services,ABL Health Ltd,Services to People,Care Payments,02/05/2023,960.71
Social Care Services,Bedspace Resource Ltd,Services to People,Care Payments,02/05/2023,67.41
Social Care Services,Bedspace Resource Ltd,Services to People,Care Payments,02/05/2023,67.41
Social Care Services,Bedspace Resource Ltd,Services to People,Care Payments,02/05/2023,67.2
Social Care Services,Bedspace Resource Ltd,Services to People,Care Payments,02/05/2023,67.2
Social Care Services,Bedspace Resource Ltd,Services to People,Care Payments,02/05/2023,67.2
Social Care Services,Bedspace Resource Ltd,Services to People,Care Payments,02/05/2023,67.2
Social Care Services,Bedspace Resource Ltd,Services to People,Care Payments,02/05/2023,67.2
Social Care Services,Bedspace Resource Ltd,Services to People,Care Payments,02/05/2023,67.2
Social Care Services,Affinity Trust,Services to People,Care Payments,02/05/2023,2937.43
Social Care Services,Affinity Trust,Services to People,Care Payments,02/05/2023,638.57
Social Care Services,Infinity Care Home Ltd,Services to People,Care Payments,02/05/2023,739.29
Social Care Services,Infinity Care Home Ltd,Services to People,Care Payments,02/05/2023,739.29
Social Care Services,Infinity Care Home Ltd,Services to People,Care Payments,02/05/2023,160.71
Social Care Services,Infinity Care Home Ltd,Services to People,Care Payments,02/05/2023,160.71
Childcare Provision,Bubbly Bear Day Care Nursery,Services to People,Care Payments,02/05/2023,503.5
Foster Care,Alpha Plus Fostering Ltd,Services to People,Care Payments,02/05/2023,3834.04
Foster Care,BARNARDOS NORTH WEST,Services to People,Care Payments,02/05/2023,779
Childcare Provision,CHOICES HOME FOR CHILDREN LTD,Services to People,Care Payments,02/05/2023,12428.57
Childcare Provision,CHOICES HOME FOR CHILDREN LTD,Services to People,Care Payments,02/05/2023,12428.57
Foster Care,CORE ASSETS FOSTERING,Services to People,Care Payments,02/05/2023,8136.99
Foster Care,CORE ASSETS FOSTERING,Services to People,Care Payments,02/05/2023,4333.76
Foster Care,CORE ASSETS FOSTERING,Services to People,Care Payments,02/05/2023,4333.76
Foster Care,CORE ASSETS FOSTERING,Services to People,Care Payments,02/05/2023,4065.26
Foster Care,CORE ASSETS FOSTERING,Services to People,Care Payments,02/05/2023,3832.2
Foster Care,CORE ASSETS FOSTERING,Services to People,Care Payments,02/05/2023,-310.8
Foster Care,CORE ASSETS FOSTERING,Services to People,Care Payments,02/05/2023,-522.47
Foster Care,FOSTERING SOLUTIONS LTD,Services to People,Care Payments,02/05/2023,3904.54
Foster Care,FOSTERING SOLUTIONS LTD,Services to People,Care Payments,02/05/2023,3834.09
Foster Care,FOSTERING SOLUTIONS LTD,Services to People,Care Payments,02/05/2023,3686.91
Foster Care,FOSTERING SOLUTIONS LTD,Services to People,Care Payments,02/05/2023,3334.24
Foster Care,FOSTERING SOLUTIONS LTD,Services to People,Care Payments,02/05/2023,1919.19
Foster Care,FOSTERING SOLUTIONS LTD,Services to People,Care Payments,02/05/2023,-26.14
Foster Care,FOSTERING SOLUTIONS LTD,Services to People,Care Payments,02/05/2023,-382.89
Childcare Provision,Fresh Start Independence Project,Services to People,Care Payments,02/05/2023,7071.43
Childcare Provision,Fresh Start Independence Project,Services to People,Care Payments,02/05/2023,7071.43
Childcare Provision,Fresh Start Independence Project,Services to People,Care Payments,02/05/2023,2078.57
Childcare Provision,Fresh Start Independence Project,Services to People,Care Payments,02/05/2023,997.86
Childcare Provision,Fresh Start Independence Project,Services to People,Care Payments,02/05/2023,816.43
Childcare Provision,Fresh Start Independence Project,Services to People,Care Payments,02/05/2023,4500
Childcare Provision,Fresh Start Independence Project,Services to People,Care Payments,02/05/2023,1864.29
Childcare Provision,Fresh Start Independence Project,Services to People,Care Payments,02/05/2023,1864.29
Childcare Provision,Fresh Start Independence Project,Services to People,Care Payments,02/05/2023,1864.29
Childcare Provision,Fresh Start Independence Project,Services to People,Care Payments,02/05/2023,1864.29
Childcare Provision,Fresh Start Independence Project,Services to People,Care Payments,02/05/2023,1864.29
Childcare Provision,Fresh Start Independence Project,Services to People,Care Payments,02/05/2023,1864.29
Childcare Provision,Fresh Start Independence Project,Services to People,Care Payments,02/05/2023,1864.29
Childcare Provision,Cambian Group plc,Services to People,Care Payments,02/05/2023,51000
Childcare Provision,Cambian Group plc,Services to People,Care Payments,02/05/2023,25500
Childcare Provision,Cambian Group plc,Services to People,Care Payments,02/05/2023,22928.57
Childcare Provision,Cambian Group plc,Services to People,Care Payments,02/05/2023,3400
Childcare Provision,Cambian Group plc,Services to People,Care Payments,02/05/2023,-567
Childcare Provision,Cambian Group plc,Services to People,Care Payments,02/05/2023,-567
Childcare Provision,Cambian Group plc,Services to People,Care Payments,02/05/2023,-1992.86
Childcare Provision,Cambian Group plc,Services to People,Care Payments,02/05/2023,-3969
Childcare Provision,Cambian Group plc,Services to People,Care Payments,02/05/2023,-3969
Childcare Provision,Cambian Group plc,Services to People,Care Payments,02/05/2023,-17010
Childcare Provision,Cambian Group plc,Services to People,Care Payments,02/05/2023,-17010
Social Care Services,PROGRESSIVE CARE LTD,Services to People,Care Payments,02/05/2023,1532.14
Social Care Services,PROGRESSIVE CARE LTD,Services to People,Care Payments,02/05/2023,764.29
Social Care Services,PROGRESSIVE CARE LTD,Services to People,Care Payments,02/05/2023,179.78
Education Services,PONTVILLE SCHOOL,Services to People,Care Payments,02/05/2023,13430.71
Education Services,PONTVILLE SCHOOL,Services to People,Care Payments,02/05/2023,12997.46
Education Services,PONTVILLE SCHOOL,Services to People,Care Payments,02/05/2023,-12227.14
Education Services,PONTVILLE SCHOOL,Services to People,Fees and Charges,02/05/2023,9014.27
Education Services,PONTVILLE SCHOOL,Services to People,Fees and Charges,02/05/2023,8723.49
Education Services,PONTVILLE SCHOOL,Services to People,Fees and Charges,02/05/2023,-8206.5
Social Care Services,Seashell Trust,Services to People,Fees and Charges,02/05/2023,9002.36
Social Care Services,Seashell Trust,Services to People,Fees and Charges,02/05/2023,6971.79
Social Care Services,Seashell Trust,Services to People,Fees and Charges,02/05/2023,6771.66
Social Care Services,Seashell Trust,Services to People,Fees and Charges,02/05/2023,6653.74
Social Care Services,Seashell Trust,Services to People,Fees and Charges,02/05/2023,5779
Social Care Services,Seashell Trust,Services to People,Fees and Charges,02/05/2023,5697.47
Social Care Services,Seashell Trust,Services to People,Fees and Charges,02/05/2023,5684.69
Social Care Services,Seashell Trust,Services to People,Fees and Charges,02/05/2023,5646.23
School (Other Local Authority),ST JOHN VIANNEY,Services to People,Fees and Charges,02/05/2023,2721.27
School (Other Local Authority),ST JOHN VIANNEY,Services to People,Fees and Charges,02/05/2023,1818.18
School (Other Local Authority),ST JOHN VIANNEY,Services to People,Fees and Charges,02/05/2023,1818.18
School (Other Local Authority),ST JOHN VIANNEY,Services to People,Fees and Charges,02/05/2023,1818.18
School (Other Local Authority),ST JOHN VIANNEY,Services to People,Fees and Charges,02/05/2023,1818.18
School (Other Local Authority),ST JOHN VIANNEY,Services to People,Fees and Charges,02/05/2023,1818.18
School (Other Local Authority),ST JOHN VIANNEY,Services to People,Fees and Charges,02/05/2023,1818.18
School (Other Local Authority),ST JOHN VIANNEY,Services to People,Fees and Charges,02/05/2023,1818.18
School (Other Local Authority),ST JOHN VIANNEY,Services to People,Fees and Charges,02/05/2023,1818.18
School (Other Local Authority),ST JOHN VIANNEY,Services to People,Fees and Charges,02/05/2023,1818.18
School (Other Local Authority),ST JOHN VIANNEY,Services to People,Fees and Charges,02/05/2023,1713.45
Foster Care,SWIIS FOSTERCARE LTD,Services to People,Care Payments,02/05/2023,3783.64
Foster Care,SWIIS FOSTERCARE LTD,Services to People,Care Payments,02/05/2023,3542.57
Foster Care,SWIIS FOSTERCARE LTD,Services to People,Care Payments,02/05/2023,3542.57
Foster Care,SWIIS FOSTERCARE LTD,Services to People,Care Payments,02/05/2023,3462.86
Foster Care,SWIIS FOSTERCARE LTD,Services to People,Care Payments,02/05/2023,3462.86
Foster Care,SWIIS FOSTERCARE LTD,Services to People,Care Payments,02/05/2023,3462.86
Foster Care,SWIIS FOSTERCARE LTD,Services to People,Care Payments,02/05/2023,1894.6
Foster Care,SWIIS FOSTERCARE LTD,Services to People,Care Payments,02/05/2023,-88.56
Foster Care,SWIIS FOSTERCARE LTD,Services to People,Care Payments,02/05/2023,-527.14
Foster Care,SWIIS FOSTERCARE LTD,Services to People,Care Payments,02/05/2023,-659.36
Foster Care,SWIIS FOSTERCARE LTD,Services to People,Care Payments,02/05/2023,-660
Foster Care,SWIIS FOSTERCARE LTD,Services to People,Care Payments,02/05/2023,-836.79
Childcare Provision,CARE HAVEN (UK) T/A PENARTH HOUSE,Services to People,Care Payments,02/05/2023,16285.71
Childcare Provision,CARE HAVEN (UK) T/A PENARTH HOUSE,Services to People,Care Payments,02/05/2023,14571.43
Childcare Provision,CARE HAVEN (UK) T/A PENARTH HOUSE,Services to People,Care Payments,02/05/2023,2714.29
Childcare Provision,CARE HAVEN (UK) T/A PENARTH HOUSE,Services to People,Care Payments,02/05/2023,2714.29
Foster Care,CAPSTONE FOSTER CARE,Services to People,Care Payments,02/05/2023,6753.13
Childcare Provision,CARE TODAY CHILDRENS SERVICE,Services to People,Care Payments,02/05/2023,18120.56
Childcare Provision,CARE TODAY CHILDRENS SERVICE,Services to People,Care Payments,02/05/2023,11619.13
Childcare Provision,CARE TODAY CHILDRENS SERVICE,Services to People,Care Payments,02/05/2023,11619.13
Social Care Services,THE TOGETHER TRUST CENTRE,Services to People,Care Payments,02/05/2023,12033.92
Social Care Services,THE TOGETHER TRUST CENTRE,Services to People,Care Payments,02/05/2023,4426.48
Social Care Services,THE TOGETHER TRUST CENTRE,Services to People,Care Payments,02/05/2023,3700.42
Social Care Services,THE TOGETHER TRUST CENTRE,Services to People,Care Payments,02/05/2023,3670.52
Social Care Services,THE TOGETHER TRUST CENTRE,Services to People,Care Payments,02/05/2023,2962.54
Social Care Services,THE TOGETHER TRUST CENTRE,Services to People,Care Payments,02/05/2023,2525.64
Social Care Services,THE TOGETHER TRUST CENTRE,Services to People,Care Payments,02/05/2023,2213.24
Social Care Services,THE TOGETHER TRUST CENTRE,Services to People,Care Payments,02/05/2023,2022.9
Social Care Services,THE TOGETHER TRUST CENTRE,Services to People,Care Payments,02/05/2023,2022.9
Social Care Services,THE TOGETHER TRUST CENTRE,Services to People,Care Payments,02/05/2023,1505.38
Social Care Services,THE TOGETHER TRUST CENTRE,Services to People,Fees and Charges,02/05/2023,4534.09
Social Care Services,THE TOGETHER TRUST CENTRE,Services to People,Fees and Charges,02/05/2023,4372.5
Social Care Services,THE TOGETHER TRUST CENTRE,Services to People,Fees and Charges,02/05/2023,4330.43
Social Care Services,THE TOGETHER TRUST CENTRE,Services to People,Fees and Charges,02/05/2023,4330.4
Social Care Services,THE TOGETHER TRUST CENTRE,Services to People,Fees and Charges,02/05/2023,4330.4
Social Care Services,THE TOGETHER TRUST CENTRE,Services to People,Fees and Charges,02/05/2023,4330.4
Social Care Services,THE TOGETHER TRUST CENTRE,Services to People,Fees and Charges,02/05/2023,4318.18
Social Care Services,THE TOGETHER TRUST CENTRE,Services to People,Fees and Charges,02/05/2023,4318.18
Social Care Services,THE TOGETHER TRUST CENTRE,Services to People,Fees and Charges,02/05/2023,3972.73
Social Care Services,THE TOGETHER TRUST CENTRE,Services to People,Fees and Charges,02/05/2023,3972.73
Social Care Services,THE TOGETHER TRUST CENTRE,Services to People,Fees and Charges,02/05/2023,3972.73
Social Care Services,THE TOGETHER TRUST CENTRE,Services to People,Fees and Charges,02/05/2023,3972.73
Social Care Services,THE TOGETHER TRUST CENTRE,Services to People,Fees and Charges,02/05/2023,3972.73
Social Care Services,THE TOGETHER TRUST CENTRE,Services to People,Fees and Charges,02/05/2023,3942.92
Social Care Services,THE TOGETHER TRUST CENTRE,Services to People,Fees and Charges,02/05/2023,3942.92
Social Care Services,THE TOGETHER TRUST CENTRE,Services to People,Fees and Charges,02/05/2023,3942.92
Social Care Services,THE TOGETHER TRUST CENTRE,Services to People,Fees and Charges,02/05/2023,3878.73
Social Care Services,THE TOGETHER TRUST CENTRE,Services to People,Fees and Charges,02/05/2023,3878.73
Social Care Services,THE TOGETHER TRUST CENTRE,Services to People,Fees and Charges,02/05/2023,1875
Social Care Services,THE TOGETHER TRUST CENTRE,Services to People,Fees and Charges,02/05/2023,6634.47
Social Care Services,THE TOGETHER TRUST CENTRE,Services to People,Fees and Charges,02/05/2023,6634.47
Social Care Services,THE TOGETHER TRUST CENTRE,Services to People,Fees and Charges,02/05/2023,6243
Social Care Services,THE TOGETHER TRUST CENTRE,Services to People,Fees and Charges,02/05/2023,6243
Social Care Services,THE TOGETHER TRUST CENTRE,Services to People,Fees and Charges,02/05/2023,6243
Social Care Services,THE TOGETHER TRUST CENTRE,Services to People,Fees and Charges,02/05/2023,6243
Social Care Services,THE TOGETHER TRUST CENTRE,Services to People,Fees and Charges,02/05/2023,6243
Social Care Services,THE TOGETHER TRUST CENTRE,Services to People,Fees and Charges,02/05/2023,6218.92
Social Care Services,THE TOGETHER TRUST CENTRE,Services to People,Fees and Charges,02/05/2023,6197.59
Social Care Services,THE TOGETHER TRUST CENTRE,Services to People,Fees and Charges,02/05/2023,6197.58
Social Care Services,THE TOGETHER TRUST CENTRE,Services to People,Fees and Charges,02/05/2023,6189.48
Social Care Services,THE TOGETHER TRUST CENTRE,Services to People,Fees and Charges,02/05/2023,6138.79
Social Care Services,THE TOGETHER TRUST CENTRE,Services to People,Fees and Charges,02/05/2023,6138.79
Social Care Services,THE TOGETHER TRUST CENTRE,Services to People,Fees and Charges,02/05/2023,5725.36
Social Care Services,THE TOGETHER TRUST CENTRE,Services to People,Fees and Charges,02/05/2023,5725.36
Social Care Services,THE TOGETHER TRUST CENTRE,Services to People,Fees and Charges,02/05/2023,5725.36
Social Care Services,THE TOGETHER TRUST CENTRE,Services to People,Fees and Charges,02/05/2023,5692.17
Social Care Services,THE TOGETHER TRUST CENTRE,Services to People,Fees and Charges,02/05/2023,5677.57
Social Care Services,THE TOGETHER TRUST CENTRE,Services to People,Fees and Charges,02/05/2023,5621.88
Social Care Services,THE TOGETHER TRUST CENTRE,Services to People,Fees and Charges,02/05/2023,5025.81
Social Care Services,THE TOGETHER TRUST CENTRE,Services to People,Fees and Charges,02/05/2023,2601.2
Social Care Services,THE TOGETHER TRUST CENTRE,Services to People,Care Payments,02/05/2023,18000
Social Care Services,THE TOGETHER TRUST CENTRE,Services to People,Care Payments,02/05/2023,12814.29
Social Care Services,THE TOGETHER TRUST CENTRE,Services to People,Care Payments,02/05/2023,12814.29
Social Care Services,THE TOGETHER TRUST CENTRE,Services to People,Care Payments,02/05/2023,10979.87
Social Care Services,THE TOGETHER TRUST CENTRE,Services to People,Care Payments,02/05/2023,10979.83
Social Care Services,THE TOGETHER TRUST CENTRE,Services to People,Care Payments,02/05/2023,9000
Social Care Services,THE TOGETHER TRUST CENTRE,Services to People,Care Payments,02/05/2023,9000
Social Care Services,THE TOGETHER TRUST CENTRE,Services to People,Care Payments,02/05/2023,1796.79
Social Care Services,THE TOGETHER TRUST CENTRE,Services to People,Care Payments,02/05/2023,1796.79
Social Care Services,THE TOGETHER TRUST CENTRE,Services to People,Care Payments,02/05/2023,591.25
Social Care Services,THE TOGETHER TRUST CENTRE,Services to People,Care Payments,02/05/2023,591.25
Social Care Services,Appletree Treatment Centre Ltd,Services to People,Care Payments,02/05/2023,9972.86
Social Care Services,Appletree Treatment Centre Ltd,Services to People,Care Payments,02/05/2023,1898.57
Social Care Services,Appletree Treatment Centre Ltd,Services to People,Fees and Charges,02/05/2023,5605.71
Social Care Services,Rite Directions (Foundation ac),Services to People,Care Payments,02/05/2023,5935.71
Social Care Services,Rite Directions (Foundation ac),Services to People,Care Payments,02/05/2023,5935.71
Client/Customer (Non-Trade),*Redact - Personal Information,Services to People,Care Payments,02/05/2023,2905.61
Client/Customer (Non-Trade),*Redact - Personal Information,Services to People,Care Payments,02/05/2023,708.13
Property Management,Intact Projects Ltd,Services to People,Care Payments,02/05/2023,3407.14
Property Management,Intact Projects Ltd,Services to People,Care Payments,02/05/2023,3407.14
Property Management,Intact Projects Ltd,Services to People,Care Payments,02/05/2023,3407.14
Property Management,Intact Projects Ltd,Services to People,Care Payments,02/05/2023,3407.14
Property Management,Intact Projects Ltd,Services to People,Care Payments,02/05/2023,3407.14
Property Management,Intact Projects Ltd,Services to People,Care Payments,02/05/2023,3407.14
Property Management,Intact Projects Ltd,Services to People,Care Payments,02/05/2023,2952.86
Property Management,Intact Projects Ltd,Services to People,Care Payments,02/05/2023,2385
Property Management,Intact Projects Ltd,Services to People,Care Payments,02/05/2023,1930.71
Property Management,Intact Projects Ltd,Services to People,Care Payments,02/05/2023,908.57
Property Management,Intact Projects Ltd,Services to People,Care Payments,02/05/2023,340.71
Property Management,Intact Projects Ltd,Services to People,Care Payments,02/05/2023,113.57
Property Management,Intact Projects Ltd,Services to People,Care Payments,02/05/2023,-113.57
Property Management,Intact Projects Ltd,Services to People,Care Payments,02/05/2023,3407.14
Property Management,Intact Projects Ltd,Services to People,Care Payments,02/05/2023,1930.71
Property Management,Intact Projects Ltd,Services to People,Care Payments,02/05/2023,1022.14
Social Care Services,Social care Services (The Deacons),Services to People,Care Payments,02/05/2023,4285.71
Social Care Services,Social care Services (The Deacons),Services to People,Care Payments,02/05/2023,19285.71
Social Care Services,Social care Services (The Deacons),Services to People,Care Payments,02/05/2023,16253.57
Social Care Services,Social care Services (The Deacons),Services to People,Fees and Charges,02/05/2023,482.14
Childcare Provision,Enabling Futures,Services to People,Care Payments,02/05/2023,17244.64
Foster Care,Three Circles Fostering Ltd,Services to People,Care Payments,02/05/2023,3337.2
Foster Care,Three Circles Fostering Ltd,Services to People,Care Payments,02/05/2023,3337.2
Foster Care,Three Circles Fostering Ltd,Services to People,Care Payments,02/05/2023,3337.2
Foster Care,Three Circles Fostering Ltd,Services to People,Care Payments,02/05/2023,3337.2
Foster Care,Three Circles Fostering Ltd,Services to People,Care Payments,02/05/2023,3184.63
Foster Care,Three Circles Fostering Ltd,Services to People,Care Payments,02/05/2023,3184.63
Foster Care,Three Circles Fostering Ltd,Services to People,Care Payments,02/05/2023,831.09
Foster Care,Three Circles Fostering Ltd,Services to People,Care Payments,02/05/2023,831.09
Foster Care,Three Circles Fostering Ltd,Services to People,Care Payments,02/05/2023,817.63
Foster Care,Three Circles Fostering Ltd,Services to People,Care Payments,02/05/2023,796.16
Foster Care,Three Circles Fostering Ltd,Services to People,Care Payments,02/05/2023,780.21
Foster Care,Three Circles Fostering Ltd,Services to People,Care Payments,02/05/2023,667.44
Foster Care,Three Circles Fostering Ltd,Services to People,Care Payments,02/05/2023,453.46
Foster Care,Three Circles Fostering Ltd,Services to People,Care Payments,02/05/2023,158.55
Foster Care,Three Circles Fostering Ltd,Services to People,Care Payments,02/05/2023,-12.77
Foster Care,Three Circles Fostering Ltd,Services to People,Care Payments,02/05/2023,-12.77
Foster Care,Three Circles Fostering Ltd,Services to People,Care Payments,02/05/2023,-33.37
Foster Care,Three Circles Fostering Ltd,Services to People,Care Payments,02/05/2023,-63.69
Foster Care,Three Circles Fostering Ltd,Services to People,Care Payments,02/05/2023,-66.77
Social Care Services,Horizon Care & Education Group Ltd,Services to People,Care Payments,02/05/2023,31437.26
Foster Care,UK Fostering Ltd,Services to People,Care Payments,02/05/2023,3551.27
Foster Care,Foster Careline Ltd,Services to People,Care Payments,02/05/2023,3987
Foster Care,Foster Careline Ltd,Services to People,Care Payments,02/05/2023,-398.7
Social Care Services,Hexagon Care Services,Services to People,Care Payments,02/05/2023,17357.14
Social Care Services,Inicio Group Ltd,Services to People,Care Payments,02/05/2023,707.14
Social Care Services,Inicio Group Ltd,Services to People,Care Payments,02/05/2023,5531.14
Social Care Services,Inicio Group Ltd,Services to People,Care Payments,02/05/2023,589.29
Social Care Services,Caretech Community Services Ltd,Services to People,Care Payments,02/05/2023,16928.57
Social Care Services,Caretech Community Services Ltd,Services to People,Care Payments,02/05/2023,1157.14
Welfare Services,Rossie - Young Peoples Trust,Services to People,Care Payments,02/05/2023,24428.57
Social Care Services,Your Chapter Limited,Services to People,Care Payments,02/05/2023,5142.86
Social Care Services,Your Chapter Limited,Services to People,Care Payments,02/05/2023,3808.93
Social Care Services,Your Chapter Limited,Services to People,Care Payments,02/05/2023,3808.93
Social Care Services,Your Chapter Limited,Services to People,Care Payments,02/05/2023,3808.93
Social Care Services,Your Chapter Limited,Services to People,Care Payments,02/05/2023,-38.09
Social Care Services,Your Chapter Limited,Services to People,Care Payments,02/05/2023,-38.09
Social Care Services,Your Chapter Limited,Services to People,Care Payments,02/05/2023,-385.71
Social Care Services,Safehouses Fostering,Services to People,Care Payments,02/05/2023,4045.5
Social Care Services,Safehouses Fostering,Services to People,Care Payments,02/05/2023,3820.5
Social Care Services,Safehouses Fostering,Services to People,Care Payments,02/05/2023,3820.5
Social Care Services,Safehouses Fostering,Services to People,Care Payments,02/05/2023,3820.5
Social Care Services,Safehouses Fostering,Services to People,Care Payments,02/05/2023,-80.91
Social Care Services,Safehouses Fostering,Services to People,Care Payments,02/05/2023,-191.01
Social Care Services,Safehouses Fostering,Services to People,Care Payments,02/05/2023,-286.5
Social Care Services,Safehouses Fostering,Services to People,Care Payments,02/05/2023,-297.34
Social Care Services,Safehouses Fostering,Services to People,Care Payments,02/05/2023,-372.51
Social Care Services,Courtyard Care Ltd,Services to People,Care Payments,02/05/2023,7917.86
Social Care Services,Courtyard Care Ltd,Services to People,Care Payments,02/05/2023,7917.86
Social Care Services,ROC Northwest Ltd,Services to People,Care Payments,02/05/2023,14463.77
Social Care Services,Oakfields,Services to People,Care Payments,02/05/2023,12857.14
Social Care Services,Oakfields,Services to People,Care Payments,02/05/2023,12857.14
Social Care Services,Oakfields,Services to People,Care Payments,02/05/2023,10692.86
Social Care Services,Olive Branch Fostering Ltd,Services to People,Care Payments,02/05/2023,6000
Social Care Services,Olive Branch Fostering Ltd,Services to People,Care Payments,02/05/2023,3201.43
Social Care Services,Olive Branch Fostering Ltd,Services to People,Care Payments,02/05/2023,2995.71
Social Care Services,Olive Branch Fostering Ltd,Services to People,Care Payments,02/05/2023,2995.71
Social Care Services,Olive Branch Fostering Ltd,Services to People,Care Payments,02/05/2023,2995.71
Social Care Services,Olive Branch Fostering Ltd,Services to People,Care Payments,02/05/2023,-29.96
Social Care Services,Olive Branch Fostering Ltd,Services to People,Care Payments,02/05/2023,-32.01
Social Care Services,Fusion Fostering Ltd,Services to People,Care Payments,02/05/2023,4304.57
Social Care Services,Fusion Fostering Ltd,Services to People,Care Payments,02/05/2023,4096.29
Social Care Services,Fusion Fostering Ltd,Services to People,Care Payments,02/05/2023,4096.29
Social Care Services,Fusion Fostering Ltd,Services to People,Care Payments,02/05/2023,67.03
Social Care Services,Fusion Fostering Ltd,Services to People,Care Payments,02/05/2023,-409.63
Social Care Services,Fusion Fostering Ltd,Services to People,Care Payments,02/05/2023,-430.46
Social Care Services,Fusion Fostering Ltd,Services to People,Care Payments,02/05/2023,-754.63
Social Care Services,Bedspace Resource Ltd,Services to People,Care Payments,02/05/2023,5357.14
Social Care Services,Bedspace Resource Ltd,Services to People,Care Payments,02/05/2023,1607.14
Social Care Services,Bedspace Resource Ltd,Services to People,Care Payments,02/05/2023,1607.14
Social Care Services,Bedspace Resource Ltd,Services to People,Care Payments,02/05/2023,1607.14
Social Care Services,Bedspace Resource Ltd,Services to People,Care Payments,02/05/2023,1157.14
Social Care Services,Bedspace Resource Ltd,Services to People,Care Payments,02/05/2023,1157.14
Social Care Services,Bedspace Resource Ltd,Services to People,Care Payments,02/05/2023,1157.14
Social Care Services,Bedspace Resource Ltd,Services to People,Care Payments,02/05/2023,696.43
Social Care Services,Bedspace Resource Ltd,Services to People,Care Payments,02/05/2023,501.43
Social Care Services,Bedspace Resource Ltd,Services to People,Care Payments,02/05/2023,1607.14
Social Care Services,Bedspace Resource Ltd,Services to People,Care Payments,02/05/2023,1607.14
Social Care Services,Bedspace Resource Ltd,Services to People,Care Payments,02/05/2023,1500
Social Care Services,Bedspace Resource Ltd,Services to People,Care Payments,02/05/2023,1500
Social Care Services,Bedspace Resource Ltd,Services to People,Care Payments,02/05/2023,1500
Social Care Services,Bedspace Resource Ltd,Services to People,Care Payments,02/05/2023,1157.14
Social Care Services,Bedspace Resource Ltd,Services to People,Care Payments,02/05/2023,578.57
Social Care Services,Bedspace Resource Ltd,Services to People,Care Payments,02/05/2023,578.57
Social Care Services,Bedspace Resource Ltd,Services to People,Care Payments,02/05/2023,578.57
Social Care Services,Bedspace Resource Ltd,Services to People,Care Payments,02/05/2023,321.43
Social Care Services,Stepping Stone Projects,Services to People,Care Payments,02/05/2023,1392.86
Social Care Services,Stepping Stone Projects,Services to People,Care Payments,02/05/2023,1320.17
Social Care Services,Stepping Stone Projects,Services to People,Care Payments,02/05/2023,610.71
Social Care Services,Stepping Stone Projects,Services to People,Care Payments,02/05/2023,567.86
Social Care Services,Keys PCE Ltd,Services to People,Care Payments,02/05/2023,17528.57
Education Services,Progress Schools Limited,Services to People,Fees and Charges,02/05/2023,25000
Social Care Services,*Redact - Personal Information,Services to People,Care Payments,02/05/2023,19800
Social Care Services,*Redact - Personal Information,Services to People,Care Payments,02/05/2023,6428.57
Social Care Services,By The Bridge with Cambian,Services to People,Care Payments,02/05/2023,5061.86
Social Care Services,A Triangle Care,Services to People,Care Payments,02/05/2023,29978.57
Foster Care,TACT Fostering,Services to People,Care Payments,02/05/2023,3720
Foster Care,TACT Fostering,Services to People,Care Payments,02/05/2023,2580
Foster Care,TACT Fostering,Services to People,Care Payments,02/05/2023,-129
Foster Care,TACT Fostering,Services to People,Care Payments,02/05/2023,-186
Social Care Services,Northern Community Pathways,Services to People,Care Payments,02/05/2023,4315.71
Social Care Services,Northern Community Pathways,Services to People,Care Payments,02/05/2023,1607.14
Social Care Services,Northern Community Pathways,Services to People,Care Payments,02/05/2023,1418.57
Social Care Services,Cathmor Limited,Services to People,Care Payments,02/05/2023,5785.71
Social Care Services,Avensis Support Ltd,Services to People,Care Payments,02/05/2023,4071.43
Social Care Services,Avensis Support Ltd,Services to People,Care Payments,02/05/2023,3642.86
Social Care Services,Avensis Support Ltd,Services to People,Care Payments,02/05/2023,1214.29
Social Care Services,Bright Futures Care Ltd,Services to People,Care Payments,02/05/2023,10545
Social Care Services,Bright Futures Care Ltd,Services to People,Fees and Charges,02/05/2023,10545
Social Care Services,Bright Futures Care Ltd,Services to People,Professional Fees,02/05/2023,10545
Social Care Services,Stepping Stones Childrens Homes Ltd,Services to People,Care Payments,02/05/2023,23571.43
Social Care Services,Stepping Stones Childrens Homes Ltd,Services to People,Care Payments,02/05/2023,22992.86
Social Care Services,Paramount Childrens Services Ltd,Services to People,Care Payments,02/05/2023,24300
Social Care Services,Infinity Care Home Ltd,Services to People,Care Payments,02/05/2023,15848.57
Social Care Services,Infinity Care Home Ltd,Services to People,Care Payments,02/05/2023,15420
Social Care Services,Infinity Care Home Ltd,Services to People,Care Payments,02/05/2023,15320.29
Social Care Services,Infinity Care Home Ltd,Services to People,Care Payments,02/05/2023,528.29
Social Care Services,Right Step Ltd,Services to People,Care Payments,02/05/2023,657.14
Social Care Services,Shield Support Hub Ltd,Services to People,Care Payments,02/05/2023,5571.43
Social Care Services,Oakfield Psychological Services,Services to People,Care Payments,02/05/2023,7125
Social Care Services,Oakfield Psychological Services,Services to People,Care Payments,02/05/2023,7125
Social Care Services,Sunbeam Fostering Agency Ltd,Services to People,Care Payments,02/05/2023,3535.71
Social Care Services,Sunbeam Fostering Agency Ltd,Services to People,Care Payments,02/05/2023,3535.71
Social Care Services,Twentyfour Seven,Services to People,Care Payments,02/05/2023,18861.43
Social Care Services,Homescope Independent Living,Services to People,Care Payments,02/05/2023,19285.71
Social Care Services,Buchie Care Ltd,Services to People,Care Payments,02/05/2023,579.2
Social Care Services,Buchie Care Ltd,Services to People,Care Payments,02/05/2023,7714.29
Social Care Services,ASSURED CARE (STOCKPORT) LTD,Services to People,Care Payments,02/05/2023,1330.56
Social Care Services,ASSURED CARE (STOCKPORT) LTD,Services to People,Care Payments,02/05/2023,295.68
Social Care Services,ASSURED CARE (STOCKPORT) LTD,Services to People,Care Payments,02/05/2023,211.2
Social Care Services,ASSURED CARE (STOCKPORT) LTD,Services to People,Care Payments,02/05/2023,147.84
Social Care Services,ASSURED CARE (STOCKPORT) LTD,Services to People,Care Payments,02/05/2023,591.36
Social Care Services,ASSURED CARE (STOCKPORT) LTD,Services to People,Care Payments,02/05/2023,591.36
Social Care Services,ASSURED CARE (STOCKPORT) LTD,Services to People,Care Payments,02/05/2023,570.24
Social Care Services,ASSURED CARE (STOCKPORT) LTD,Services to People,Care Payments,02/05/2023,506.88
Social Care Services,ASSURED CARE (STOCKPORT) LTD,Services to People,Care Payments,02/05/2023,464.64
Social Care Services,ASSURED CARE (STOCKPORT) LTD,Services to People,Care Payments,02/05/2023,443.52
Social Care Services,ASSURED CARE (STOCKPORT) LTD,Services to People,Care Payments,02/05/2023,443.52
Social Care Services,ASSURED CARE (STOCKPORT) LTD,Services to People,Care Payments,02/05/2023,369.6
Social Care Services,ASSURED CARE (STOCKPORT) LTD,Services to People,Care Payments,02/05/2023,295.68
Social Care Services,ASSURED CARE (STOCKPORT) LTD,Services to People,Care Payments,02/05/2023,295.68
Social Care Services,ASSURED CARE (STOCKPORT) LTD,Services to People,Care Payments,02/05/2023,295.68
Social Care Services,ASSURED CARE (STOCKPORT) LTD,Services to People,Care Payments,02/05/2023,253.44
Social Care Services,ASSURED CARE (STOCKPORT) LTD,Services to People,Care Payments,02/05/2023,232.32
Social Care Services,ASSURED CARE (STOCKPORT) LTD,Services to People,Care Payments,02/05/2023,221.76
Social Care Services,ASSURED CARE (STOCKPORT) LTD,Services to People,Care Payments,02/05/2023,147.84
Social Care Services,ASSURED CARE (STOCKPORT) LTD,Services to People,Care Payments,02/05/2023,147.84
Social Care Services,ASSURED CARE (STOCKPORT) LTD,Services to People,Care Payments,02/05/2023,126.72
Social Care Services,ASSURED CARE (STOCKPORT) LTD,Services to People,Care Payments,02/05/2023,105.6
Social Care Services,ASSURED CARE (STOCKPORT) LTD,Services to People,Care Payments,02/05/2023,95.04
Social Care Services,ASSURED CARE (STOCKPORT) LTD,Services to People,Care Payments,02/05/2023,84.48
Social Care Services,ASSURED CARE (STOCKPORT) LTD,Services to People,Care Payments,02/05/2023,696.96
Social Care Services,ASSURED CARE (STOCKPORT) LTD,Services to People,Care Payments,02/05/2023,295.68
Social Care Services,ASSURED CARE (STOCKPORT) LTD,Services to People,Care Payments,02/05/2023,665.28
Social Care Services,ASSURED CARE (STOCKPORT) LTD,Services to People,Care Payments,02/05/2023,665.28
Social Care Services,ASSURED CARE (STOCKPORT) LTD,Services to People,Care Payments,02/05/2023,633.6
Social Care Services,ASSURED CARE (STOCKPORT) LTD,Services to People,Care Payments,02/05/2023,633.6
Social Care Services,ASSURED CARE (STOCKPORT) LTD,Services to People,Care Payments,02/05/2023,601.92
Social Care Services,ASSURED CARE (STOCKPORT) LTD,Services to People,Care Payments,02/05/2023,549.12
Social Care Services,ASSURED CARE (STOCKPORT) LTD,Services to People,Care Payments,02/05/2023,528
Social Care Services,ASSURED CARE (STOCKPORT) LTD,Services to People,Care Payments,02/05/2023,443.52
Social Care Services,ASSURED CARE (STOCKPORT) LTD,Services to People,Care Payments,02/05/2023,443.52
Social Care Services,ASSURED CARE (STOCKPORT) LTD,Services to People,Care Payments,02/05/2023,443.52
Social Care Services,ASSURED CARE (STOCKPORT) LTD,Services to People,Care Payments,02/05/2023,295.68
Social Care Services,ASSURED CARE (STOCKPORT) LTD,Services to People,Care Payments,02/05/2023,221.76
Social Care Services,ASSURED CARE (STOCKPORT) LTD,Services to People,Care Payments,02/05/2023,221.76
Social Care Services,ASSURED CARE (STOCKPORT) LTD,Services to People,Care Payments,02/05/2023,147.84
Social Care Services,ASSURED CARE (STOCKPORT) LTD,Services to People,Care Payments,02/05/2023,147.84
Social Care Services,ASSURED CARE (STOCKPORT) LTD,Services to People,Care Payments,02/05/2023,147.84
Social Care Services,ASSURED CARE (STOCKPORT) LTD,Services to People,Care Payments,02/05/2023,147.84
Social Care Services,ASSURED CARE (STOCKPORT) LTD,Services to People,Care Payments,02/05/2023,63.36
Social Care Services,ASSURED CARE (STOCKPORT) LTD,Services to People,Care Payments,02/05/2023,844.8
Social Care Services,ASSURED CARE (STOCKPORT) LTD,Services to People,Care Payments,02/05/2023,739.2
Social Care Services,ASSURED CARE (STOCKPORT) LTD,Services to People,Care Payments,02/05/2023,707.52
Social Care Services,ASSURED CARE (STOCKPORT) LTD,Services to People,Care Payments,02/05/2023,707.52
Social Care Services,ASSURED CARE (STOCKPORT) LTD,Services to People,Care Payments,02/05/2023,707.52
Social Care Services,ASSURED CARE (STOCKPORT) LTD,Services to People,Care Payments,02/05/2023,591.36
Social Care Services,ASSURED CARE (STOCKPORT) LTD,Services to People,Care Payments,02/05/2023,591.36
Social Care Services,ASSURED CARE (STOCKPORT) LTD,Services to People,Care Payments,02/05/2023,591.36
Social Care Services,ASSURED CARE (STOCKPORT) LTD,Services to People,Care Payments,02/05/2023,591.36
Social Care Services,ASSURED CARE (STOCKPORT) LTD,Services to People,Care Payments,02/05/2023,570.24
Social Care Services,ASSURED CARE (STOCKPORT) LTD,Services to People,Care Payments,02/05/2023,538.56
Social Care Services,ASSURED CARE (STOCKPORT) LTD,Services to People,Care Payments,02/05/2023,538.56
Social Care Services,ASSURED CARE (STOCKPORT) LTD,Services to People,Care Payments,02/05/2023,517.44
Social Care Services,ASSURED CARE (STOCKPORT) LTD,Services to People,Care Payments,02/05/2023,517.44
Social Care Services,ASSURED CARE (STOCKPORT) LTD,Services to People,Care Payments,02/05/2023,496.32
Social Care Services,ASSURED CARE (STOCKPORT) LTD,Services to People,Care Payments,02/05/2023,485.76
Social Care Services,ASSURED CARE (STOCKPORT) LTD,Services to People,Care Payments,02/05/2023,467.46
Social Care Services,ASSURED CARE (STOCKPORT) LTD,Services to People,Care Payments,02/05/2023,467.46
Social Care Services,ASSURED CARE (STOCKPORT) LTD,Services to People,Care Payments,02/05/2023,467.46
Social Care Services,ASSURED CARE (STOCKPORT) LTD,Services to People,Care Payments,02/05/2023,443.52
Social Care Services,ASSURED CARE (STOCKPORT) LTD,Services to People,Care Payments,02/05/2023,443.52
Social Care Services,ASSURED CARE (STOCKPORT) LTD,Services to People,Care Payments,02/05/2023,443.52
Social Care Services,ASSURED CARE (STOCKPORT) LTD,Services to People,Care Payments,02/05/2023,295.68
Social Care Services,ASSURED CARE (STOCKPORT) LTD,Services to People,Care Payments,02/05/2023,295.68
Social Care Services,ASSURED CARE (STOCKPORT) LTD,Services to People,Care Payments,02/05/2023,295.68
Social Care Services,ASSURED CARE (STOCKPORT) LTD,Services to People,Care Payments,02/05/2023,295.68
Social Care Services,ASSURED CARE (STOCKPORT) LTD,Services to People,Care Payments,02/05/2023,295.68
Social Care Services,ASSURED CARE (STOCKPORT) LTD,Services to People,Care Payments,02/05/2023,295.68
Social Care Services,ASSURED CARE (STOCKPORT) LTD,Services to People,Care Payments,02/05/2023,295.68
Social Care Services,ASSURED CARE (STOCKPORT) LTD,Services to People,Care Payments,02/05/2023,295.68
Social Care Services,ASSURED CARE (STOCKPORT) LTD,Services to People,Care Payments,02/05/2023,295.68
Social Care Services,ASSURED CARE (STOCKPORT) LTD,Services to People,Care Payments,02/05/2023,295.68
Social Care Services,ASSURED CARE (STOCKPORT) LTD,Services to People,Care Payments,02/05/2023,258.72
Social Care Services,ASSURED CARE (STOCKPORT) LTD,Services to People,Care Payments,02/05/2023,221.76
Social Care Services,ASSURED CARE (STOCKPORT) LTD,Services to People,Care Payments,02/05/2023,221.76
Social Care Services,ASSURED CARE (STOCKPORT) LTD,Services to People,Care Payments,02/05/2023,166.95
Social Care Services,ASSURED CARE (STOCKPORT) LTD,Services to People,Care Payments,02/05/2023,158.4
Social Care Services,ASSURED CARE (STOCKPORT) LTD,Services to People,Care Payments,02/05/2023,147.84
Social Care Services,ASSURED CARE (STOCKPORT) LTD,Services to People,Care Payments,02/05/2023,147.84
Social Care Services,ASSURED CARE (STOCKPORT) LTD,Services to People,Care Payments,02/05/2023,147.84
Social Care Services,ASSURED CARE (STOCKPORT) LTD,Services to People,Care Payments,02/05/2023,147.84
Social Care Services,ASSURED CARE (STOCKPORT) LTD,Services to People,Care Payments,02/05/2023,147.84
Social Care Services,ASSURED CARE (STOCKPORT) LTD,Services to People,Care Payments,02/05/2023,147.84
Social Care Services,ASSURED CARE (STOCKPORT) LTD,Services to People,Care Payments,02/05/2023,147.84
Social Care Services,ASSURED CARE (STOCKPORT) LTD,Services to People,Care Payments,02/05/2023,147.84
Social Care Services,ASSURED CARE (STOCKPORT) LTD,Services to People,Care Payments,02/05/2023,142.56
Social Care Services,ASSURED CARE (STOCKPORT) LTD,Services to People,Care Payments,02/05/2023,100.17
Social Care Services,ASSURED CARE (STOCKPORT) LTD,Services to People,Care Payments,02/05/2023,79.2
Social Care Services,ASSURED CARE (STOCKPORT) LTD,Services to People,Care Payments,02/05/2023,66.78
Social Care Services,ASSURED CARE (STOCKPORT) LTD,Services to People,Care Payments,02/05/2023,21.12
Social Care Services,ASSURED CARE (STOCKPORT) LTD,Services to People,Care Payments,02/05/2023,9.05
Social Care Services,ASSURED CARE (STOCKPORT) LTD,Services to People,Care Payments,02/05/2023,960.96
Social Care Services,ASSURED CARE (STOCKPORT) LTD,Services to People,Care Payments,02/05/2023,517.44
Social Care Services,ASSURED CARE (STOCKPORT) LTD,Services to People,Care Payments,02/05/2023,517.44
Social Care Services,ASSURED CARE (STOCKPORT) LTD,Services to People,Care Payments,02/05/2023,443.52
Social Care Services,ASSURED CARE (STOCKPORT) LTD,Services to People,Care Payments,02/05/2023,443.52
Social Care Services,ASSURED CARE (STOCKPORT) LTD,Services to People,Care Payments,02/05/2023,369.6
Social Care Services,ASSURED CARE (STOCKPORT) LTD,Services to People,Care Payments,02/05/2023,295.68
Social Care Services,ASSURED CARE (STOCKPORT) LTD,Services to People,Care Payments,02/05/2023,285.12
Social Care Services,ASSURED CARE (STOCKPORT) LTD,Services to People,Care Payments,02/05/2023,274.56
Social Care Services,ASSURED CARE (STOCKPORT) LTD,Services to People,Care Payments,02/05/2023,253.44
Social Care Services,ASSURED CARE (STOCKPORT) LTD,Services to People,Care Payments,02/05/2023,221.76
Social Care Services,ASSURED CARE (STOCKPORT) LTD,Services to People,Care Payments,02/05/2023,221.76
Social Care Services,ASSURED CARE (STOCKPORT) LTD,Services to People,Care Payments,02/05/2023,168.96
Social Care Services,ASSURED CARE (STOCKPORT) LTD,Services to People,Care Payments,02/05/2023,168.96
Social Care Services,ASSURED CARE (STOCKPORT) LTD,Services to People,Care Payments,02/05/2023,147.84
Social Care Services,ASSURED CARE (STOCKPORT) LTD,Services to People,Care Payments,02/05/2023,147.84
Social Care Services,ASSURED CARE (STOCKPORT) LTD,Services to People,Care Payments,02/05/2023,-61.33
Social Care Services,ASSURED CARE (STOCKPORT) LTD,Services to People,Care Payments,02/05/2023,-153.32
Social Care Services,ASSURED CARE (STOCKPORT) LTD,Services to People,Care Payments,02/05/2023,-214.65
Social Care Services,ASSURED CARE (STOCKPORT) LTD,Services to People,Care Payments,02/05/2023,-237.6
Social Care Services,ASSURED CARE (STOCKPORT) LTD,Services to People,Care Payments,02/05/2023,-429.3
Social Care Services,ASSURED CARE (STOCKPORT) LTD,Services to People,Care Payments,02/05/2023,-429.3
Social Care Services,ASSURED CARE (STOCKPORT) LTD,Services to People,Care Payments,02/05/2023,739.2
Social Care Services,ASSURED CARE (STOCKPORT) LTD,Services to People,Care Payments,02/05/2023,728.64
Social Care Services,ASSURED CARE (STOCKPORT) LTD,Services to People,Care Payments,02/05/2023,665.28
Social Care Services,ASSURED CARE (STOCKPORT) LTD,Services to People,Care Payments,02/05/2023,665.28
Social Care Services,ASSURED CARE (STOCKPORT) LTD,Services to People,Care Payments,02/05/2023,591.36
Social Care Services,ASSURED CARE (STOCKPORT) LTD,Services to People,Care Payments,02/05/2023,528
Social Care Services,ASSURED CARE (STOCKPORT) LTD,Services to People,Care Payments,02/05/2023,443.52
Social Care Services,ASSURED CARE (STOCKPORT) LTD,Services to People,Care Payments,02/05/2023,380.16
Social Care Services,ASSURED CARE (STOCKPORT) LTD,Services to People,Care Payments,02/05/2023,295.68
Social Care Services,ASSURED CARE (STOCKPORT) LTD,Services to People,Care Payments,02/05/2023,295.68
Social Care Services,ASSURED CARE (STOCKPORT) LTD,Services to People,Care Payments,02/05/2023,295.68
Social Care Services,ASSURED CARE (STOCKPORT) LTD,Services to People,Care Payments,02/05/2023,147.84
Social Care Services,ASSURED CARE (STOCKPORT) LTD,Services to People,Care Payments,02/05/2023,147.84
Social Care Services,ASSURED CARE (STOCKPORT) LTD,Services to People,Care Payments,02/05/2023,147.84
Social Care Services,ASSURED CARE (STOCKPORT) LTD,Services to People,Care Payments,02/05/2023,126.72
Social Care Services,ASSURED CARE (STOCKPORT) LTD,Services to People,Care Payments,02/05/2023,73.92
Social Care Services,ASSURED CARE (STOCKPORT) LTD,Services to People,Care Payments,02/05/2023,42.24
Social Care Services,ASSURED CARE (STOCKPORT) LTD,Services to People,Care Payments,02/05/2023,316.8
Social Care Services,ASSURED CARE (STOCKPORT) LTD,Services to People,Care Payments,02/05/2023,168.96
Social Care Services,ASSURED CARE (STOCKPORT) LTD,Services to People,Care Payments,02/05/2023,601.92
Social Care Services,ASSURED CARE (STOCKPORT) LTD,Services to People,Care Payments,02/05/2023,295.68
Social Care Services,ASSURED CARE (STOCKPORT) LTD,Services to People,Care Payments,02/05/2023,147.84
Social Care Services,BRIDGE CARE SERVICES LTD,Services to People,Care Payments,02/05/2023,300.6
Social Care Services,BRIDGE CARE SERVICES LTD,Services to People,Care Payments,02/05/2023,180.36
Social Care Services,BRIDGE CARE SERVICES LTD,Services to People,Care Payments,02/05/2023,-163.08
Social Care Services,BRIDGE CARE SERVICES LTD,Services to People,Care Payments,02/05/2023,771.54
Social Care Services,BRIDGE CARE SERVICES LTD,Services to People,Care Payments,02/05/2023,771.54
Social Care Services,BRIDGE CARE SERVICES LTD,Services to People,Care Payments,02/05/2023,721.44
Social Care Services,BRIDGE CARE SERVICES LTD,Services to People,Care Payments,02/05/2023,561.12
Social Care Services,BRIDGE CARE SERVICES LTD,Services to People,Care Payments,02/05/2023,501
Social Care Services,BRIDGE CARE SERVICES LTD,Services to People,Care Payments,02/05/2023,385.77
Social Care Services,BRIDGE CARE SERVICES LTD,Services to People,Care Payments,02/05/2023,385.77
Social Care Services,BRIDGE CARE SERVICES LTD,Services to People,Care Payments,02/05/2023,370.74
Social Care Services,BRIDGE CARE SERVICES LTD,Services to People,Care Payments,02/05/2023,365.73
Social Care Services,BRIDGE CARE SERVICES LTD,Services to People,Care Payments,02/05/2023,350.7
Social Care Services,BRIDGE CARE SERVICES LTD,Services to People,Care Payments,02/05/2023,340.68
Social Care Services,BRIDGE CARE SERVICES LTD,Services to People,Care Payments,02/05/2023,320.64
Social Care Services,BRIDGE CARE SERVICES LTD,Services to People,Care Payments,02/05/2023,260.52
Social Care Services,BRIDGE CARE SERVICES LTD,Services to People,Care Payments,02/05/2023,185.37
Social Care Services,BRIDGE CARE SERVICES LTD,Services to People,Care Payments,02/05/2023,175.35
Social Care Services,BRIDGE CARE SERVICES LTD,Services to People,Care Payments,02/05/2023,160.32
Social Care Services,BRIDGE CARE SERVICES LTD,Services to People,Care Payments,02/05/2023,140.28
Social Care Services,BRIDGE CARE SERVICES LTD,Services to People,Care Payments,02/05/2023,130.26
Social Care Services,BRIDGE CARE SERVICES LTD,Services to People,Care Payments,02/05/2023,90.18
Social Care Services,BRIDGE CARE SERVICES LTD,Services to People,Care Payments,02/05/2023,90.18
Social Care Services,BRIDGE CARE SERVICES LTD,Services to People,Care Payments,02/05/2023,-81.54
Social Care Services,BRIDGE CARE SERVICES LTD,Services to People,Care Payments,02/05/2023,-117.78
Social Care Services,BRIDGE CARE SERVICES LTD,Services to People,Care Payments,02/05/2023,-126.84
Social Care Services,BRIDGE CARE SERVICES LTD,Services to People,Care Payments,02/05/2023,-144.96
Social Care Services,BRIDGE CARE SERVICES LTD,Services to People,Care Payments,02/05/2023,-158.55
Social Care Services,BRIDGE CARE SERVICES LTD,Services to People,Care Payments,02/05/2023,-167.61
Social Care Services,BRIDGE CARE SERVICES LTD,Services to People,Care Payments,02/05/2023,-235.56
Social Care Services,BRIDGE CARE SERVICES LTD,Services to People,Care Payments,02/05/2023,-330.69
Social Care Services,BRIDGE CARE SERVICES LTD,Services to People,Care Payments,02/05/2023,-348.81
Social Care Services,BRIDGE CARE SERVICES LTD,Services to People,Care Payments,02/05/2023,-348.81
Social Care Services,BRIDGE CARE SERVICES LTD,Services to People,Care Payments,02/05/2023,1052.1
Social Care Services,BRIDGE CARE SERVICES LTD,Services to People,Care Payments,02/05/2023,911.82
Social Care Services,BRIDGE CARE SERVICES LTD,Services to People,Care Payments,02/05/2023,791.58
Social Care Services,BRIDGE CARE SERVICES LTD,Services to People,Care Payments,02/05/2023,561.12
Social Care Services,BRIDGE CARE SERVICES LTD,Services to People,Care Payments,02/05/2023,561.12
Social Care Services,BRIDGE CARE SERVICES LTD,Services to People,Care Payments,02/05/2023,526.05
Social Care Services,BRIDGE CARE SERVICES LTD,Services to People,Care Payments,02/05/2023,455.91
Social Care Services,BRIDGE CARE SERVICES LTD,Services to People,Care Payments,02/05/2023,420.84
Social Care Services,BRIDGE CARE SERVICES LTD,Services to People,Care Payments,02/05/2023,355.71
Social Care Services,BRIDGE CARE SERVICES LTD,Services to People,Care Payments,02/05/2023,350.7
Social Care Services,BRIDGE CARE SERVICES LTD,Services to People,Care Payments,02/05/2023,295.59
Social Care Services,BRIDGE CARE SERVICES LTD,Services to People,Care Payments,02/05/2023,280.56
Social Care Services,BRIDGE CARE SERVICES LTD,Services to People,Care Payments,02/05/2023,280.56
Social Care Services,BRIDGE CARE SERVICES LTD,Services to People,Care Payments,02/05/2023,253.68
Social Care Services,BRIDGE CARE SERVICES LTD,Services to People,Care Payments,02/05/2023,253.68
Social Care Services,BRIDGE CARE SERVICES LTD,Services to People,Care Payments,02/05/2023,253.68
Social Care Services,BRIDGE CARE SERVICES LTD,Services to People,Care Payments,02/05/2023,210.42
Social Care Services,BRIDGE CARE SERVICES LTD,Services to People,Care Payments,02/05/2023,175.35
Social Care Services,BRIDGE CARE SERVICES LTD,Services to People,Care Payments,02/05/2023,160.32
Social Care Services,BRIDGE CARE SERVICES LTD,Services to People,Care Payments,02/05/2023,158.4
Social Care Services,BRIDGE CARE SERVICES LTD,Services to People,Care Payments,02/05/2023,140.28
Social Care Services,BRIDGE CARE SERVICES LTD,Services to People,Care Payments,02/05/2023,140.28
Social Care Services,BRIDGE CARE SERVICES LTD,Services to People,Care Payments,02/05/2023,90.6
Social Care Services,BRIDGE CARE SERVICES LTD,Services to People,Care Payments,02/05/2023,80.16
Social Care Services,BRIDGE CARE SERVICES LTD,Services to People,Care Payments,02/05/2023,70.14
Social Care Services,BRIDGE CARE SERVICES LTD,Services to People,Care Payments,02/05/2023,36.24
Social Care Services,BRIDGE CARE SERVICES LTD,Services to People,Care Payments,02/05/2023,-63.42
Social Care Services,BRIDGE CARE SERVICES LTD,Services to People,Care Payments,02/05/2023,-72.48
Social Care Services,BRIDGE CARE SERVICES LTD,Services to People,Care Payments,02/05/2023,-158.55
Social Care Services,BRIDGE CARE SERVICES LTD,Services to People,Care Payments,02/05/2023,-190.26
Social Care Services,BRIDGE CARE SERVICES LTD,Services to People,Care Payments,02/05/2023,-253.68
Social Care Services,BRIDGE CARE SERVICES LTD,Services to People,Care Payments,02/05/2023,-267.27
Social Care Services,BRIDGE CARE SERVICES LTD,Services to People,Care Payments,02/05/2023,-321.63
Social Care Services,BRIDGE CARE SERVICES LTD,Services to People,Care Payments,02/05/2023,-412.23
Social Care Services,BRIDGE CARE SERVICES LTD,Services to People,Care Payments,02/05/2023,-475.65
Social Care Services,BRIDGE CARE SERVICES LTD,Services to People,Care Payments,02/05/2023,430.86
Social Care Services,BRIDGE CARE SERVICES LTD,Services to People,Care Payments,02/05/2023,220.44
Social Care Services,BRIDGE CARE SERVICES LTD,Services to People,Care Payments,02/05/2023,-199.32
Social Care Services,CARE NEEDS LTD,Services to People,Care Payments,02/05/2023,591.36
Social Care Services,CARE NEEDS LTD,Services to People,Care Payments,02/05/2023,591.36
Social Care Services,CARE NEEDS LTD,Services to People,Care Payments,02/05/2023,591.36
Social Care Services,CARE NEEDS LTD,Services to People,Care Payments,02/05/2023,591.36
Social Care Services,CARE NEEDS LTD,Services to People,Care Payments,02/05/2023,147.84
Social Care Services,CARE NEEDS LTD,Services to People,Care Payments,02/05/2023,147.84
Social Care Services,CARE NEEDS LTD,Services to People,Care Payments,02/05/2023,147.84
Social Care Services,CARE NEEDS LTD,Services to People,Care Payments,02/05/2023,887.04
Social Care Services,CARE NEEDS LTD,Services to People,Care Payments,02/05/2023,887.04
Social Care Services,CARE NEEDS LTD,Services to People,Care Payments,02/05/2023,696.96
Social Care Services,CARE NEEDS LTD,Services to People,Care Payments,02/05/2023,696.96
Social Care Services,CARE NEEDS LTD,Services to People,Care Payments,02/05/2023,665.28
Social Care Services,CARE NEEDS LTD,Services to People,Care Payments,02/05/2023,665.28
Social Care Services,CARE NEEDS LTD,Services to People,Care Payments,02/05/2023,517.44
Social Care Services,CARE NEEDS LTD,Services to People,Care Payments,02/05/2023,517.44
Social Care Services,CARE NEEDS LTD,Services to People,Care Payments,02/05/2023,369.6
Social Care Services,CARE NEEDS LTD,Services to People,Care Payments,02/05/2023,369.6
Social Care Services,CARE NEEDS LTD,Services to People,Care Payments,02/05/2023,147.84
Social Care Services,CARE NEEDS LTD,Services to People,Care Payments,02/05/2023,290.4
Social Care Services,CARE NEEDS LTD,Services to People,Care Payments,02/05/2023,290.4
Social Care Services,CARE NEEDS LTD,Services to People,Care Payments,02/05/2023,739.2
Social Care Services,CARE NEEDS LTD,Services to People,Care Payments,02/05/2023,739.2
Social Care Services,CARE NEEDS LTD,Services to People,Care Payments,02/05/2023,739.2
Social Care Services,CARE NEEDS LTD,Services to People,Care Payments,02/05/2023,739.2
Social Care Services,CARE NEEDS LTD,Services to People,Care Payments,02/05/2023,665.28
Social Care Services,CARE NEEDS LTD,Services to People,Care Payments,02/05/2023,665.28
Social Care Services,CARE NEEDS LTD,Services to People,Care Payments,02/05/2023,591.36
Social Care Services,CARE NEEDS LTD,Services to People,Care Payments,02/05/2023,591.36
Social Care Services,CARE NEEDS LTD,Services to People,Care Payments,02/05/2023,538.56
Social Care Services,CARE NEEDS LTD,Services to People,Care Payments,02/05/2023,443.52
Social Care Services,CARE NEEDS LTD,Services to People,Care Payments,02/05/2023,443.52
Social Care Services,CARE NEEDS LTD,Services to People,Care Payments,02/05/2023,443.52
Social Care Services,CARE NEEDS LTD,Services to People,Care Payments,02/05/2023,1056
Social Care Services,CARE NEEDS LTD,Services to People,Care Payments,02/05/2023,929.28
Social Care Services,CARE NEEDS LTD,Services to People,Care Payments,02/05/2023,591.36
Social Care Services,CARE NEEDS LTD,Services to People,Care Payments,02/05/2023,591.36
Social Care Services,CARE NEEDS LTD,Services to People,Care Payments,02/05/2023,591.36
Social Care Services,CARE NEEDS LTD,Services to People,Care Payments,02/05/2023,591.36
Social Care Services,CARE NEEDS LTD,Services to People,Care Payments,02/05/2023,475.2
Social Care Services,CARE NEEDS LTD,Services to People,Care Payments,02/05/2023,475.2
Social Care Services,CARE NEEDS LTD,Services to People,Care Payments,02/05/2023,274.56
Social Care Services,CARE NEEDS LTD,Services to People,Care Payments,02/05/2023,274.56
Social Care Services,CARE NEEDS LTD,Services to People,Care Payments,02/05/2023,221.76
Social Care Services,CARE NEEDS LTD,Services to People,Care Payments,02/05/2023,221.76
Social Care Services,CARE NEEDS LTD,Services to People,Care Payments,02/05/2023,126.72
Social Care Services,CARE NEEDS LTD,Services to People,Care Payments,02/05/2023,126.72
Social Care Services,CARE NEEDS LTD,Services to People,Care Payments,02/05/2023,591.36
Social Care Services,CARE NEEDS LTD,Services to People,Care Payments,02/05/2023,591.36
Social Care Services,CARE NEEDS LTD,Services to People,Care Payments,02/05/2023,443.52
Social Care Services,CARE NEEDS LTD,Services to People,Care Payments,02/05/2023,443.52
Social Care Services,CARE NEEDS LTD,Services to People,Care Payments,02/05/2023,295.68
Social Care Services,CARE NEEDS LTD,Services to People,Care Payments,02/05/2023,295.68
Social Care Services,CARE NEEDS LTD,Services to People,Care Payments,02/05/2023,147.84
Social Care Services,CARE NEEDS LTD,Services to People,Care Payments,02/05/2023,147.84
Social Care Services,CARE NEEDS LTD,Services to People,Care Payments,02/05/2023,-180.8
Social Care Services,CARE NEEDS LTD,Services to People,Care Payments,02/05/2023,-180.8
Social Care Services,CARE NEEDS LTD,Services to People,Care Payments,02/05/2023,-253.12
Social Care Services,CARE NEEDS LTD,Services to People,Care Payments,02/05/2023,-253.12
Social Care Services,CARE NEEDS LTD,Services to People,Care Payments,02/05/2023,739.2
Social Care Services,CARE NEEDS LTD,Services to People,Care Payments,02/05/2023,739.2
Social Care Services,CARE NEEDS LTD,Services to People,Care Payments,02/05/2023,739.2
Social Care Services,CARE NEEDS LTD,Services to People,Care Payments,02/05/2023,739.2
Social Care Services,CARE NEEDS LTD,Services to People,Care Payments,02/05/2023,665.28
Social Care Services,CARE NEEDS LTD,Services to People,Care Payments,02/05/2023,665.28
Social Care Services,CARE NEEDS LTD,Services to People,Care Payments,02/05/2023,665.28
Social Care Services,CARE NEEDS LTD,Services to People,Care Payments,02/05/2023,665.28
Social Care Services,CARE NEEDS LTD,Services to People,Care Payments,02/05/2023,591.36
Social Care Services,CARE NEEDS LTD,Services to People,Care Payments,02/05/2023,591.36
Social Care Services,CARE NEEDS LTD,Services to People,Care Payments,02/05/2023,528
Social Care Services,CARE NEEDS LTD,Services to People,Care Payments,02/05/2023,528
Social Care Services,CARE NEEDS LTD,Services to People,Care Payments,02/05/2023,517.44
Social Care Services,CARE NEEDS LTD,Services to People,Care Payments,02/05/2023,337.92
Social Care Services,CARE NEEDS LTD,Services to People,Care Payments,02/05/2023,295.68
Social Care Services,CARE NEEDS LTD,Services to People,Care Payments,02/05/2023,295.68
Social Care Services,CARE NEEDS LTD,Services to People,Care Payments,02/05/2023,295.68
Social Care Services,CARE NEEDS LTD,Services to People,Care Payments,02/05/2023,295.68
Social Care Services,CARE NEEDS LTD,Services to People,Care Payments,02/05/2023,295.68
Social Care Services,CARE NEEDS LTD,Services to People,Care Payments,02/05/2023,295.68
Social Care Services,CARE NEEDS LTD,Services to People,Care Payments,02/05/2023,295.68
Social Care Services,CARE NEEDS LTD,Services to People,Care Payments,02/05/2023,211.2
Social Care Services,CARE NEEDS LTD,Services to People,Care Payments,02/05/2023,105.6
Social Care Services,CARE NEEDS LTD,Services to People,Care Payments,02/05/2023,105.6
Social Care Services,CARE NEEDS LTD,Services to People,Care Payments,02/05/2023,73.92
Social Care Services,CARE NEEDS LTD,Services to People,Care Payments,02/05/2023,591.36
Social Care Services,CARE NEEDS LTD,Services to People,Care Payments,02/05/2023,591.36
Social Care Services,CARE NEEDS LTD,Services to People,Care Payments,02/05/2023,147.84
Social Care Services,HG CARE SERVICES LTD,Services to People,Care Payments,02/05/2023,960.96
Social Care Services,HG CARE SERVICES LTD,Services to People,Care Payments,02/05/2023,960.96
Social Care Services,HG CARE SERVICES LTD,Services to People,Care Payments,02/05/2023,591.36
Social Care Services,HG CARE SERVICES LTD,Services to People,Care Payments,02/05/2023,126.72
Social Care Services,HG CARE SERVICES LTD,Services to People,Care Payments,02/05/2023,1066.56
Social Care Services,HG CARE SERVICES LTD,Services to People,Care Payments,02/05/2023,887.04
Social Care Services,HG CARE SERVICES LTD,Services to People,Care Payments,02/05/2023,887.04
Social Care Services,HG CARE SERVICES LTD,Services to People,Care Payments,02/05/2023,887.04
Social Care Services,HG CARE SERVICES LTD,Services to People,Care Payments,02/05/2023,834.24
Social Care Services,HG CARE SERVICES LTD,Services to People,Care Payments,02/05/2023,591.36
Social Care Services,HG CARE SERVICES LTD,Services to People,Care Payments,02/05/2023,591.36
Social Care Services,HG CARE SERVICES LTD,Services to People,Care Payments,02/05/2023,591.36
Social Care Services,HG CARE SERVICES LTD,Services to People,Care Payments,02/05/2023,559.68
Social Care Services,HG CARE SERVICES LTD,Services to People,Care Payments,02/05/2023,559.68
Social Care Services,HG CARE SERVICES LTD,Services to People,Care Payments,02/05/2023,443.52
Social Care Services,HG CARE SERVICES LTD,Services to People,Care Payments,02/05/2023,295.68
Social Care Services,HG CARE SERVICES LTD,Services to People,Care Payments,02/05/2023,295.68
Social Care Services,HG CARE SERVICES LTD,Services to People,Care Payments,02/05/2023,295.68
Social Care Services,HG CARE SERVICES LTD,Services to People,Care Payments,02/05/2023,295.68
Social Care Services,HG CARE SERVICES LTD,Services to People,Care Payments,02/05/2023,147.84
Social Care Services,HG CARE SERVICES LTD,Services to People,Care Payments,02/05/2023,-267.12
Social Care Services,HG CARE SERVICES LTD,Services to People,Care Payments,02/05/2023,665.28
Social Care Services,HG CARE SERVICES LTD,Services to People,Care Payments,02/05/2023,665.28
Social Care Services,HG CARE SERVICES LTD,Services to People,Care Payments,02/05/2023,591.36
Social Care Services,HG CARE SERVICES LTD,Services to People,Care Payments,02/05/2023,591.36
Social Care Services,HG CARE SERVICES LTD,Services to People,Care Payments,02/05/2023,591.36
Social Care Services,HG CARE SERVICES LTD,Services to People,Care Payments,02/05/2023,591.36
Social Care Services,HG CARE SERVICES LTD,Services to People,Care Payments,02/05/2023,295.68
Social Care Services,HG CARE SERVICES LTD,Services to People,Care Payments,02/05/2023,147.84
Social Care Services,HG CARE SERVICES LTD,Services to People,Care Payments,02/05/2023,823.68
Social Care Services,HG CARE SERVICES LTD,Services to People,Care Payments,02/05/2023,696.96
Social Care Services,HG CARE SERVICES LTD,Services to People,Care Payments,02/05/2023,591.36
Social Care Services,HG CARE SERVICES LTD,Services to People,Care Payments,02/05/2023,570.24
Social Care Services,HG CARE SERVICES LTD,Services to People,Care Payments,02/05/2023,517.44
Social Care Services,HG CARE SERVICES LTD,Services to People,Care Payments,02/05/2023,422.4
Social Care Services,HG CARE SERVICES LTD,Services to People,Care Payments,02/05/2023,359.04
Social Care Services,HG CARE SERVICES LTD,Services to People,Care Payments,02/05/2023,327.36
Social Care Services,HG CARE SERVICES LTD,Services to People,Care Payments,02/05/2023,316.8
Social Care Services,HG CARE SERVICES LTD,Services to People,Care Payments,02/05/2023,295.68
Social Care Services,HG CARE SERVICES LTD,Services to People,Care Payments,02/05/2023,264
Social Care Services,HG CARE SERVICES LTD,Services to People,Care Payments,02/05/2023,147.84
Social Care Services,HG CARE SERVICES LTD,Services to People,Care Payments,02/05/2023,73.92
Social Care Services,HG CARE SERVICES LTD,Services to People,Care Payments,02/05/2023,42.24
Social Care Services,HG CARE SERVICES LTD,Services to People,Care Payments,02/05/2023,982.08
Social Care Services,HG CARE SERVICES LTD,Services to People,Care Payments,02/05/2023,665.28
Social Care Services,HG CARE SERVICES LTD,Services to People,Care Payments,02/05/2023,443.52
Social Care Services,HG CARE SERVICES LTD,Services to People,Care Payments,02/05/2023,443.52
Social Care Services,HG CARE SERVICES LTD,Services to People,Care Payments,02/05/2023,264
Social Care Services,HG CARE SERVICES LTD,Services to People,Care Payments,02/05/2023,126.72
Social Care Services,HG CARE SERVICES LTD,Services to People,Care Payments,02/05/2023,380.16
Social Care Services,HG CARE SERVICES LTD,Services to People,Care Payments,02/05/2023,295.68
Social Care Services,QUALITY CARE OF CHEADLE,Services to People,Care Payments,02/05/2023,295.68
Social Care Services,QUALITY CARE OF CHEADLE,Services to People,Care Payments,02/05/2023,147.84
Social Care Services,QUALITY CARE OF CHEADLE,Services to People,Care Payments,02/05/2023,105.6
Social Care Services,QUALITY CARE OF CHEADLE,Services to People,Care Payments,02/05/2023,1050.72
Social Care Services,QUALITY CARE OF CHEADLE,Services to People,Care Payments,02/05/2023,739.2
Social Care Services,QUALITY CARE OF CHEADLE,Services to People,Care Payments,02/05/2023,591.36
Social Care Services,QUALITY CARE OF CHEADLE,Services to People,Care Payments,02/05/2023,549.12
Social Care Services,QUALITY CARE OF CHEADLE,Services to People,Care Payments,02/05/2023,369.6
Social Care Services,QUALITY CARE OF CHEADLE,Services to People,Care Payments,02/05/2023,295.68
Social Care Services,QUALITY CARE OF CHEADLE,Services to People,Care Payments,02/05/2023,274.56
Social Care Services,QUALITY CARE OF CHEADLE,Services to People,Care Payments,02/05/2023,168.96
Social Care Services,QUALITY CARE OF CHEADLE,Services to People,Care Payments,02/05/2023,70.87
Social Care Services,QUALITY CARE OF CHEADLE,Services to People,Care Payments,02/05/2023,70.87
Social Care Services,QUALITY CARE OF CHEADLE,Services to People,Care Payments,02/05/2023,665.28
Social Care Services,QUALITY CARE OF CHEADLE,Services to People,Care Payments,02/05/2023,591.36
Social Care Services,QUALITY CARE OF CHEADLE,Services to People,Care Payments,02/05/2023,70.87
Social Care Services,QUALITY CARE OF CHEADLE,Services to People,Care Payments,02/05/2023,-70.87
Social Care Services,QUALITY CARE OF CHEADLE,Services to People,Care Payments,02/05/2023,-274.56
Social Care Services,QUALITY CARE OF CHEADLE,Services to People,Care Payments,02/05/2023,813.12
Social Care Services,QUALITY CARE OF CHEADLE,Services to People,Care Payments,02/05/2023,813.12
Social Care Services,QUALITY CARE OF CHEADLE,Services to People,Care Payments,02/05/2023,813.12
Social Care Services,QUALITY CARE OF CHEADLE,Services to People,Care Payments,02/05/2023,813.12
Social Care Services,QUALITY CARE OF CHEADLE,Services to People,Care Payments,02/05/2023,813.12
Social Care Services,QUALITY CARE OF CHEADLE,Services to People,Care Payments,02/05/2023,644.16
Social Care Services,QUALITY CARE OF CHEADLE,Services to People,Care Payments,02/05/2023,295.68
Social Care Services,QUALITY CARE OF CHEADLE,Services to People,Care Payments,02/05/2023,369.6
Social Care Services,QUALITY CARE OF CHEADLE,Services to People,Care Payments,02/05/2023,285.12
Social Care Services,QUALITY CARE OF CHEADLE,Services to People,Care Payments,02/05/2023,105.6
Social Care Services,MacIntyre Charity,Services to People,Care Payments,02/05/2023,3971.54
Social Care Services,MacIntyre Charity,Services to People,Care Payments,02/05/2023,1170
Social Care Services,MacIntyre Charity,Services to People,Care Payments,02/05/2023,783.12
Social Care Services,HSL Care Ltd,Services to People,Care Payments,02/05/2023,517.44
Social Care Services,HSL Care Ltd,Services to People,Care Payments,02/05/2023,84.48
Social Care Services,HSL Care Ltd,Services to People,Care Payments,02/05/2023,960.96
Social Care Services,HSL Care Ltd,Services to People,Care Payments,02/05/2023,960.96
Social Care Services,HSL Care Ltd,Services to People,Care Payments,02/05/2023,960.96
Social Care Services,HSL Care Ltd,Services to People,Care Payments,02/05/2023,960.96
Social Care Services,HSL Care Ltd,Services to People,Care Payments,02/05/2023,960.96
Social Care Services,HSL Care Ltd,Services to People,Care Payments,02/05/2023,960.96
Social Care Services,HSL Care Ltd,Services to People,Care Payments,02/05/2023,665.28
Social Care Services,HSL Care Ltd,Services to People,Care Payments,02/05/2023,665.28
Social Care Services,HSL Care Ltd,Services to People,Care Payments,02/05/2023,633.6
Social Care Services,HSL Care Ltd,Services to People,Care Payments,02/05/2023,528
Social Care Services,HSL Care Ltd,Services to People,Care Payments,02/05/2023,422.4
Social Care Services,HSL Care Ltd,Services to People,Care Payments,02/05/2023,221.76
Social Care Services,HSL Care Ltd,Services to People,Care Payments,02/05/2023,190.08
Social Care Services,HSL Care Ltd,Services to People,Care Payments,02/05/2023,147.84
Social Care Services,HSL Care Ltd,Services to People,Care Payments,02/05/2023,147.84
Social Care Services,HSL Care Ltd,Services to People,Care Payments,02/05/2023,147.84
Social Care Services,HSL Care Ltd,Services to People,Care Payments,02/05/2023,84.48
Social Care Services,HSL Care Ltd,Services to People,Care Payments,02/05/2023,5.28
Social Care Services,HSL Care Ltd,Services to People,Care Payments,02/05/2023,5.28
Social Care Services,HSL Care Ltd,Services to People,Care Payments,02/05/2023,485.76
Social Care Services,HSL Care Ltd,Services to People,Care Payments,02/05/2023,147.84
Social Care Services,HSL Care Ltd,Services to People,Care Payments,02/05/2023,63.36
Social Care Services,HSL Care Ltd,Services to People,Care Payments,02/05/2023,84.48
Social Care Services,Abacus Homecare,Services to People,Care Payments,02/05/2023,934.56
Social Care Services,Abacus Homecare,Services to People,Care Payments,02/05/2023,834.24
Social Care Services,Abacus Homecare,Services to People,Care Payments,02/05/2023,834.24
Social Care Services,Abacus Homecare,Services to People,Care Payments,02/05/2023,813.12
Social Care Services,Abacus Homecare,Services to People,Care Payments,02/05/2023,813.12
Social Care Services,Abacus Homecare,Services to People,Care Payments,02/05/2023,739.2
Social Care Services,Abacus Homecare,Services to People,Care Payments,02/05/2023,739.2
Social Care Services,Abacus Homecare,Services to People,Care Payments,02/05/2023,739.2
Social Care Services,Abacus Homecare,Services to People,Care Payments,02/05/2023,728.64
Social Care Services,Abacus Homecare,Services to People,Care Payments,02/05/2023,665.28
Social Care Services,Abacus Homecare,Services to People,Care Payments,02/05/2023,665.28
Social Care Services,Abacus Homecare,Services to People,Care Payments,02/05/2023,665.28
Social Care Services,Abacus Homecare,Services to People,Care Payments,02/05/2023,665.28
Social Care Services,Abacus Homecare,Services to People,Care Payments,02/05/2023,665.28
Social Care Services,Abacus Homecare,Services to People,Care Payments,02/05/2023,665.28
Social Care Services,Abacus Homecare,Services to People,Care Payments,02/05/2023,644.16
Social Care Services,Abacus Homecare,Services to People,Care Payments,02/05/2023,623.04
Social Care Services,Abacus Homecare,Services to People,Care Payments,02/05/2023,591.36
Social Care Services,Abacus Homecare,Services to People,Care Payments,02/05/2023,591.36
Social Care Services,Abacus Homecare,Services to People,Care Payments,02/05/2023,591.36
Social Care Services,Abacus Homecare,Services to People,Care Payments,02/05/2023,591.36
Social Care Services,Abacus Homecare,Services to People,Care Payments,02/05/2023,580.8
Social Care Services,Abacus Homecare,Services to People,Care Payments,02/05/2023,559.68
Social Care Services,Abacus Homecare,Services to People,Care Payments,02/05/2023,559.68
Social Care Services,Abacus Homecare,Services to People,Care Payments,02/05/2023,517.44
Social Care Services,Abacus Homecare,Services to People,Care Payments,02/05/2023,512.16
Social Care Services,Abacus Homecare,Services to People,Care Payments,02/05/2023,506.88
Social Care Services,Abacus Homecare,Services to People,Care Payments,02/05/2023,464.64
Social Care Services,Abacus Homecare,Services to People,Care Payments,02/05/2023,443.52
Social Care Services,Abacus Homecare,Services to People,Care Payments,02/05/2023,443.52
Social Care Services,Abacus Homecare,Services to People,Care Payments,02/05/2023,427.68
Social Care Services,Abacus Homecare,Services to People,Care Payments,02/05/2023,422.4
Social Care Services,Abacus Homecare,Services to People,Care Payments,02/05/2023,380.16
Social Care Services,Abacus Homecare,Services to People,Care Payments,02/05/2023,369.6
Social Care Services,Abacus Homecare,Services to People,Care Payments,02/05/2023,353.76
Social Care Services,Abacus Homecare,Services to People,Care Payments,02/05/2023,337.92
Social Care Services,Abacus Homecare,Services to People,Care Payments,02/05/2023,311.52
Social Care Services,Abacus Homecare,Services to People,Care Payments,02/05/2023,295.68
Social Care Services,Abacus Homecare,Services to People,Care Payments,02/05/2023,295.68
Social Care Services,Abacus Homecare,Services to People,Care Payments,02/05/2023,290.4
Social Care Services,Abacus Homecare,Services to People,Care Payments,02/05/2023,232.32
Social Care Services,Abacus Homecare,Services to People,Care Payments,02/05/2023,221.76
Social Care Services,Abacus Homecare,Services to People,Care Payments,02/05/2023,221.76
Social Care Services,Abacus Homecare,Services to People,Care Payments,02/05/2023,221.76
Social Care Services,Abacus Homecare,Services to People,Care Payments,02/05/2023,153.12
Social Care Services,Abacus Homecare,Services to People,Care Payments,02/05/2023,147.84
Social Care Services,Abacus Homecare,Services to People,Care Payments,02/05/2023,147.84
Social Care Services,Abacus Homecare,Services to People,Care Payments,02/05/2023,142.56
Social Care Services,Abacus Homecare,Services to People,Care Payments,02/05/2023,138.79
Social Care Services,Abacus Homecare,Services to People,Care Payments,02/05/2023,137.28
Social Care Services,Abacus Homecare,Services to People,Care Payments,02/05/2023,116.16
Social Care Services,Abacus Homecare,Services to People,Care Payments,02/05/2023,95.04
Social Care Services,Abacus Homecare,Services to People,Care Payments,02/05/2023,95.04
Social Care Services,Abacus Homecare,Services to People,Care Payments,02/05/2023,84.48
Social Care Services,Abacus Homecare,Services to People,Care Payments,02/05/2023,63.36
Social Care Services,Abacus Homecare,Services to People,Care Payments,02/05/2023,63.36
Social Care Services,Abacus Homecare,Services to People,Care Payments,02/05/2023,35.43
Social Care Services,Abacus Homecare,Services to People,Care Payments,02/05/2023,21.12
Social Care Services,Abacus Homecare,Services to People,Care Payments,02/05/2023,21.12
Social Care Services,Abacus Homecare,Services to People,Care Payments,02/05/2023,10.56
Social Care Services,Abacus Homecare,Services to People,Care Payments,02/05/2023,-9.54
Social Care Services,Abacus Homecare,Services to People,Care Payments,02/05/2023,-35.43
Social Care Services,Abacus Homecare,Services to People,Care Payments,02/05/2023,-45.26
Social Care Services,Abacus Homecare,Services to People,Care Payments,02/05/2023,760.32
Social Care Services,Abacus Homecare,Services to People,Care Payments,02/05/2023,760.32
Social Care Services,Abacus Homecare,Services to People,Care Payments,02/05/2023,739.2
Social Care Services,Abacus Homecare,Services to People,Care Payments,02/05/2023,665.28
Social Care Services,Abacus Homecare,Services to People,Care Payments,02/05/2023,665.28
Social Care Services,Abacus Homecare,Services to People,Care Payments,02/05/2023,665.28
Social Care Services,Abacus Homecare,Services to People,Care Payments,02/05/2023,591.36
Social Care Services,Abacus Homecare,Services to People,Care Payments,02/05/2023,591.36
Social Care Services,Abacus Homecare,Services to People,Care Payments,02/05/2023,580.8
Social Care Services,Abacus Homecare,Services to People,Care Payments,02/05/2023,580.8
Social Care Services,Abacus Homecare,Services to People,Care Payments,02/05/2023,580.8
Social Care Services,Abacus Homecare,Services to People,Care Payments,02/05/2023,534.24
Social Care Services,Abacus Homecare,Services to People,Care Payments,02/05/2023,534.24
Social Care Services,Abacus Homecare,Services to People,Care Payments,02/05/2023,496.08
Social Care Services,Abacus Homecare,Services to People,Care Payments,02/05/2023,485.76
Social Care Services,Abacus Homecare,Services to People,Care Payments,02/05/2023,443.52
Social Care Services,Abacus Homecare,Services to People,Care Payments,02/05/2023,443.52
Social Care Services,Abacus Homecare,Services to People,Care Payments,02/05/2023,443.52
Social Care Services,Abacus Homecare,Services to People,Care Payments,02/05/2023,443.52
Social Care Services,Abacus Homecare,Services to People,Care Payments,02/05/2023,438.24
Social Care Services,Abacus Homecare,Services to People,Care Payments,02/05/2023,411.84
Social Care Services,Abacus Homecare,Services to People,Care Payments,02/05/2023,295.68
Social Care Services,Abacus Homecare,Services to People,Care Payments,02/05/2023,295.68
Social Care Services,Abacus Homecare,Services to People,Care Payments,02/05/2023,285.12
Social Care Services,Abacus Homecare,Services to People,Care Payments,02/05/2023,253.44
Social Care Services,Abacus Homecare,Services to People,Care Payments,02/05/2023,221.76
Social Care Services,Abacus Homecare,Services to People,Care Payments,02/05/2023,211.2
Social Care Services,Abacus Homecare,Services to People,Care Payments,02/05/2023,190.8
Social Care Services,Abacus Homecare,Services to People,Care Payments,02/05/2023,158.4
Social Care Services,Abacus Homecare,Services to People,Care Payments,02/05/2023,137.28
Social Care Services,Abacus Homecare,Services to People,Care Payments,02/05/2023,105.6
Social Care Services,Abacus Homecare,Services to People,Care Payments,02/05/2023,105.6
Social Care Services,Abacus Homecare,Services to People,Care Payments,02/05/2023,90.51
Social Care Services,Abacus Homecare,Services to People,Care Payments,02/05/2023,84.48
Social Care Services,Abacus Homecare,Services to People,Care Payments,02/05/2023,76.32
Social Care Services,Abacus Homecare,Services to People,Care Payments,02/05/2023,42.24
Social Care Services,Abacus Homecare,Services to People,Care Payments,02/05/2023,42.24
Social Care Services,Abacus Homecare,Services to People,Care Payments,02/05/2023,38.16
Social Care Services,Abacus Homecare,Services to People,Care Payments,02/05/2023,-19.08
Social Care Services,Abacus Homecare,Services to People,Care Payments,02/05/2023,-47.7
Social Care Services,Abacus Homecare,Services to People,Care Payments,02/05/2023,-73.92
Social Care Services,Abacus Homecare,Services to People,Care Payments,02/05/2023,-124.02
Social Care Services,Abacus Homecare,Services to People,Care Payments,02/05/2023,-133.56
Social Care Services,Abacus Homecare,Services to People,Care Payments,02/05/2023,-133.56
Social Care Services,Abacus Homecare,Services to People,Care Payments,02/05/2023,137.28
Social Care Services,Abacus Homecare,Services to People,Care Payments,02/05/2023,253.44
Social Care Services,Abacus Homecare,Services to People,Care Payments,02/05/2023,168.96
Social Care Services,Abacus Homecare,Services to People,Care Payments,02/05/2023,84.48
Social Care Services,Abacus Homecare,Services to People,Care Payments,02/05/2023,84.48
Social Care Services,Abacus Homecare,Services to People,Care Payments,02/05/2023,126.72
Social Care Services,Abacus Homecare,Services to People,Care Payments,02/05/2023,739.2
Social Care Services,Helping Hands,Services to People,Care Payments,02/05/2023,3588.48
Social Care Services,Helping Hands,Services to People,Care Payments,02/05/2023,1794.24
Social Care Services,Helping Hands,Services to People,Care Payments,02/05/2023,-3366.72
Social Care Services,Equality Homecare Services Ltd,Services to People,Care Payments,02/05/2023,701.4
Social Care Services,Equality Homecare Services Ltd,Services to People,Care Payments,02/05/2023,631.26
Social Care Services,Equality Homecare Services Ltd,Services to People,Care Payments,02/05/2023,561.12
Social Care Services,Equality Homecare Services Ltd,Services to People,Care Payments,02/05/2023,360.72
Social Care Services,Equality Homecare Services Ltd,Services to People,Care Payments,02/05/2023,350.7
Social Care Services,Equality Homecare Services Ltd,Services to People,Care Payments,02/05/2023,315.63
Social Care Services,Equality Homecare Services Ltd,Services to People,Care Payments,02/05/2023,300.6
Social Care Services,Equality Homecare Services Ltd,Services to People,Care Payments,02/05/2023,280.56
Social Care Services,Equality Homecare Services Ltd,Services to People,Care Payments,02/05/2023,280.56
Social Care Services,Equality Homecare Services Ltd,Services to People,Care Payments,02/05/2023,280.56
Social Care Services,Equality Homecare Services Ltd,Services to People,Care Payments,02/05/2023,180.36
Social Care Services,Equality Homecare Services Ltd,Services to People,Care Payments,02/05/2023,150.3
Social Care Services,Equality Homecare Services Ltd,Services to People,Care Payments,02/05/2023,150.3
Social Care Services,Equality Homecare Services Ltd,Services to People,Care Payments,02/05/2023,140.28
Social Care Services,Equality Homecare Services Ltd,Services to People,Care Payments,02/05/2023,140.28
Social Care Services,Equality Homecare Services Ltd,Services to People,Care Payments,02/05/2023,140.28
Social Care Services,Equality Homecare Services Ltd,Services to People,Care Payments,02/05/2023,75.15
Social Care Services,Equality Homecare Services Ltd,Services to People,Care Payments,02/05/2023,70.14
Social Care Services,Equality Homecare Services Ltd,Services to People,Care Payments,02/05/2023,40.08
Social Care Services,Equality Homecare Services Ltd,Services to People,Care Payments,02/05/2023,40.08
Social Care Services,Equality Homecare Services Ltd,Services to People,Care Payments,02/05/2023,20.04
Social Care Services,Equality Homecare Services Ltd,Services to People,Care Payments,02/05/2023,20.04
Social Care Services,Equality Homecare Services Ltd,Services to People,Care Payments,02/05/2023,-18.12
Social Care Services,Equality Homecare Services Ltd,Services to People,Care Payments,02/05/2023,-18.12
Social Care Services,Equality Homecare Services Ltd,Services to People,Care Payments,02/05/2023,-63.42
Social Care Services,Equality Homecare Services Ltd,Services to People,Care Payments,02/05/2023,-67.95
Social Care Services,Equality Homecare Services Ltd,Services to People,Care Payments,02/05/2023,-126.84
Social Care Services,Equality Homecare Services Ltd,Services to People,Care Payments,02/05/2023,-126.84
Social Care Services,Equality Homecare Services Ltd,Services to People,Care Payments,02/05/2023,-135.9
Social Care Services,Equality Homecare Services Ltd,Services to People,Care Payments,02/05/2023,-163.08
Social Care Services,Equality Homecare Services Ltd,Services to People,Care Payments,02/05/2023,-253.68
Social Care Services,Equality Homecare Services Ltd,Services to People,Care Payments,02/05/2023,-285.39
Social Care Services,Equality Homecare Services Ltd,Services to People,Care Payments,02/05/2023,-317.1
Social Care Services,Equality Homecare Services Ltd,Services to People,Care Payments,02/05/2023,90.18
Social Care Services,iCare Solutions Ltd,Services to People,Care Payments,02/05/2023,330.66
Social Care Services,iCare Solutions Ltd,Services to People,Care Payments,02/05/2023,330.66
Social Care Services,iCare Solutions Ltd,Services to People,Care Payments,02/05/2023,325.65
Social Care Services,iCare Solutions Ltd,Services to People,Care Payments,02/05/2023,320.64
Social Care Services,iCare Solutions Ltd,Services to People,Care Payments,02/05/2023,140.28
Social Care Services,iCare Solutions Ltd,Services to People,Care Payments,02/05/2023,140.28
Social Care Services,iCare Solutions Ltd,Services to People,Care Payments,02/05/2023,140.28
Social Care Services,iCare Solutions Ltd,Services to People,Care Payments,02/05/2023,105.21
Social Care Services,iCare Solutions Ltd,Services to People,Care Payments,02/05/2023,15.03
Social Care Services,iCare Solutions Ltd,Services to People,Care Payments,02/05/2023,-38.83
Social Care Services,iCare Solutions Ltd,Services to People,Care Payments,02/05/2023,-95.13
Social Care Services,iCare Solutions Ltd,Services to People,Care Payments,02/05/2023,-163.08
Social Care Services,iCare Solutions Ltd,Services to People,Care Payments,02/05/2023,-163.08
Social Care Services,iCare Solutions Ltd,Services to People,Care Payments,02/05/2023,-196.73
Social Care Services,iCare Solutions Ltd,Services to People,Care Payments,02/05/2023,30.06
Social Care Services,iCare Solutions Ltd,Services to People,Care Payments,02/05/2023,20.04
Social Care Services,iCare Solutions Ltd,Services to People,Care Payments,02/05/2023,10.02
Social Care Services,iCare Solutions Ltd,Services to People,Care Payments,02/05/2023,-9.06
Social Care Services,iCare Solutions Ltd,Services to People,Care Payments,02/05/2023,-27.18
Social Care Services,iCare Solutions Ltd,Services to People,Care Payments,02/05/2023,561.12
Social Care Services,iCare Solutions Ltd,Services to People,Care Payments,02/05/2023,561.12
Social Care Services,iCare Solutions Ltd,Services to People,Care Payments,02/05/2023,561.12
Social Care Services,iCare Solutions Ltd,Services to People,Care Payments,02/05/2023,561.12
Social Care Services,iCare Solutions Ltd,Services to People,Care Payments,02/05/2023,561.12
Social Care Services,iCare Solutions Ltd,Services to People,Care Payments,02/05/2023,561.12
Social Care Services,iCare Solutions Ltd,Services to People,Care Payments,02/05/2023,280.56
Social Care Services,iCare Solutions Ltd,Services to People,Care Payments,02/05/2023,280.56
Social Care Services,iCare Solutions Ltd,Services to People,Care Payments,02/05/2023,280.56
Social Care Services,iCare Solutions Ltd,Services to People,Care Payments,02/05/2023,280.56
Social Care Services,iCare Solutions Ltd,Services to People,Care Payments,02/05/2023,280.56
Social Care Services,iCare Solutions Ltd,Services to People,Care Payments,02/05/2023,280.56
Social Care Services,iCare Solutions Ltd,Services to People,Care Payments,02/05/2023,105.21
Social Care Services,iCare Solutions Ltd,Services to People,Care Payments,02/05/2023,-12.94
Social Care Services,iCare Solutions Ltd,Services to People,Care Payments,02/05/2023,-12.94
Social Care Services,iCare Solutions Ltd,Services to People,Care Payments,02/05/2023,-253.68
Social Care Services,iCare Solutions Ltd,Services to People,Care Payments,02/05/2023,-253.68
Social Care Services,iCare Solutions Ltd,Services to People,Care Payments,02/05/2023,-253.68
Social Care Services,iCare Solutions Ltd,Services to People,Care Payments,02/05/2023,-253.68
Social Care Services,iCare Solutions Ltd,Services to People,Care Payments,02/05/2023,-258.86
Social Care Services,iCare Solutions Ltd,Services to People,Care Payments,02/05/2023,-258.86
Social Care Services,iCare Solutions Ltd,Services to People,Care Payments,02/05/2023,350.7
Social Care Services,iCare Solutions Ltd,Services to People,Care Payments,02/05/2023,140.28
Social Care Services,iCare Solutions Ltd,Services to People,Care Payments,02/05/2023,140.28
Social Care Services,iCare Solutions Ltd,Services to People,Care Payments,02/05/2023,140.28
Social Care Services,iCare Solutions Ltd,Services to People,Care Payments,02/05/2023,120.24
Social Care Services,iCare Solutions Ltd,Services to People,Care Payments,02/05/2023,70.14
Social Care Services,iCare Solutions Ltd,Services to People,Care Payments,02/05/2023,70.14
Social Care Services,iCare Solutions Ltd,Services to People,Care Payments,02/05/2023,60.12
Social Care Services,iCare Solutions Ltd,Services to People,Care Payments,02/05/2023,-22.65
Social Care Services,iCare Solutions Ltd,Services to People,Care Payments,02/05/2023,-54.36
Social Care Services,iCare Solutions Ltd,Services to People,Care Payments,02/05/2023,-63.42
Social Care Services,iCare Solutions Ltd,Services to People,Care Payments,02/05/2023,-63.42
Social Care Services,iCare Solutions Ltd,Services to People,Care Payments,02/05/2023,-167.61
Social Care Services,iCare Solutions Ltd,Services to People,Care Payments,02/05/2023,410.82
Social Care Services,iCare Solutions Ltd,Services to People,Care Payments,02/05/2023,280.56
Social Care Services,iCare Solutions Ltd,Services to People,Care Payments,02/05/2023,200.4
Social Care Services,iCare Solutions Ltd,Services to People,Care Payments,02/05/2023,120.24
Social Care Services,iCare Solutions Ltd,Services to People,Care Payments,02/05/2023,100.2
Social Care Services,iCare Solutions Ltd,Services to People,Care Payments,02/05/2023,75.15
Social Care Services,iCare Solutions Ltd,Services to People,Care Payments,02/05/2023,65.13
Social Care Services,iCare Solutions Ltd,Services to People,Care Payments,02/05/2023,50.1
Social Care Services,iCare Solutions Ltd,Services to People,Care Payments,02/05/2023,50.1
Social Care Services,iCare Solutions Ltd,Services to People,Care Payments,02/05/2023,-12.94
Social Care Services,iCare Solutions Ltd,Services to People,Care Payments,02/05/2023,-45.3
Social Care Services,iCare Solutions Ltd,Services to People,Care Payments,02/05/2023,-50.48
Social Care Services,iCare Solutions Ltd,Services to People,Care Payments,02/05/2023,-58.89
Social Care Services,iCare Solutions Ltd,Services to People,Care Payments,02/05/2023,-181.2
Social Care Services,iCare Solutions Ltd,Services to People,Care Payments,02/05/2023,741.48
Social Care Services,iCare Solutions Ltd,Services to People,Care Payments,02/05/2023,741.48
Social Care Services,iCare Solutions Ltd,Services to People,Care Payments,02/05/2023,350.7
Social Care Services,iCare Solutions Ltd,Services to People,Care Payments,02/05/2023,350.7
Social Care Services,iCare Solutions Ltd,Services to People,Care Payments,02/05/2023,280.56
Social Care Services,iCare Solutions Ltd,Services to People,Care Payments,02/05/2023,150.3
Social Care Services,iCare Solutions Ltd,Services to People,Care Payments,02/05/2023,140.28
Social Care Services,iCare Solutions Ltd,Services to People,Care Payments,02/05/2023,130.26
Social Care Services,iCare Solutions Ltd,Services to People,Care Payments,02/05/2023,105.21
Social Care Services,iCare Solutions Ltd,Services to People,Care Payments,02/05/2023,70.14
Social Care Services,iCare Solutions Ltd,Services to People,Care Payments,02/05/2023,70.14
Social Care Services,iCare Solutions Ltd,Services to People,Care Payments,02/05/2023,-63.42
Social Care Services,iCare Solutions Ltd,Services to People,Care Payments,02/05/2023,-63.42
Social Care Services,iCare Solutions Ltd,Services to People,Care Payments,02/05/2023,-95.13
Social Care Services,iCare Solutions Ltd,Services to People,Care Payments,02/05/2023,-317.1
Social Care Services,iCare Solutions Ltd,Services to People,Care Payments,02/05/2023,-317.1
Social Care Services,iCare Solutions Ltd,Services to People,Care Payments,02/05/2023,561.12
Social Care Services,iCare Solutions Ltd,Services to People,Care Payments,02/05/2023,561.12
Social Care Services,iCare Solutions Ltd,Services to People,Care Payments,02/05/2023,280.56
Social Care Services,iCare Solutions Ltd,Services to People,Care Payments,02/05/2023,280.56
Social Care Services,iCare Solutions Ltd,Services to People,Care Payments,02/05/2023,-50.04
Social Care Services,iCare Solutions Ltd,Services to People,Care Payments,02/05/2023,-50.04
Social Care Services,iCare Solutions Ltd,Services to People,Care Payments,02/05/2023,-51.48
Social Care Services,iCare Solutions Ltd,Services to People,Care Payments,02/05/2023,-54.36
Social Care Services,iCare Solutions Ltd,Services to People,Care Payments,02/05/2023,-100.08
Social Care Services,iCare Solutions Ltd,Services to People,Care Payments,02/05/2023,-102.96
Social Care Services,iCare Solutions Ltd,Services to People,Care Payments,02/05/2023,-108.72
Social Care Services,iCare Solutions Ltd,Services to People,Care Payments,02/05/2023,-108.72
Social Care Services,iCare Solutions Ltd,Services to People,Care Payments,02/05/2023,-253.68
Social Care Services,iCare Solutions Ltd,Services to People,Care Payments,02/05/2023,-289.92
Social Care Services,iCare Solutions Ltd,Services to People,Care Payments,02/05/2023,1963.92
Social Care Services,iCare Solutions Ltd,Services to People,Care Payments,02/05/2023,976.95
Social Care Services,iCare Solutions Ltd,Services to People,Care Payments,02/05/2023,631.26
Social Care Services,iCare Solutions Ltd,Services to People,Care Payments,02/05/2023,631.26
Social Care Services,iCare Solutions Ltd,Services to People,Care Payments,02/05/2023,490.98
Social Care Services,iCare Solutions Ltd,Services to People,Care Payments,02/05/2023,435.87
Social Care Services,iCare Solutions Ltd,Services to People,Care Payments,02/05/2023,420.84
Social Care Services,iCare Solutions Ltd,Services to People,Care Payments,02/05/2023,360.72
Social Care Services,iCare Solutions Ltd,Services to People,Care Payments,02/05/2023,315.63
Social Care Services,iCare Solutions Ltd,Services to People,Care Payments,02/05/2023,315.63
Social Care Services,iCare Solutions Ltd,Services to People,Care Payments,02/05/2023,200.4
Social Care Services,iCare Solutions Ltd,Services to People,Care Payments,02/05/2023,140.28
Social Care Services,iCare Solutions Ltd,Services to People,Care Payments,02/05/2023,90.18
Social Care Services,iCare Solutions Ltd,Services to People,Care Payments,02/05/2023,70.14
Social Care Services,iCare Solutions Ltd,Services to People,Care Payments,02/05/2023,-45.3
Social Care Services,iCare Solutions Ltd,Services to People,Care Payments,02/05/2023,-81.54
Social Care Services,iCare Solutions Ltd,Services to People,Care Payments,02/05/2023,-131.37
Social Care Services,iCare Solutions Ltd,Services to People,Care Payments,02/05/2023,-181.2
Social Care Services,iCare Solutions Ltd,Services to People,Care Payments,02/05/2023,-265.33
Social Care Services,iCare Solutions Ltd,Services to People,Care Payments,02/05/2023,-285.39
Social Care Services,iCare Solutions Ltd,Services to People,Care Payments,02/05/2023,-285.39
Social Care Services,iCare Solutions Ltd,Services to People,Care Payments,02/05/2023,-457.53
Social Care Services,iCare Solutions Ltd,Services to People,Care Payments,02/05/2023,-994.01
Social Care Services,iCare Solutions Ltd,Services to People,Care Payments,02/05/2023,380.76
Social Care Services,iCare Solutions Ltd,Services to People,Care Payments,02/05/2023,160.32
Social Care Services,iCare Solutions Ltd,Services to People,Care Payments,02/05/2023,-144.96
Social Care Services,Bluebird Care,Services to People,Care Payments,02/05/2023,1013.76
Social Care Services,Bluebird Care,Services to People,Care Payments,02/05/2023,887.04
Social Care Services,Bluebird Care,Services to People,Care Payments,02/05/2023,876.48
Social Care Services,Bluebird Care,Services to People,Care Payments,02/05/2023,739.2
Social Care Services,Bluebird Care,Services to People,Care Payments,02/05/2023,686.4
Social Care Services,Bluebird Care,Services to People,Care Payments,02/05/2023,464.64
Social Care Services,Bluebird Care,Services to People,Care Payments,02/05/2023,443.52
Social Care Services,Bluebird Care,Services to People,Care Payments,02/05/2023,195.36
Social Care Services,Bluebird Care,Services to People,Care Payments,02/05/2023,147.84
Social Care Services,Bluebird Care,Services to People,Care Payments,02/05/2023,147.84
Social Care Services,Bluebird Care,Services to People,Care Payments,02/05/2023,84.48
Social Care Services,Bluebird Care,Services to People,Care Payments,02/05/2023,739.2
Social Care Services,Bluebird Care,Services to People,Care Payments,02/05/2023,591.36
Social Care Services,Bluebird Care,Services to People,Care Payments,02/05/2023,63.36
Social Care Services,Bluebird Care,Services to People,Care Payments,02/05/2023,665.28
Social Care Services,Bluebird Care,Services to People,Care Payments,02/05/2023,665.28
Social Care Services,Bluebird Care,Services to People,Care Payments,02/05/2023,591.36
Social Care Services,Bluebird Care,Services to People,Care Payments,02/05/2023,591.36
Social Care Services,Bluebird Care,Services to People,Care Payments,02/05/2023,517.44
Social Care Services,Bluebird Care,Services to People,Care Payments,02/05/2023,517.44
Social Care Services,Bluebird Care,Services to People,Care Payments,02/05/2023,401.28
Social Care Services,Bluebird Care,Services to People,Care Payments,02/05/2023,221.76
Social Care Services,Bluebird Care,Services to People,Care Payments,02/05/2023,221.76
Social Care Services,Bluebird Care,Services to People,Care Payments,02/05/2023,221.76
Social Care Services,Bluebird Care,Services to People,Care Payments,02/05/2023,739.2
Social Care Services,Bluebird Care,Services to People,Care Payments,02/05/2023,739.2
Social Care Services,Bluebird Care,Services to People,Care Payments,02/05/2023,591.36
Social Care Services,Bluebird Care,Services to People,Care Payments,02/05/2023,591.36
Social Care Services,Bluebird Care,Services to People,Care Payments,02/05/2023,295.68
Social Care Services,Bluebird Care,Services to People,Care Payments,02/05/2023,168.96
Social Care Services,Bluebird Care,Services to People,Care Payments,02/05/2023,696.96
Social Care Services,Bluebird Care,Services to People,Care Payments,02/05/2023,591.36
Social Care Services,Bluebird Care,Services to People,Care Payments,02/05/2023,591.36
Social Care Services,Bluebird Care,Services to People,Care Payments,02/05/2023,591.36
Social Care Services,Bluebird Care,Services to People,Care Payments,02/05/2023,591.36
Social Care Services,Bluebird Care,Services to People,Care Payments,02/05/2023,480.48
Social Care Services,Bluebird Care,Services to People,Care Payments,02/05/2023,480.48
Social Care Services,Bluebird Care,Services to People,Care Payments,02/05/2023,401.28
Social Care Services,Bluebird Care,Services to People,Care Payments,02/05/2023,369.6
Social Care Services,Bluebird Care,Services to People,Care Payments,02/05/2023,369.6
Social Care Services,Bluebird Care,Services to People,Care Payments,02/05/2023,369.6
Social Care Services,Bluebird Care,Services to People,Care Payments,02/05/2023,369.6
Social Care Services,Bluebird Care,Services to People,Care Payments,02/05/2023,369.6
Social Care Services,Bluebird Care,Services to People,Care Payments,02/05/2023,295.68
Social Care Services,Bluebird Care,Services to People,Care Payments,02/05/2023,295.68
Social Care Services,Bluebird Care,Services to People,Care Payments,02/05/2023,295.68
Social Care Services,Bluebird Care,Services to People,Care Payments,02/05/2023,232.32
Social Care Services,Bluebird Care,Services to People,Care Payments,02/05/2023,227.04
Social Care Services,Bluebird Care,Services to People,Care Payments,02/05/2023,211.2
Social Care Services,Bluebird Care,Services to People,Care Payments,02/05/2023,665.28
Social Care Services,Bluebird Care,Services to People,Care Payments,02/05/2023,665.28
Social Care Services,Bluebird Care,Services to People,Care Payments,02/05/2023,633.6
Social Care Services,Bluebird Care,Services to People,Care Payments,02/05/2023,633.6
Social Care Services,Bluebird Care,Services to People,Care Payments,02/05/2023,591.36
Social Care Services,Bluebird Care,Services to People,Care Payments,02/05/2023,454.08
Social Care Services,Bluebird Care,Services to People,Care Payments,02/05/2023,454.08
Social Care Services,Bluebird Care,Services to People,Care Payments,02/05/2023,295.68
Social Care Services,Bluebird Care,Services to People,Care Payments,02/05/2023,221.76
Social Care Services,Bluebird Care,Services to People,Care Payments,02/05/2023,179.52
Social Care Services,Bluebird Care,Services to People,Care Payments,02/05/2023,89.76
Social Care Services,Bluebird Care,Services to People,Care Payments,02/05/2023,644.16
Social Care Services,Bluebird Care,Services to People,Care Payments,02/05/2023,443.52
Social Care Services,Bluebird Care,Services to People,Care Payments,02/05/2023,295.68
Social Care Services,Bluebird Care,Services to People,Care Payments,02/05/2023,126.72
Social Care Services,Bluebird Care,Services to People,Care Payments,02/05/2023,105.6
Social Care Services,Bluebird Care,Services to People,Care Payments,02/05/2023,73.92
Social Care Services,Bluebird Care,Services to People,Care Payments,02/05/2023,-267.12
Social Care Services,Bluebird Care,Services to People,Care Payments,02/05/2023,-267.12
Social Care Services,Bluebird Care,Services to People,Care Payments,02/05/2023,-534.24
Social Care Services,Bluebird Care,Services to People,Care Payments,02/05/2023,-534.24
Social Care Services,Bluebird Care,Services to People,Care Payments,02/05/2023,-534.24
Social Care Services,Bluebird Care,Services to People,Care Payments,02/05/2023,-534.24
Social Care Services,Bluebird Care,Services to People,Care Payments,02/05/2023,-534.24
Social Care Services,Bluebird Care,Services to People,Care Payments,02/05/2023,-534.24
Social Care Services,Bluebird Care,Services to People,Care Payments,02/05/2023,-534.24
Social Care Services,Bluebird Care,Services to People,Care Payments,02/05/2023,-534.24
Social Care Services,Bluebird Care,Services to People,Care Payments,02/05/2023,-534.24
Social Care Services,Bluebird Care,Services to People,Care Payments,02/05/2023,-534.24
Social Care Services,Bluebird Care,Services to People,Care Payments,02/05/2023,-534.24
Social Care Services,Bluebird Care,Services to People,Care Payments,02/05/2023,960.96
Social Care Services,Bluebird Care,Services to People,Care Payments,02/05/2023,960.96
Social Care Services,Bluebird Care,Services to People,Care Payments,02/05/2023,591.36
Social Care Services,Bluebird Care,Services to People,Care Payments,02/05/2023,591.36
Social Care Services,Bluebird Care,Services to People,Care Payments,02/05/2023,591.36
Social Care Services,Bluebird Care,Services to People,Care Payments,02/05/2023,591.36
Social Care Services,Bluebird Care,Services to People,Care Payments,02/05/2023,443.52
Social Care Services,Bluebird Care,Services to People,Care Payments,02/05/2023,295.68
Social Care Services,Bluebird Care,Services to People,Care Payments,02/05/2023,295.68
Social Care Services,Bluebird Care,Services to People,Care Payments,02/05/2023,105.6
Social Care Services,Bluebird Care,Services to People,Care Payments,02/05/2023,84.48
Social Care Services,Bluebird Care,Services to People,Care Payments,02/05/2023,52.8
Social Care Services,Bluebird Care,Services to People,Care Payments,02/05/2023,31.68
Social Care Services,Homecare4U Ltd,Services to People,Care Payments,02/05/2023,147.84
Social Care Services,Homecare4U Ltd,Services to People,Care Payments,02/05/2023,739.2
Social Care Services,Homecare4U Ltd,Services to People,Care Payments,02/05/2023,591.36
Social Care Services,Homecare4U Ltd,Services to People,Care Payments,02/05/2023,591.36
Social Care Services,Homecare4U Ltd,Services to People,Care Payments,02/05/2023,591.36
Social Care Services,Homecare4U Ltd,Services to People,Care Payments,02/05/2023,887.04
Social Care Services,Homecare4U Ltd,Services to People,Care Payments,02/05/2023,887.04
Social Care Services,Homecare4U Ltd,Services to People,Care Payments,02/05/2023,549.12
Social Care Services,Homecare4U Ltd,Services to People,Care Payments,02/05/2023,534.24
Social Care Services,Homecare4U Ltd,Services to People,Care Payments,02/05/2023,534.24
Social Care Services,Homecare4U Ltd,Services to People,Care Payments,02/05/2023,534.24
Social Care Services,Homecare4U Ltd,Services to People,Care Payments,02/05/2023,517.44
Social Care Services,Homecare4U Ltd,Services to People,Care Payments,02/05/2023,517.44
Social Care Services,Homecare4U Ltd,Services to People,Care Payments,02/05/2023,485.76
Social Care Services,Homecare4U Ltd,Services to People,Care Payments,02/05/2023,380.16
Social Care Services,Homecare4U Ltd,Services to People,Care Payments,02/05/2023,380.16
Social Care Services,Homecare4U Ltd,Services to People,Care Payments,02/05/2023,337.92
Social Care Services,Homecare4U Ltd,Services to People,Care Payments,02/05/2023,295.68
Social Care Services,Homecare4U Ltd,Services to People,Care Payments,02/05/2023,190.8
Social Care Services,Homecare4U Ltd,Services to People,Care Payments,02/05/2023,147.84
Social Care Services,Homecare4U Ltd,Services to People,Care Payments,02/05/2023,147.84
Social Care Services,Homecare4U Ltd,Services to People,Care Payments,02/05/2023,147.84
Social Care Services,Homecare4U Ltd,Services to People,Care Payments,02/05/2023,76.32
Social Care Services,Homecare4U Ltd,Services to People,Care Payments,02/05/2023,76.32
Social Care Services,Homecare4U Ltd,Services to People,Care Payments,02/05/2023,42.24
Social Care Services,Homecare4U Ltd,Services to People,Care Payments,02/05/2023,31.68
Social Care Services,Homecare4U Ltd,Services to People,Care Payments,02/05/2023,-19.08
Social Care Services,Homecare4U Ltd,Services to People,Care Payments,02/05/2023,-38.16
Social Care Services,Homecare4U Ltd,Services to People,Care Payments,02/05/2023,-38.16
Social Care Services,Homecare4U Ltd,Services to People,Care Payments,02/05/2023,-95.4
Social Care Services,Homecare4U Ltd,Services to People,Care Payments,02/05/2023,-147.84
Social Care Services,Homecare4U Ltd,Services to People,Care Payments,02/05/2023,-267.12
Social Care Services,Homecare4U Ltd,Services to People,Care Payments,02/05/2023,-267.12
Social Care Services,Homecare4U Ltd,Services to People,Care Payments,02/05/2023,-267.12
Social Care Services,Homecare4U Ltd,Services to People,Care Payments,02/05/2023,834.24
Social Care Services,Homecare4U Ltd,Services to People,Care Payments,02/05/2023,538.56
Social Care Services,Homecare4U Ltd,Services to People,Care Payments,02/05/2023,528
Social Care Services,Homecare4U Ltd,Services to People,Care Payments,02/05/2023,506.88
Social Care Services,Homecare4U Ltd,Services to People,Care Payments,02/05/2023,485.76
Social Care Services,Homecare4U Ltd,Services to People,Care Payments,02/05/2023,443.52
Social Care Services,Homecare4U Ltd,Services to People,Care Payments,02/05/2023,316.8
Social Care Services,Homecare4U Ltd,Services to People,Care Payments,02/05/2023,221.76
Social Care Services,Homecare4U Ltd,Services to People,Care Payments,02/05/2023,253.44
Social Care Services,Homecare4U Ltd,Services to People,Care Payments,02/05/2023,739.2
Social Care Services,Homecare4U Ltd,Services to People,Care Payments,02/05/2023,591.36
Social Care Services,Enterprise Care Group Limited,Services to People,Care Payments,02/05/2023,792
Social Care Services,Enterprise Care Group Limited,Services to People,Care Payments,02/05/2023,739.2
Social Care Services,Enterprise Care Group Limited,Services to People,Care Payments,02/05/2023,665.28
Social Care Services,Enterprise Care Group Limited,Services to People,Care Payments,02/05/2023,665.28
Social Care Services,Enterprise Care Group Limited,Services to People,Care Payments,02/05/2023,665.28
Social Care Services,Enterprise Care Group Limited,Services to People,Care Payments,02/05/2023,348.48
Social Care Services,Enterprise Care Group Limited,Services to People,Care Payments,02/05/2023,295.68
Social Care Services,Enterprise Care Group Limited,Services to People,Care Payments,02/05/2023,285.12
Social Care Services,Enterprise Care Group Limited,Services to People,Care Payments,02/05/2023,147.84
Social Care Services,Enterprise Care Group Limited,Services to People,Care Payments,02/05/2023,147.84
Social Care Services,Enterprise Care Group Limited,Services to People,Care Payments,02/05/2023,-84.5
Social Care Services,Enterprise Care Group Limited,Services to People,Care Payments,02/05/2023,-84.5
Social Care Services,Enterprise Care Group Limited,Services to People,Care Payments,02/05/2023,-253.44
Social Care Services,Enterprise Care Group Limited,Services to People,Care Payments,02/05/2023,1098.24
Social Care Services,Enterprise Care Group Limited,Services to People,Care Payments,02/05/2023,1056
Social Care Services,Enterprise Care Group Limited,Services to People,Care Payments,02/05/2023,739.2
Social Care Services,Enterprise Care Group Limited,Services to People,Care Payments,02/05/2023,443.52
Social Care Services,Enterprise Care Group Limited,Services to People,Care Payments,02/05/2023,443.52
Social Care Services,Enterprise Care Group Limited,Services to People,Care Payments,02/05/2023,147.84
Social Care Services,Enterprise Care Group Limited,Services to People,Care Payments,02/05/2023,887.04
Social Care Services,Enterprise Care Group Limited,Services to People,Care Payments,02/05/2023,887.04
Social Care Services,Enterprise Care Group Limited,Services to People,Care Payments,02/05/2023,739.2
Social Care Services,Enterprise Care Group Limited,Services to People,Care Payments,02/05/2023,739.2
Social Care Services,Enterprise Care Group Limited,Services to People,Care Payments,02/05/2023,633.6
Social Care Services,Enterprise Care Group Limited,Services to People,Care Payments,02/05/2023,591.36
Social Care Services,Enterprise Care Group Limited,Services to People,Care Payments,02/05/2023,591.36
Social Care Services,Enterprise Care Group Limited,Services to People,Care Payments,02/05/2023,591.36
Social Care Services,Enterprise Care Group Limited,Services to People,Care Payments,02/05/2023,570.24
Social Care Services,Enterprise Care Group Limited,Services to People,Care Payments,02/05/2023,443.52
Social Care Services,Enterprise Care Group Limited,Services to People,Care Payments,02/05/2023,295.68
Social Care Services,Enterprise Care Group Limited,Services to People,Care Payments,02/05/2023,221.76
Social Care Services,Enterprise Care Group Limited,Services to People,Care Payments,02/05/2023,221.76
Social Care Services,Enterprise Care Group Limited,Services to People,Care Payments,02/05/2023,221.76
Social Care Services,Enterprise Care Group Limited,Services to People,Care Payments,02/05/2023,147.84
Social Care Services,Enterprise Care Group Limited,Services to People,Care Payments,02/05/2023,147.84
Social Care Services,Enterprise Care Group Limited,Services to People,Care Payments,02/05/2023,887.04
Social Care Services,Enterprise Care Group Limited,Services to People,Care Payments,02/05/2023,887.04
Social Care Services,Enterprise Care Group Limited,Services to People,Care Payments,02/05/2023,739.2
Social Care Services,Enterprise Care Group Limited,Services to People,Care Payments,02/05/2023,739.2
Social Care Services,Enterprise Care Group Limited,Services to People,Care Payments,02/05/2023,739.2
Social Care Services,Enterprise Care Group Limited,Services to People,Care Payments,02/05/2023,739.2
Social Care Services,Enterprise Care Group Limited,Services to People,Care Payments,02/05/2023,665.28
Social Care Services,Enterprise Care Group Limited,Services to People,Care Payments,02/05/2023,665.28
Social Care Services,Enterprise Care Group Limited,Services to People,Care Payments,02/05/2023,665.28
Social Care Services,Enterprise Care Group Limited,Services to People,Care Payments,02/05/2023,665.28
Social Care Services,Enterprise Care Group Limited,Services to People,Care Payments,02/05/2023,591.36
Social Care Services,Enterprise Care Group Limited,Services to People,Care Payments,02/05/2023,591.36
Social Care Services,Enterprise Care Group Limited,Services to People,Care Payments,02/05/2023,475.2
Social Care Services,Enterprise Care Group Limited,Services to People,Care Payments,02/05/2023,475.2
Social Care Services,Enterprise Care Group Limited,Services to People,Care Payments,02/05/2023,147.84
Social Care Services,Enterprise Care Group Limited,Services to People,Care Payments,02/05/2023,1056
Social Care Services,Enterprise Care Group Limited,Services to People,Care Payments,02/05/2023,908.16
Social Care Services,Enterprise Care Group Limited,Services to People,Care Payments,02/05/2023,739.2
Social Care Services,Enterprise Care Group Limited,Services to People,Care Payments,02/05/2023,739.2
Social Care Services,Enterprise Care Group Limited,Services to People,Care Payments,02/05/2023,348.48
Social Care Services,Enterprise Care Group Limited,Services to People,Care Payments,02/05/2023,285.12
Social Care Services,Enterprise Care Group Limited,Services to People,Care Payments,02/05/2023,285.12
Social Care Services,Enterprise Care Group Limited,Services to People,Care Payments,02/05/2023,221.76
Social Care Services,Enterprise Care Group Limited,Services to People,Care Payments,02/05/2023,221.76
Social Care Services,Enterprise Care Group Limited,Services to People,Care Payments,02/05/2023,190.08
Social Care Services,Enterprise Care Group Limited,Services to People,Care Payments,02/05/2023,1034.88
Social Care Services,Enterprise Care Group Limited,Services to People,Care Payments,02/05/2023,1034.88
Social Care Services,Enterprise Care Group Limited,Services to People,Care Payments,02/05/2023,960.96
Social Care Services,Enterprise Care Group Limited,Services to People,Care Payments,02/05/2023,960.96
Social Care Services,Enterprise Care Group Limited,Services to People,Care Payments,02/05/2023,591.36
Social Care Services,Enterprise Care Group Limited,Services to People,Care Payments,02/05/2023,591.36
Social Care Services,Enterprise Care Group Limited,Services to People,Care Payments,02/05/2023,506.88
Social Care Services,Enterprise Care Group Limited,Services to People,Care Payments,02/05/2023,506.88
Social Care Services,Enterprise Care Group Limited,Services to People,Care Payments,02/05/2023,295.68
Social Care Services,Enterprise Care Group Limited,Services to People,Care Payments,02/05/2023,295.68
Social Care Services,Enterprise Care Group Limited,Services to People,Care Payments,02/05/2023,295.68
Social Care Services,Enterprise Care Group Limited,Services to People,Care Payments,02/05/2023,295.68
Social Care Services,Enterprise Care Group Limited,Services to People,Care Payments,02/05/2023,190.08
Social Care Services,Enterprise Care Group Limited,Services to People,Care Payments,02/05/2023,147.84
Social Care Services,Enterprise Care Group Limited,Services to People,Care Payments,02/05/2023,126.72
Social Care Services,Enterprise Care Group Limited,Services to People,Care Payments,02/05/2023,591.36
Social Care Services,Enterprise Care Group Limited,Services to People,Care Payments,02/05/2023,591.36
Social Care Services,True Homecare,Services to People,Care Payments,02/05/2023,591.36
Social Care Services,True Homecare,Services to People,Care Payments,02/05/2023,42.24
Social Care Services,True Homecare,Services to People,Care Payments,02/05/2023,665.28
Social Care Services,True Homecare,Services to People,Care Payments,02/05/2023,665.28
Social Care Services,True Homecare,Services to People,Care Payments,02/05/2023,517.44
Social Care Services,True Homecare,Services to People,Care Payments,02/05/2023,380.16
Social Care Services,True Homecare,Services to People,Care Payments,02/05/2023,369.6
Social Care Services,True Homecare,Services to People,Care Payments,02/05/2023,369.6
Social Care Services,True Homecare,Services to People,Care Payments,02/05/2023,316.8
Social Care Services,True Homecare,Services to People,Care Payments,02/05/2023,295.68
Social Care Services,True Homecare,Services to People,Care Payments,02/05/2023,274.56
Social Care Services,True Homecare,Services to People,Care Payments,02/05/2023,238.5
Social Care Services,True Homecare,Services to People,Care Payments,02/05/2023,238.5
Social Care Services,True Homecare,Services to People,Care Payments,02/05/2023,184.8
Social Care Services,True Homecare,Services to People,Care Payments,02/05/2023,184.8
Social Care Services,True Homecare,Services to People,Care Payments,02/05/2023,179.52
Social Care Services,True Homecare,Services to People,Care Payments,02/05/2023,147.84
Social Care Services,True Homecare,Services to People,Care Payments,02/05/2023,119.25
Social Care Services,True Homecare,Services to People,Care Payments,02/05/2023,119.25
Social Care Services,True Homecare,Services to People,Care Payments,02/05/2023,105.6
Social Care Services,True Homecare,Services to People,Care Payments,02/05/2023,105.6
Social Care Services,True Homecare,Services to People,Care Payments,02/05/2023,84.48
Social Care Services,True Homecare,Services to People,Care Payments,02/05/2023,47.7
Social Care Services,True Homecare,Services to People,Care Payments,02/05/2023,47.7
Social Care Services,True Homecare,Services to People,Care Payments,02/05/2023,-47.7
Social Care Services,True Homecare,Services to People,Care Payments,02/05/2023,-119.25
Social Care Services,True Homecare,Services to People,Care Payments,02/05/2023,-184.8
Social Care Services,True Homecare,Services to People,Care Payments,02/05/2023,-238.5
Social Care Services,True Homecare,Services to People,Care Payments,02/05/2023,591.36
Social Care Services,True Homecare,Services to People,Care Payments,02/05/2023,517.44
Social Care Services,True Homecare,Services to People,Care Payments,02/05/2023,464.64
Social Care Services,True Homecare,Services to People,Care Payments,02/05/2023,464.64
Social Care Services,True Homecare,Services to People,Care Payments,02/05/2023,295.68
Social Care Services,True Homecare,Services to People,Care Payments,02/05/2023,168.96
Social Care Services,True Homecare,Services to People,Care Payments,02/05/2023,147.84
Social Care Services,True Homecare,Services to People,Care Payments,02/05/2023,42.24
Social Care Services,Elite Homecare,Services to People,Care Payments,02/05/2023,295.68
Social Care Services,Elite Homecare,Services to People,Care Payments,02/05/2023,1045.44
Social Care Services,Elite Homecare,Services to People,Care Payments,02/05/2023,591.36
Social Care Services,Elite Homecare,Services to People,Care Payments,02/05/2023,359.04
Social Care Services,Elite Homecare,Services to People,Care Payments,02/05/2023,348.48
Social Care Services,Elite Homecare,Services to People,Care Payments,02/05/2023,306.24
Social Care Services,Elite Homecare,Services to People,Care Payments,02/05/2023,42.24
Social Care Services,Elite Homecare,Services to People,Care Payments,02/05/2023,760.32
Social Care Services,Elite Homecare,Services to People,Care Payments,02/05/2023,623.04
Social Care Services,Elite Homecare,Services to People,Care Payments,02/05/2023,506.88
Social Care Services,Elite Homecare,Services to People,Care Payments,02/05/2023,464.64
Social Care Services,Elite Homecare,Services to People,Care Payments,02/05/2023,295.68
Social Care Services,Elite Homecare,Services to People,Care Payments,02/05/2023,253.44
Social Care Services,Elite Homecare,Services to People,Care Payments,02/05/2023,63.36
Social Care Services,Elite Homecare,Services to People,Care Payments,02/05/2023,34.07
Social Care Services,Elite Homecare,Services to People,Care Payments,02/05/2023,-34.07
Social Care Services,Absolute Care and Support (UK) Ltd,Services to People,Care Payments,02/05/2023,580.8
Social Care Services,Absolute Care and Support (UK) Ltd,Services to People,Care Payments,02/05/2023,570.24
Social Care Services,Absolute Care and Support (UK) Ltd,Services to People,Care Payments,02/05/2023,443.52
Social Care Services,Absolute Care and Support (UK) Ltd,Services to People,Care Payments,02/05/2023,253.44
Social Care Services,Absolute Care and Support (UK) Ltd,Services to People,Care Payments,02/05/2023,147.84
Social Care Services,Absolute Care and Support (UK) Ltd,Services to People,Care Payments,02/05/2023,84.48
Social Care Services,Absolute Care and Support (UK) Ltd,Services to People,Care Payments,02/05/2023,274.56
Social Care Services,Absolute Care and Support (UK) Ltd,Services to People,Care Payments,02/05/2023,55
Social Care Services,Absolute Care and Support (UK) Ltd,Services to People,Care Payments,02/05/2023,992.64
Social Care Services,Absolute Care and Support (UK) Ltd,Services to People,Care Payments,02/05/2023,908.16
Social Care Services,Absolute Care and Support (UK) Ltd,Services to People,Care Payments,02/05/2023,739.2
Social Care Services,Absolute Care and Support (UK) Ltd,Services to People,Care Payments,02/05/2023,739.2
Social Care Services,Absolute Care and Support (UK) Ltd,Services to People,Care Payments,02/05/2023,728.64
Social Care Services,Absolute Care and Support (UK) Ltd,Services to People,Care Payments,02/05/2023,675.84
Social Care Services,Absolute Care and Support (UK) Ltd,Services to People,Care Payments,02/05/2023,665.28
Social Care Services,Absolute Care and Support (UK) Ltd,Services to People,Care Payments,02/05/2023,665.28
Social Care Services,Absolute Care and Support (UK) Ltd,Services to People,Care Payments,02/05/2023,665.28
Social Care Services,Absolute Care and Support (UK) Ltd,Services to People,Care Payments,02/05/2023,591.36
Social Care Services,Absolute Care and Support (UK) Ltd,Services to People,Care Payments,02/05/2023,591.36
Social Care Services,Absolute Care and Support (UK) Ltd,Services to People,Care Payments,02/05/2023,591.36
Social Care Services,Absolute Care and Support (UK) Ltd,Services to People,Care Payments,02/05/2023,538.56
Social Care Services,Absolute Care and Support (UK) Ltd,Services to People,Care Payments,02/05/2023,517.44
Social Care Services,Absolute Care and Support (UK) Ltd,Services to People,Care Payments,02/05/2023,506.88
Social Care Services,Absolute Care and Support (UK) Ltd,Services to People,Care Payments,02/05/2023,443.52
Social Care Services,Absolute Care and Support (UK) Ltd,Services to People,Care Payments,02/05/2023,369.6
Social Care Services,Absolute Care and Support (UK) Ltd,Services to People,Care Payments,02/05/2023,369.6
Social Care Services,Absolute Care and Support (UK) Ltd,Services to People,Care Payments,02/05/2023,364.32
Social Care Services,Absolute Care and Support (UK) Ltd,Services to People,Care Payments,02/05/2023,343.2
Social Care Services,Absolute Care and Support (UK) Ltd,Services to People,Care Payments,02/05/2023,343.2
Social Care Services,Absolute Care and Support (UK) Ltd,Services to People,Care Payments,02/05/2023,327.36
Social Care Services,Absolute Care and Support (UK) Ltd,Services to People,Care Payments,02/05/2023,316.8
Social Care Services,Absolute Care and Support (UK) Ltd,Services to People,Care Payments,02/05/2023,295.68
Social Care Services,Absolute Care and Support (UK) Ltd,Services to People,Care Payments,02/05/2023,295.68
Social Care Services,Absolute Care and Support (UK) Ltd,Services to People,Care Payments,02/05/2023,295.68
Social Care Services,Absolute Care and Support (UK) Ltd,Services to People,Care Payments,02/05/2023,285.12
Social Care Services,Absolute Care and Support (UK) Ltd,Services to People,Care Payments,02/05/2023,274.56
Social Care Services,Absolute Care and Support (UK) Ltd,Services to People,Care Payments,02/05/2023,232.32
Social Care Services,Absolute Care and Support (UK) Ltd,Services to People,Care Payments,02/05/2023,232.32
Social Care Services,Absolute Care and Support (UK) Ltd,Services to People,Care Payments,02/05/2023,168.96
Social Care Services,Absolute Care and Support (UK) Ltd,Services to People,Care Payments,02/05/2023,147.84
Social Care Services,Absolute Care and Support (UK) Ltd,Services to People,Care Payments,02/05/2023,147.84
Social Care Services,Absolute Care and Support (UK) Ltd,Services to People,Care Payments,02/05/2023,126.72
Social Care Services,Absolute Care and Support (UK) Ltd,Services to People,Care Payments,02/05/2023,126.72
Social Care Services,Absolute Care and Support (UK) Ltd,Services to People,Care Payments,02/05/2023,126.72
Social Care Services,Absolute Care and Support (UK) Ltd,Services to People,Care Payments,02/05/2023,73.92
Social Care Services,Absolute Care and Support (UK) Ltd,Services to People,Care Payments,02/05/2023,63.36
Social Care Services,Absolute Care and Support (UK) Ltd,Services to People,Care Payments,02/05/2023,63.36
Social Care Services,Absolute Care and Support (UK) Ltd,Services to People,Care Payments,02/05/2023,42.24
Social Care Services,Absolute Care and Support (UK) Ltd,Services to People,Care Payments,02/05/2023,31.68
Social Care Services,Absolute Care and Support (UK) Ltd,Services to People,Care Payments,02/05/2023,31.68
Social Care Services,Absolute Care and Support (UK) Ltd,Services to People,Care Payments,02/05/2023,-19.08
Social Care Services,Absolute Care and Support (UK) Ltd,Services to People,Care Payments,02/05/2023,-33.39
Social Care Services,Absolute Care and Support (UK) Ltd,Services to People,Care Payments,02/05/2023,718.08
Social Care Services,Absolute Care and Support (UK) Ltd,Services to People,Care Payments,02/05/2023,612.48
Social Care Services,Absolute Care and Support (UK) Ltd,Services to People,Care Payments,02/05/2023,591.36
Social Care Services,Absolute Care and Support (UK) Ltd,Services to People,Care Payments,02/05/2023,591.36
Social Care Services,Absolute Care and Support (UK) Ltd,Services to People,Care Payments,02/05/2023,570.24
Social Care Services,Absolute Care and Support (UK) Ltd,Services to People,Care Payments,02/05/2023,380.16
Social Care Services,Absolute Care and Support (UK) Ltd,Services to People,Care Payments,02/05/2023,369.6
Social Care Services,Absolute Care and Support (UK) Ltd,Services to People,Care Payments,02/05/2023,316.8
Social Care Services,Absolute Care and Support (UK) Ltd,Services to People,Care Payments,02/05/2023,295.68
Social Care Services,Absolute Care and Support (UK) Ltd,Services to People,Care Payments,02/05/2023,274.56
Social Care Services,Absolute Care and Support (UK) Ltd,Services to People,Care Payments,02/05/2023,274.56
Social Care Services,Absolute Care and Support (UK) Ltd,Services to People,Care Payments,02/05/2023,195.36
Social Care Services,Absolute Care and Support (UK) Ltd,Services to People,Care Payments,02/05/2023,190.08
Social Care Services,Absolute Care and Support (UK) Ltd,Services to People,Care Payments,02/05/2023,158.4
Social Care Services,Absolute Care and Support (UK) Ltd,Services to People,Care Payments,02/05/2023,147.84
Social Care Services,Absolute Care and Support (UK) Ltd,Services to People,Care Payments,02/05/2023,147.84
Social Care Services,Absolute Care and Support (UK) Ltd,Services to People,Care Payments,02/05/2023,147.84
Social Care Services,Absolute Care and Support (UK) Ltd,Services to People,Care Payments,02/05/2023,147.84
Social Care Services,Absolute Care and Support (UK) Ltd,Services to People,Care Payments,02/05/2023,137.28
Social Care Services,Absolute Care and Support (UK) Ltd,Services to People,Care Payments,02/05/2023,105.6
Social Care Services,Absolute Care and Support (UK) Ltd,Services to People,Care Payments,02/05/2023,95.04
Social Care Services,Absolute Care and Support (UK) Ltd,Services to People,Care Payments,02/05/2023,95.04
Social Care Services,Absolute Care and Support (UK) Ltd,Services to People,Care Payments,02/05/2023,42.24
Social Care Services,Care 24,Services to People,Care Payments,02/05/2023,591.36
Social Care Services,Care 24,Services to People,Care Payments,02/05/2023,264
Social Care Services,Care 24,Services to People,Care Payments,02/05/2023,190.08
Social Care Services,Care 24,Services to People,Care Payments,02/05/2023,95.04
Social Care Services,Care 24,Services to People,Care Payments,02/05/2023,1562.88
Social Care Services,Care 24,Services to People,Care Payments,02/05/2023,652.61
Social Care Services,Care 24,Services to People,Care Payments,02/05/2023,591.36
Social Care Services,Care 24,Services to People,Care Payments,02/05/2023,443.52
Social Care Services,Care 24,Services to People,Care Payments,02/05/2023,443.52
Social Care Services,Care 24,Services to People,Care Payments,02/05/2023,285.12
Social Care Services,Care 24,Services to People,Care Payments,02/05/2023,1256.64
Social Care Services,Care 24,Services to People,Care Payments,02/05/2023,1182.72
Social Care Services,Care 24,Services to People,Care Payments,02/05/2023,665.28
Social Care Services,Care 24,Services to People,Care Payments,02/05/2023,665.28
Social Care Services,Care 24,Services to People,Care Payments,02/05/2023,369.6
Social Care Services,Care 24,Services to People,Care Payments,02/05/2023,221.76
Social Care Services,Care 24,Services to People,Care Payments,02/05/2023,190.08
Social Care Services,Care 24,Services to People,Care Payments,02/05/2023,179.52
Social Care Services,Care 24,Services to People,Care Payments,02/05/2023,2418.24
Social Care Services,Care 24,Services to People,Care Payments,02/05/2023,834.24
Social Care Services,Care 24,Services to People,Care Payments,02/05/2023,739.2
Social Care Services,Care 24,Services to People,Care Payments,02/05/2023,739.2
Social Care Services,Care 24,Services to People,Care Payments,02/05/2023,306.24
Social Care Services,Care 24,Services to People,Care Payments,02/05/2023,221.76
Social Care Services,Care 24,Services to People,Care Payments,02/05/2023,105.6
Social Care Services,Care 24,Services to People,Care Payments,02/05/2023,528
Social Care Services,Angel Home Care Services,Services to People,Care Payments,02/05/2023,665.28
Social Care Services,Angel Home Care Services,Services to People,Care Payments,02/05/2023,422.4
Social Care Services,Angel Home Care Services,Services to People,Care Payments,02/05/2023,295.68
Social Care Services,Angel Home Care Services,Services to People,Care Payments,02/05/2023,221.76
Social Care Services,Angel Home Care Services,Services to People,Care Payments,02/05/2023,147.84
Social Care Services,Angel Home Care Services,Services to People,Care Payments,02/05/2023,95.04
Social Care Services,Angel Home Care Services,Services to People,Care Payments,02/05/2023,95.04
Social Care Services,Angel Home Care Services,Services to People,Care Payments,02/05/2023,1478.4
Social Care Services,Angel Home Care Services,Services to People,Care Payments,02/05/2023,971.52
Social Care Services,Angel Home Care Services,Services to People,Care Payments,02/05/2023,887.04
Social Care Services,Angel Home Care Services,Services to People,Care Payments,02/05/2023,887.04
Social Care Services,Angel Home Care Services,Services to People,Care Payments,02/05/2023,749.76
Social Care Services,Angel Home Care Services,Services to People,Care Payments,02/05/2023,739.2
Social Care Services,Angel Home Care Services,Services to People,Care Payments,02/05/2023,739.2
Social Care Services,Angel Home Care Services,Services to People,Care Payments,02/05/2023,739.2
Social Care Services,Angel Home Care Services,Services to People,Care Payments,02/05/2023,718.08
Social Care Services,Angel Home Care Services,Services to People,Care Payments,02/05/2023,686.4
Social Care Services,Angel Home Care Services,Services to People,Care Payments,02/05/2023,665.28
Social Care Services,Angel Home Care Services,Services to People,Care Payments,02/05/2023,665.28
Social Care Services,Angel Home Care Services,Services to People,Care Payments,02/05/2023,665.28
Social Care Services,Angel Home Care Services,Services to People,Care Payments,02/05/2023,665.28
Social Care Services,Angel Home Care Services,Services to People,Care Payments,02/05/2023,665.28
Social Care Services,Angel Home Care Services,Services to People,Care Payments,02/05/2023,665.28
Social Care Services,Angel Home Care Services,Services to People,Care Payments,02/05/2023,665.28
Social Care Services,Angel Home Care Services,Services to People,Care Payments,02/05/2023,665.28
Social Care Services,Angel Home Care Services,Services to People,Care Payments,02/05/2023,644.16
Social Care Services,Angel Home Care Services,Services to People,Care Payments,02/05/2023,601.92
Social Care Services,Angel Home Care Services,Services to People,Care Payments,02/05/2023,601.02
Social Care Services,Angel Home Care Services,Services to People,Care Payments,02/05/2023,601.02
Social Care Services,Angel Home Care Services,Services to People,Care Payments,02/05/2023,601.02
Social Care Services,Angel Home Care Services,Services to People,Care Payments,02/05/2023,580.8
Social Care Services,Angel Home Care Services,Services to People,Care Payments,02/05/2023,580.8
Social Care Services,Angel Home Care Services,Services to People,Care Payments,02/05/2023,580.8
Social Care Services,Angel Home Care Services,Services to People,Care Payments,02/05/2023,543.84
Social Care Services,Angel Home Care Services,Services to People,Care Payments,02/05/2023,515.16
Social Care Services,Angel Home Care Services,Services to People,Care Payments,02/05/2023,443.52
Social Care Services,Angel Home Care Services,Services to People,Care Payments,02/05/2023,443.52
Social Care Services,Angel Home Care Services,Services to People,Care Payments,02/05/2023,443.52
Social Care Services,Angel Home Care Services,Services to People,Care Payments,02/05/2023,443.52
Social Care Services,Angel Home Care Services,Services to People,Care Payments,02/05/2023,380.16
Social Care Services,Angel Home Care Services,Services to People,Care Payments,02/05/2023,369.6
Social Care Services,Angel Home Care Services,Services to People,Care Payments,02/05/2023,369.6
Social Care Services,Angel Home Care Services,Services to People,Care Payments,02/05/2023,337.92
Social Care Services,Angel Home Care Services,Services to People,Care Payments,02/05/2023,337.92
Social Care Services,Angel Home Care Services,Services to People,Care Payments,02/05/2023,332.64
Social Care Services,Angel Home Care Services,Services to People,Care Payments,02/05/2023,306.24
Social Care Services,Angel Home Care Services,Services to People,Care Payments,02/05/2023,295.68
Social Care Services,Angel Home Care Services,Services to People,Care Payments,02/05/2023,295.68
Social Care Services,Angel Home Care Services,Services to People,Care Payments,02/05/2023,295.68
Social Care Services,Angel Home Care Services,Services to People,Care Payments,02/05/2023,295.68
Social Care Services,Angel Home Care Services,Services to People,Care Payments,02/05/2023,253.44
Social Care Services,Angel Home Care Services,Services to People,Care Payments,02/05/2023,221.76
Social Care Services,Angel Home Care Services,Services to People,Care Payments,02/05/2023,221.76
Social Care Services,Angel Home Care Services,Services to People,Care Payments,02/05/2023,214.65
Social Care Services,Angel Home Care Services,Services to People,Care Payments,02/05/2023,211.2
Social Care Services,Angel Home Care Services,Services to People,Care Payments,02/05/2023,211.2
Social Care Services,Angel Home Care Services,Services to People,Care Payments,02/05/2023,211.2
Social Care Services,Angel Home Care Services,Services to People,Care Payments,02/05/2023,168.96
Social Care Services,Angel Home Care Services,Services to People,Care Payments,02/05/2023,158.4
Social Care Services,Angel Home Care Services,Services to People,Care Payments,02/05/2023,158.4
Social Care Services,Angel Home Care Services,Services to People,Care Payments,02/05/2023,147.84
Social Care Services,Angel Home Care Services,Services to People,Care Payments,02/05/2023,147.84
Social Care Services,Angel Home Care Services,Services to People,Care Payments,02/05/2023,147.84
Social Care Services,Angel Home Care Services,Services to People,Care Payments,02/05/2023,147.84
Social Care Services,Angel Home Care Services,Services to People,Care Payments,02/05/2023,147.84
Social Care Services,Angel Home Care Services,Services to People,Care Payments,02/05/2023,85.86
Social Care Services,Angel Home Care Services,Services to People,Care Payments,02/05/2023,63.36
Social Care Services,Angel Home Care Services,Services to People,Care Payments,02/05/2023,57.24
Social Care Services,Angel Home Care Services,Services to People,Care Payments,02/05/2023,42.24
Social Care Services,Angel Home Care Services,Services to People,Care Payments,02/05/2023,42.24
Social Care Services,Angel Home Care Services,Services to People,Care Payments,02/05/2023,38.16
Social Care Services,Angel Home Care Services,Services to People,Care Payments,02/05/2023,38.16
Social Care Services,Angel Home Care Services,Services to People,Care Payments,02/05/2023,19.08
Social Care Services,Angel Home Care Services,Services to People,Care Payments,02/05/2023,-38.16
Social Care Services,Angel Home Care Services,Services to People,Care Payments,02/05/2023,-57.24
Social Care Services,Angel Home Care Services,Services to People,Care Payments,02/05/2023,-85.86
Social Care Services,Angel Home Care Services,Services to People,Care Payments,02/05/2023,-147.84
Social Care Services,Angel Home Care Services,Services to People,Care Payments,02/05/2023,-214.65
Social Care Services,Angel Home Care Services,Services to People,Care Payments,02/05/2023,-221.76
Social Care Services,Angel Home Care Services,Services to People,Care Payments,02/05/2023,-300.51
Social Care Services,Angel Home Care Services,Services to People,Care Payments,02/05/2023,-332.64
Social Care Services,Angel Home Care Services,Services to People,Care Payments,02/05/2023,-601.02
Social Care Services,Angel Home Care Services,Services to People,Care Payments,02/05/2023,-601.02
Social Care Services,Angel Home Care Services,Services to People,Care Payments,02/05/2023,-601.02
Social Care Services,Angel Home Care Services,Services to People,Care Payments,02/05/2023,464.64
Social Care Services,Angel Home Care Services,Services to People,Care Payments,02/05/2023,443.52
Social Care Services,Angel Home Care Services,Services to People,Care Payments,02/05/2023,211.2
Social Care Services,Angel Home Care Services,Services to People,Care Payments,02/05/2023,443.52
Social Care Services,Angel Home Care Services,Services to People,Care Payments,02/05/2023,887.04
Social Care Services,Angel Home Care Services,Services to People,Care Payments,02/05/2023,570.24
Social Care Services,Angel Home Care Services,Services to People,Care Payments,02/05/2023,570.24
Social Care Services,Angel Home Care Services,Services to People,Care Payments,02/05/2023,253.44
Social Care Services,Angel Home Care Services,Services to People,Care Payments,02/05/2023,84.48
Social Care Services,Angel Home Care Services,Services to People,Care Payments,02/05/2023,84.48
Social Care Services,Angel Home Care Services,Services to People,Care Payments,02/05/2023,739.2
Social Care Services,Angel Home Care Services,Services to People,Care Payments,02/05/2023,454.08
Social Care Services,Angel Home Care Services,Services to People,Care Payments,02/05/2023,454.08
Social Care Services,Prolife Healthcare Services,Services to People,Care Payments,02/05/2023,887.04
Social Care Services,Prolife Healthcare Services,Services to People,Care Payments,02/05/2023,686.4
Social Care Services,Prolife Healthcare Services,Services to People,Care Payments,02/05/2023,591.36
Social Care Services,Prolife Healthcare Services,Services to People,Care Payments,02/05/2023,591.36
Social Care Services,Prolife Healthcare Services,Services to People,Care Payments,02/05/2023,591.36
Social Care Services,Prolife Healthcare Services,Services to People,Care Payments,02/05/2023,591.36
Social Care Services,Prolife Healthcare Services,Services to People,Care Payments,02/05/2023,570.24
Social Care Services,Prolife Healthcare Services,Services to People,Care Payments,02/05/2023,506.88
Social Care Services,Prolife Healthcare Services,Services to People,Care Payments,02/05/2023,506.88
Social Care Services,Prolife Healthcare Services,Services to People,Care Payments,02/05/2023,443.52
Social Care Services,Prolife Healthcare Services,Services to People,Care Payments,02/05/2023,443.52
Social Care Services,Prolife Healthcare Services,Services to People,Care Payments,02/05/2023,443.52
Social Care Services,Prolife Healthcare Services,Services to People,Care Payments,02/05/2023,443.52
Social Care Services,Prolife Healthcare Services,Services to People,Care Payments,02/05/2023,443.52
Social Care Services,Prolife Healthcare Services,Services to People,Care Payments,02/05/2023,443.52
Social Care Services,Prolife Healthcare Services,Services to People,Care Payments,02/05/2023,380.16
Social Care Services,Prolife Healthcare Services,Services to People,Care Payments,02/05/2023,332.64
Social Care Services,Prolife Healthcare Services,Services to People,Care Payments,02/05/2023,84.48
Social Care Services,Prolife Healthcare Services,Services to People,Care Payments,02/05/2023,31.68
Social Care Services,Prolife Healthcare Services,Services to People,Care Payments,02/05/2023,960.96
Social Care Services,Prolife Healthcare Services,Services to People,Care Payments,02/05/2023,960.96
Social Care Services,Prolife Healthcare Services,Services to People,Care Payments,02/05/2023,770.88
Social Care Services,Prolife Healthcare Services,Services to People,Care Payments,02/05/2023,686.4
Social Care Services,Prolife Healthcare Services,Services to People,Care Payments,02/05/2023,591.36
Social Care Services,Prolife Healthcare Services,Services to People,Care Payments,02/05/2023,591.36
Social Care Services,Prolife Healthcare Services,Services to People,Care Payments,02/05/2023,591.36
Social Care Services,Prolife Healthcare Services,Services to People,Care Payments,02/05/2023,443.52
Social Care Services,Prolife Healthcare Services,Services to People,Care Payments,02/05/2023,274.56
Social Care Services,Prolife Healthcare Services,Services to People,Care Payments,02/05/2023,147.84
Social Care Services,Prolife Healthcare Services,Services to People,Care Payments,02/05/2023,147.84
Social Care Services,Prolife Healthcare Services,Services to People,Care Payments,02/05/2023,-126.72
Social Care Services,Prolife Healthcare Services,Services to People,Care Payments,02/05/2023,591.36
Social Care Services,Prolife Healthcare Services,Services to People,Care Payments,02/05/2023,443.52
Social Care Services,Prolife Healthcare Services,Services to People,Care Payments,02/05/2023,211.2
Social Care Services,Prime Support Service Ltd,Services to People,Care Payments,02/05/2023,1103.52
Social Care Services,Prime Support Service Ltd,Services to People,Care Payments,02/05/2023,295.68
Social Care Services,Prime Support Service Ltd,Services to People,Care Payments,02/05/2023,232.32
Social Care Services,Prime Support Service Ltd,Services to People,Care Payments,02/05/2023,971.52
Social Care Services,Prime Support Service Ltd,Services to People,Care Payments,02/05/2023,887.04
Social Care Services,Prime Support Service Ltd,Services to People,Care Payments,02/05/2023,601.92
Social Care Services,Prime Support Service Ltd,Services to People,Care Payments,02/05/2023,422.4
Social Care Services,Prime Support Service Ltd,Services to People,Care Payments,02/05/2023,422.4
Social Care Services,Prime Support Service Ltd,Services to People,Care Payments,02/05/2023,105.6
Social Care Services,Prime Support Service Ltd,Services to People,Care Payments,02/05/2023,63.36
Social Care Services,Prime Support Service Ltd,Services to People,Care Payments,02/05/2023,211.2
Social Care Services,Prime Support Service Ltd,Services to People,Care Payments,02/05/2023,84.48
Social Care Services,Prime Support Service Ltd,Services to People,Care Payments,02/05/2023,591.36
Social Care Services,Prime Support Service Ltd,Services to People,Care Payments,02/05/2023,591.36
Social Care Services,Prime Support Service Ltd,Services to People,Care Payments,02/05/2023,168.96
Social Care Services,Prime Support Service Ltd,Services to People,Care Payments,02/05/2023,126.72
Social Care Services,Prime Support Service Ltd,Services to People,Care Payments,02/05/2023,84.48
Social Care Services,Prime Support Service Ltd,Services to People,Care Payments,02/05/2023,63.36
Social Care Services,Prime Support Service Ltd,Services to People,Care Payments,02/05/2023,887.04
Social Care Services,Prime Support Service Ltd,Services to People,Care Payments,02/05/2023,538.56
Social Care Services,Prime Support Service Ltd,Services to People,Care Payments,02/05/2023,295.68
Social Care Services,Prime Support Service Ltd,Services to People,Care Payments,02/05/2023,126.72
Social Care Services,Prime Support Service Ltd,Services to People,Care Payments,02/05/2023,126.72
Social Care Services,Prime Support Service Ltd,Services to People,Care Payments,02/05/2023,105.6
Recruitment / Staffing,Routes Healthcare(North),Services to People,Care Payments,02/05/2023,665.28
Recruitment / Staffing,Routes Healthcare(North),Services to People,Care Payments,02/05/2023,665.28
Recruitment / Staffing,Routes Healthcare(North),Services to People,Care Payments,02/05/2023,443.52
Recruitment / Staffing,Routes Healthcare(North),Services to People,Care Payments,02/05/2023,591.36
Recruitment / Staffing,Routes Healthcare(North),Services to People,Care Payments,02/05/2023,253.44
Recruitment / Staffing,Routes Healthcare(North),Services to People,Care Payments,02/05/2023,221.76
Recruitment / Staffing,Routes Healthcare(North),Services to People,Care Payments,02/05/2023,147.84
Recruitment / Staffing,Routes Healthcare(North),Services to People,Care Payments,02/05/2023,73.92
Recruitment / Staffing,Routes Healthcare(North),Services to People,Care Payments,02/05/2023,63.36
Social Care Services,Smartway Health and Social Care Ltd,Services to People,Care Payments,02/05/2023,739.2
Social Care Services,Smartway Health and Social Care Ltd,Services to People,Care Payments,02/05/2023,739.2
Social Care Services,Smartway Health and Social Care Ltd,Services to People,Care Payments,02/05/2023,665.28
Social Care Services,Smartway Health and Social Care Ltd,Services to People,Care Payments,02/05/2023,665.28
Social Care Services,Smartway Health and Social Care Ltd,Services to People,Care Payments,02/05/2023,665.28
Social Care Services,Smartway Health and Social Care Ltd,Services to People,Care Payments,02/05/2023,665.28
Social Care Services,Smartway Health and Social Care Ltd,Services to People,Care Payments,02/05/2023,665.28
Social Care Services,Smartway Health and Social Care Ltd,Services to People,Care Payments,02/05/2023,633.6
Social Care Services,Smartway Health and Social Care Ltd,Services to People,Care Payments,02/05/2023,633.6
Social Care Services,Smartway Health and Social Care Ltd,Services to People,Care Payments,02/05/2023,623.04
Social Care Services,Smartway Health and Social Care Ltd,Services to People,Care Payments,02/05/2023,617.76
Social Care Services,Smartway Health and Social Care Ltd,Services to People,Care Payments,02/05/2023,591.36
Social Care Services,Smartway Health and Social Care Ltd,Services to People,Care Payments,02/05/2023,591.36
Social Care Services,Smartway Health and Social Care Ltd,Services to People,Care Payments,02/05/2023,591.36
Social Care Services,Smartway Health and Social Care Ltd,Services to People,Care Payments,02/05/2023,591.36
Social Care Services,Smartway Health and Social Care Ltd,Services to People,Care Payments,02/05/2023,591.36
Social Care Services,Smartway Health and Social Care Ltd,Services to People,Care Payments,02/05/2023,591.36
Social Care Services,Smartway Health and Social Care Ltd,Services to People,Care Payments,02/05/2023,591.36
Social Care Services,Smartway Health and Social Care Ltd,Services to People,Care Payments,02/05/2023,580.8
Social Care Services,Smartway Health and Social Care Ltd,Services to People,Care Payments,02/05/2023,580.8
Social Care Services,Smartway Health and Social Care Ltd,Services to People,Care Payments,02/05/2023,543.84
Social Care Services,Smartway Health and Social Care Ltd,Services to People,Care Payments,02/05/2023,543.84
Social Care Services,Smartway Health and Social Care Ltd,Services to People,Care Payments,02/05/2023,534.24
Social Care Services,Smartway Health and Social Care Ltd,Services to People,Care Payments,02/05/2023,534.24
Social Care Services,Smartway Health and Social Care Ltd,Services to People,Care Payments,02/05/2023,517.44
Social Care Services,Smartway Health and Social Care Ltd,Services to People,Care Payments,02/05/2023,517.44
Social Care Services,Smartway Health and Social Care Ltd,Services to People,Care Payments,02/05/2023,454.08
Social Care Services,Smartway Health and Social Care Ltd,Services to People,Care Payments,02/05/2023,443.52
Social Care Services,Smartway Health and Social Care Ltd,Services to People,Care Payments,02/05/2023,443.52
Social Care Services,Smartway Health and Social Care Ltd,Services to People,Care Payments,02/05/2023,422.4
Social Care Services,Smartway Health and Social Care Ltd,Services to People,Care Payments,02/05/2023,374.88
Social Care Services,Smartway Health and Social Care Ltd,Services to People,Care Payments,02/05/2023,374.88
Social Care Services,Smartway Health and Social Care Ltd,Services to People,Care Payments,02/05/2023,337.92
Social Care Services,Smartway Health and Social Care Ltd,Services to People,Care Payments,02/05/2023,316.8
Social Care Services,Smartway Health and Social Care Ltd,Services to People,Care Payments,02/05/2023,306.24
Social Care Services,Smartway Health and Social Care Ltd,Services to People,Care Payments,02/05/2023,295.68
Social Care Services,Smartway Health and Social Care Ltd,Services to People,Care Payments,02/05/2023,295.68
Social Care Services,Smartway Health and Social Care Ltd,Services to People,Care Payments,02/05/2023,295.68
Social Care Services,Smartway Health and Social Care Ltd,Services to People,Care Payments,02/05/2023,295.68
Social Care Services,Smartway Health and Social Care Ltd,Services to People,Care Payments,02/05/2023,295.68
Social Care Services,Smartway Health and Social Care Ltd,Services to People,Care Payments,02/05/2023,295.68
Social Care Services,Smartway Health and Social Care Ltd,Services to People,Care Payments,02/05/2023,274.56
Social Care Services,Smartway Health and Social Care Ltd,Services to People,Care Payments,02/05/2023,211.2
Social Care Services,Smartway Health and Social Care Ltd,Services to People,Care Payments,02/05/2023,211.2
Social Care Services,Smartway Health and Social Care Ltd,Services to People,Care Payments,02/05/2023,190.8
Social Care Services,Smartway Health and Social Care Ltd,Services to People,Care Payments,02/05/2023,168.96
Social Care Services,Smartway Health and Social Care Ltd,Services to People,Care Payments,02/05/2023,147.84
Social Care Services,Smartway Health and Social Care Ltd,Services to People,Care Payments,02/05/2023,147.84
Social Care Services,Smartway Health and Social Care Ltd,Services to People,Care Payments,02/05/2023,147.84
Social Care Services,Smartway Health and Social Care Ltd,Services to People,Care Payments,02/05/2023,126.72
Social Care Services,Smartway Health and Social Care Ltd,Services to People,Care Payments,02/05/2023,116.16
Social Care Services,Smartway Health and Social Care Ltd,Services to People,Care Payments,02/05/2023,84.48
Social Care Services,Smartway Health and Social Care Ltd,Services to People,Care Payments,02/05/2023,76.32
Social Care Services,Smartway Health and Social Care Ltd,Services to People,Care Payments,02/05/2023,42.24
Social Care Services,Smartway Health and Social Care Ltd,Services to People,Care Payments,02/05/2023,42.24
Social Care Services,Smartway Health and Social Care Ltd,Services to People,Care Payments,02/05/2023,42.24
Social Care Services,Smartway Health and Social Care Ltd,Services to People,Care Payments,02/05/2023,33.39
Social Care Services,Smartway Health and Social Care Ltd,Services to People,Care Payments,02/05/2023,-21.12
Social Care Services,Smartway Health and Social Care Ltd,Services to People,Care Payments,02/05/2023,-22.26
Social Care Services,Smartway Health and Social Care Ltd,Services to People,Care Payments,02/05/2023,-28.62
Social Care Services,Smartway Health and Social Care Ltd,Services to People,Care Payments,02/05/2023,-44.52
Social Care Services,Smartway Health and Social Care Ltd,Services to People,Care Payments,02/05/2023,-57.24
Social Care Services,Smartway Health and Social Care Ltd,Services to People,Care Payments,02/05/2023,-57.24
Social Care Services,Smartway Health and Social Care Ltd,Services to People,Care Payments,02/05/2023,-57.24
Social Care Services,Smartway Health and Social Care Ltd,Services to People,Care Payments,02/05/2023,-143.1
Social Care Services,Smartway Health and Social Care Ltd,Services to People,Care Payments,02/05/2023,-147.84
Social Care Services,Smartway Health and Social Care Ltd,Services to People,Care Payments,02/05/2023,-190.8
Social Care Services,Smartway Health and Social Care Ltd,Services to People,Care Payments,02/05/2023,-400.68
Social Care Services,Smartway Health and Social Care Ltd,Services to People,Care Payments,02/05/2023,675.84
Social Care Services,Smartway Health and Social Care Ltd,Services to People,Care Payments,02/05/2023,591.36
Social Care Services,Smartway Health and Social Care Ltd,Services to People,Care Payments,02/05/2023,591.36
Social Care Services,Smartway Health and Social Care Ltd,Services to People,Care Payments,02/05/2023,538.56
Social Care Services,Smartway Health and Social Care Ltd,Services to People,Care Payments,02/05/2023,443.52
Social Care Services,Smartway Health and Social Care Ltd,Services to People,Care Payments,02/05/2023,443.52
Social Care Services,Smartway Health and Social Care Ltd,Services to People,Care Payments,02/05/2023,443.52
Social Care Services,Smartway Health and Social Care Ltd,Services to People,Care Payments,02/05/2023,443.52
Social Care Services,Smartway Health and Social Care Ltd,Services to People,Care Payments,02/05/2023,380.16
Social Care Services,Smartway Health and Social Care Ltd,Services to People,Care Payments,02/05/2023,327.36
Social Care Services,Smartway Health and Social Care Ltd,Services to People,Care Payments,02/05/2023,316.8
Social Care Services,Smartway Health and Social Care Ltd,Services to People,Care Payments,02/05/2023,306.24
Social Care Services,Smartway Health and Social Care Ltd,Services to People,Care Payments,02/05/2023,295.68
Social Care Services,Smartway Health and Social Care Ltd,Services to People,Care Payments,02/05/2023,295.68
Social Care Services,Smartway Health and Social Care Ltd,Services to People,Care Payments,02/05/2023,295.68
Social Care Services,Smartway Health and Social Care Ltd,Services to People,Care Payments,02/05/2023,295.68
Social Care Services,Smartway Health and Social Care Ltd,Services to People,Care Payments,02/05/2023,295.68
Social Care Services,Smartway Health and Social Care Ltd,Services to People,Care Payments,02/05/2023,289.65
Social Care Services,Smartway Health and Social Care Ltd,Services to People,Care Payments,02/05/2023,147.84
Social Care Services,Smartway Health and Social Care Ltd,Services to People,Care Payments,02/05/2023,147.84
Social Care Services,Smartway Health and Social Care Ltd,Services to People,Care Payments,02/05/2023,147.84
Social Care Services,Smartway Health and Social Care Ltd,Services to People,Care Payments,02/05/2023,147.84
Social Care Services,Smartway Health and Social Care Ltd,Services to People,Care Payments,02/05/2023,147.84
Social Care Services,Smartway Health and Social Care Ltd,Services to People,Care Payments,02/05/2023,116.16
Social Care Services,Smartway Health and Social Care Ltd,Services to People,Care Payments,02/05/2023,72.41
Social Care Services,Smartway Health and Social Care Ltd,Services to People,Care Payments,02/05/2023,84.48
Social Care Services,Smartway Health and Social Care Ltd,Services to People,Care Payments,02/05/2023,295.68
Social Care Services,Smartway Health and Social Care Ltd,Services to People,Care Payments,02/05/2023,221.76
Social Care Services,AMB Care Ltd T/A My Homecare,Services to People,Care Payments,02/05/2023,591.36
Social Care Services,AMB Care Ltd T/A My Homecare,Services to People,Care Payments,02/05/2023,327.36
Social Care Services,AMB Care Ltd T/A My Homecare,Services to People,Care Payments,02/05/2023,960.96
Social Care Services,AMB Care Ltd T/A My Homecare,Services to People,Care Payments,02/05/2023,665.28
Social Care Services,AMB Care Ltd T/A My Homecare,Services to People,Care Payments,02/05/2023,591.36
Social Care Services,AMB Care Ltd T/A My Homecare,Services to People,Care Payments,02/05/2023,591.36
Social Care Services,AMB Care Ltd T/A My Homecare,Services to People,Care Payments,02/05/2023,591.36
Social Care Services,AMB Care Ltd T/A My Homecare,Services to People,Care Payments,02/05/2023,253.44
Social Care Services,AMB Care Ltd T/A My Homecare,Services to People,Care Payments,02/05/2023,929.28
Social Care Services,AMB Care Ltd T/A My Homecare,Services to People,Care Payments,02/05/2023,929.28
Social Care Services,AMB Care Ltd T/A My Homecare,Services to People,Care Payments,02/05/2023,813.12
Social Care Services,AMB Care Ltd T/A My Homecare,Services to People,Care Payments,02/05/2023,749.76
Social Care Services,AMB Care Ltd T/A My Homecare,Services to People,Care Payments,02/05/2023,665.28
Social Care Services,AMB Care Ltd T/A My Homecare,Services to People,Care Payments,02/05/2023,665.28
Social Care Services,AMB Care Ltd T/A My Homecare,Services to People,Care Payments,02/05/2023,633.6
Social Care Services,AMB Care Ltd T/A My Homecare,Services to People,Care Payments,02/05/2023,591.36
Social Care Services,AMB Care Ltd T/A My Homecare,Services to People,Care Payments,02/05/2023,591.36
Social Care Services,AMB Care Ltd T/A My Homecare,Services to People,Care Payments,02/05/2023,591.36
Social Care Services,AMB Care Ltd T/A My Homecare,Services to People,Care Payments,02/05/2023,464.64
Social Care Services,AMB Care Ltd T/A My Homecare,Services to People,Care Payments,02/05/2023,464.64
Social Care Services,AMB Care Ltd T/A My Homecare,Services to People,Care Payments,02/05/2023,443.52
Social Care Services,AMB Care Ltd T/A My Homecare,Services to People,Care Payments,02/05/2023,380.16
Social Care Services,AMB Care Ltd T/A My Homecare,Services to People,Care Payments,02/05/2023,295.68
Social Care Services,AMB Care Ltd T/A My Homecare,Services to People,Care Payments,02/05/2023,295.68
Social Care Services,AMB Care Ltd T/A My Homecare,Services to People,Care Payments,02/05/2023,211.2
Social Care Services,AMB Care Ltd T/A My Homecare,Services to People,Care Payments,02/05/2023,179.9
Social Care Services,AMB Care Ltd T/A My Homecare,Services to People,Care Payments,02/05/2023,179.9
Social Care Services,AMB Care Ltd T/A My Homecare,Services to People,Care Payments,02/05/2023,147.84
Social Care Services,AMB Care Ltd T/A My Homecare,Services to People,Care Payments,02/05/2023,119.93
Social Care Services,AMB Care Ltd T/A My Homecare,Services to People,Care Payments,02/05/2023,119.93
Social Care Services,AMB Care Ltd T/A My Homecare,Services to People,Care Payments,02/05/2023,-76.32
Social Care Services,AMB Care Ltd T/A My Homecare,Services to People,Care Payments,02/05/2023,-76.32
Social Care Services,AMB Care Ltd T/A My Homecare,Services to People,Care Payments,02/05/2023,-114.48
Social Care Services,AMB Care Ltd T/A My Homecare,Services to People,Care Payments,02/05/2023,-114.48
Social Care Services,AMB Care Ltd T/A My Homecare,Services to People,Care Payments,02/05/2023,-295.68
Social Care Services,AMB Care Ltd T/A My Homecare,Services to People,Care Payments,02/05/2023,-295.68
Social Care Services,AMB Care Ltd T/A My Homecare,Services to People,Care Payments,02/05/2023,686.4
Social Care Services,AMB Care Ltd T/A My Homecare,Services to People,Care Payments,02/05/2023,675.84
Social Care Services,AMB Care Ltd T/A My Homecare,Services to People,Care Payments,02/05/2023,665.28
Social Care Services,AMB Care Ltd T/A My Homecare,Services to People,Care Payments,02/05/2023,665.28
Social Care Services,AMB Care Ltd T/A My Homecare,Services to People,Care Payments,02/05/2023,665.28
Social Care Services,AMB Care Ltd T/A My Homecare,Services to People,Care Payments,02/05/2023,665.28
Social Care Services,AMB Care Ltd T/A My Homecare,Services to People,Care Payments,02/05/2023,665.28
Social Care Services,AMB Care Ltd T/A My Homecare,Services to People,Care Payments,02/05/2023,665.28
Social Care Services,AMB Care Ltd T/A My Homecare,Services to People,Care Payments,02/05/2023,665.28
Social Care Services,AMB Care Ltd T/A My Homecare,Services to People,Care Payments,02/05/2023,633.6
Social Care Services,AMB Care Ltd T/A My Homecare,Services to People,Care Payments,02/05/2023,591.36
Social Care Services,AMB Care Ltd T/A My Homecare,Services to People,Care Payments,02/05/2023,591.36
Social Care Services,AMB Care Ltd T/A My Homecare,Services to People,Care Payments,02/05/2023,443.52
Social Care Services,AMB Care Ltd T/A My Homecare,Services to People,Care Payments,02/05/2023,401.28
Social Care Services,AMB Care Ltd T/A My Homecare,Services to People,Care Payments,02/05/2023,369.6
Social Care Services,AMB Care Ltd T/A My Homecare,Services to People,Care Payments,02/05/2023,369.6
Social Care Services,AMB Care Ltd T/A My Homecare,Services to People,Care Payments,02/05/2023,295.68
Social Care Services,AMB Care Ltd T/A My Homecare,Services to People,Care Payments,02/05/2023,295.68
Social Care Services,AMB Care Ltd T/A My Homecare,Services to People,Care Payments,02/05/2023,295.68
Social Care Services,AMB Care Ltd T/A My Homecare,Services to People,Care Payments,02/05/2023,119.18
Social Care Services,AMB Care Ltd T/A My Homecare,Services to People,Care Payments,02/05/2023,84.48
Social Care Services,AMB Care Ltd T/A My Homecare,Services to People,Care Payments,02/05/2023,59.59
Social Care Services,AMB Care Ltd T/A My Homecare,Services to People,Care Payments,02/05/2023,-38.16
Social Care Services,AMB Care Ltd T/A My Homecare,Services to People,Care Payments,02/05/2023,-38.16
Social Care Services,AMB Care Ltd T/A My Homecare,Services to People,Care Payments,02/05/2023,295.68
Social Care Services,AMB Care Ltd T/A My Homecare,Services to People,Care Payments,02/05/2023,591.36
Social Care Services,AMB Care Ltd T/A My Homecare,Services to People,Care Payments,02/05/2023,443.52
Social Care Services,AMB Care Ltd T/A My Homecare,Services to People,Care Payments,02/05/2023,369.6
Social Care Services,AMB Care Ltd T/A My Homecare,Services to People,Care Payments,02/05/2023,316.8
Social Care Services,AMB Care Ltd T/A My Homecare,Services to People,Care Payments,02/05/2023,168.96
Social Care Services,AMB Care Ltd T/A My Homecare,Services to People,Care Payments,02/05/2023,306.24
Social Care Services,New Hope Specialist Care Ltd,Services to People,Care Payments,02/05/2023,665.28
Social Care Services,New Hope Specialist Care Ltd,Services to People,Care Payments,02/05/2023,665.28
Social Care Services,New Hope Specialist Care Ltd,Services to People,Care Payments,02/05/2023,591.36
Social Care Services,New Hope Specialist Care Ltd,Services to People,Care Payments,02/05/2023,591.36
Social Care Services,New Hope Specialist Care Ltd,Services to People,Care Payments,02/05/2023,443.52
Social Care Services,New Hope Specialist Care Ltd,Services to People,Care Payments,02/05/2023,295.68
Social Care Services,New Hope Specialist Care Ltd,Services to People,Care Payments,02/05/2023,116.16
Social Care Services,New Hope Specialist Care Ltd,Services to People,Care Payments,02/05/2023,105.6
Social Care Services,New Hope Specialist Care Ltd,Services to People,Care Payments,02/05/2023,528
Social Care Services,New Hope Specialist Care Ltd,Services to People,Care Payments,02/05/2023,253.44
Social Care Services,New Hope Specialist Care Ltd,Services to People,Care Payments,02/05/2023,206.67
Social Care Services,New Hope Specialist Care Ltd,Services to People,Care Payments,02/05/2023,147.84
Social Care Services,New Hope Specialist Care Ltd,Services to People,Care Payments,02/05/2023,116.16
Social Care Services,New Hope Specialist Care Ltd,Services to People,Care Payments,02/05/2023,728.64
Social Care Services,New Hope Specialist Care Ltd,Services to People,Care Payments,02/05/2023,686.4
Social Care Services,New Hope Specialist Care Ltd,Services to People,Care Payments,02/05/2023,686.4
Social Care Services,New Hope Specialist Care Ltd,Services to People,Care Payments,02/05/2023,665.28
Social Care Services,New Hope Specialist Care Ltd,Services to People,Care Payments,02/05/2023,665.28
Social Care Services,New Hope Specialist Care Ltd,Services to People,Care Payments,02/05/2023,665.28
Social Care Services,New Hope Specialist Care Ltd,Services to People,Care Payments,02/05/2023,665.28
Social Care Services,New Hope Specialist Care Ltd,Services to People,Care Payments,02/05/2023,591.36
Social Care Services,New Hope Specialist Care Ltd,Services to People,Care Payments,02/05/2023,591.36
Social Care Services,New Hope Specialist Care Ltd,Services to People,Care Payments,02/05/2023,517.44
Social Care Services,New Hope Specialist Care Ltd,Services to People,Care Payments,02/05/2023,443.52
Social Care Services,New Hope Specialist Care Ltd,Services to People,Care Payments,02/05/2023,438.24
Social Care Services,New Hope Specialist Care Ltd,Services to People,Care Payments,02/05/2023,427.68
Social Care Services,New Hope Specialist Care Ltd,Services to People,Care Payments,02/05/2023,427.68
Social Care Services,New Hope Specialist Care Ltd,Services to People,Care Payments,02/05/2023,422.4
Social Care Services,New Hope Specialist Care Ltd,Services to People,Care Payments,02/05/2023,332.64
Social Care Services,New Hope Specialist Care Ltd,Services to People,Care Payments,02/05/2023,295.68
Social Care Services,New Hope Specialist Care Ltd,Services to People,Care Payments,02/05/2023,295.68
Social Care Services,New Hope Specialist Care Ltd,Services to People,Care Payments,02/05/2023,295.68
Social Care Services,New Hope Specialist Care Ltd,Services to People,Care Payments,02/05/2023,295.68
Social Care Services,New Hope Specialist Care Ltd,Services to People,Care Payments,02/05/2023,221.76
Social Care Services,New Hope Specialist Care Ltd,Services to People,Care Payments,02/05/2023,179.52
Social Care Services,New Hope Specialist Care Ltd,Services to People,Care Payments,02/05/2023,179.52
Social Care Services,New Hope Specialist Care Ltd,Services to People,Care Payments,02/05/2023,147.84
Social Care Services,New Hope Specialist Care Ltd,Services to People,Care Payments,02/05/2023,147.84
Social Care Services,New Hope Specialist Care Ltd,Services to People,Care Payments,02/05/2023,147.84
Social Care Services,New Hope Specialist Care Ltd,Services to People,Care Payments,02/05/2023,147.84
Social Care Services,New Hope Specialist Care Ltd,Services to People,Care Payments,02/05/2023,147.84
Social Care Services,New Hope Specialist Care Ltd,Services to People,Care Payments,02/05/2023,147.84
Social Care Services,New Hope Specialist Care Ltd,Services to People,Care Payments,02/05/2023,137.28
Social Care Services,New Hope Specialist Care Ltd,Services to People,Care Payments,02/05/2023,137.28
Social Care Services,New Hope Specialist Care Ltd,Services to People,Care Payments,02/05/2023,133.56
Social Care Services,New Hope Specialist Care Ltd,Services to People,Care Payments,02/05/2023,133.56
Social Care Services,New Hope Specialist Care Ltd,Services to People,Care Payments,02/05/2023,126.72
Social Care Services,New Hope Specialist Care Ltd,Services to People,Care Payments,02/05/2023,95.4
Social Care Services,New Hope Specialist Care Ltd,Services to People,Care Payments,02/05/2023,95.04
Social Care Services,New Hope Specialist Care Ltd,Services to People,Care Payments,02/05/2023,73.92
Social Care Services,New Hope Specialist Care Ltd,Services to People,Care Payments,02/05/2023,73.92
Social Care Services,New Hope Specialist Care Ltd,Services to People,Care Payments,02/05/2023,47.7
Social Care Services,New Hope Specialist Care Ltd,Services to People,Care Payments,02/05/2023,42.24
Social Care Services,New Hope Specialist Care Ltd,Services to People,Care Payments,02/05/2023,21.12
Social Care Services,New Hope Specialist Care Ltd,Services to People,Care Payments,02/05/2023,19.08
Social Care Services,New Hope Specialist Care Ltd,Services to People,Care Payments,02/05/2023,-9.54
Social Care Services,New Hope Specialist Care Ltd,Services to People,Care Payments,02/05/2023,-19.08
Social Care Services,New Hope Specialist Care Ltd,Services to People,Care Payments,02/05/2023,-47.7
Social Care Services,New Hope Specialist Care Ltd,Services to People,Care Payments,02/05/2023,-73.92
Social Care Services,New Hope Specialist Care Ltd,Services to People,Care Payments,02/05/2023,-128.79
Social Care Services,New Hope Specialist Care Ltd,Services to People,Care Payments,02/05/2023,-133.56
Social Care Services,New Hope Specialist Care Ltd,Services to People,Care Payments,02/05/2023,-200.34
Social Care Services,New Hope Specialist Care Ltd,Services to People,Care Payments,02/05/2023,654.72
Social Care Services,New Hope Specialist Care Ltd,Services to People,Care Payments,02/05/2023,422.4
Social Care Services,New Hope Specialist Care Ltd,Services to People,Care Payments,02/05/2023,316.8
Social Care Services,New Hope Specialist Care Ltd,Services to People,Care Payments,02/05/2023,316.8
Social Care Services,New Hope Specialist Care Ltd,Services to People,Care Payments,02/05/2023,295.68
Social Care Services,New Hope Specialist Care Ltd,Services to People,Care Payments,02/05/2023,221.76
Social Care Services,New Hope Specialist Care Ltd,Services to People,Care Payments,02/05/2023,190.08
Social Care Services,New Hope Specialist Care Ltd,Services to People,Care Payments,02/05/2023,190.08
Social Care Services,New Hope Specialist Care Ltd,Services to People,Care Payments,02/05/2023,168.96
Social Care Services,New Hope Specialist Care Ltd,Services to People,Care Payments,02/05/2023,147.84
Social Care Services,New Hope Specialist Care Ltd,Services to People,Care Payments,02/05/2023,147.84
Social Care Services,New Hope Specialist Care Ltd,Services to People,Care Payments,02/05/2023,147.84
Social Care Services,New Hope Specialist Care Ltd,Services to People,Care Payments,02/05/2023,147.84
Social Care Services,New Hope Specialist Care Ltd,Services to People,Care Payments,02/05/2023,126.72
Social Care Services,New Hope Specialist Care Ltd,Services to People,Care Payments,02/05/2023,126.72
Social Care Services,New Hope Specialist Care Ltd,Services to People,Care Payments,02/05/2023,739.2
Social Care Services,New Hope Specialist Care Ltd,Services to People,Care Payments,02/05/2023,739.2
Social Care Services,New Hope Specialist Care Ltd,Services to People,Care Payments,02/05/2023,665.28
Social Care Services,New Hope Specialist Care Ltd,Services to People,Care Payments,02/05/2023,591.36
Social Care Services,New Hope Specialist Care Ltd,Services to People,Care Payments,02/05/2023,591.36
Social Care Services,New Hope Specialist Care Ltd,Services to People,Care Payments,02/05/2023,464.64
Social Care Services,New Hope Specialist Care Ltd,Services to People,Care Payments,02/05/2023,443.52
Social Care Services,New Hope Specialist Care Ltd,Services to People,Care Payments,02/05/2023,443.52
Social Care Services,New Hope Specialist Care Ltd,Services to People,Care Payments,02/05/2023,443.52
Social Care Services,New Hope Specialist Care Ltd,Services to People,Care Payments,02/05/2023,443.52
Social Care Services,New Hope Specialist Care Ltd,Services to People,Care Payments,02/05/2023,411.84
Social Care Services,New Hope Specialist Care Ltd,Services to People,Care Payments,02/05/2023,401.28
Social Care Services,New Hope Specialist Care Ltd,Services to People,Care Payments,02/05/2023,359.04
Social Care Services,New Hope Specialist Care Ltd,Services to People,Care Payments,02/05/2023,295.68
Social Care Services,New Hope Specialist Care Ltd,Services to People,Care Payments,02/05/2023,295.68
Social Care Services,New Hope Specialist Care Ltd,Services to People,Care Payments,02/05/2023,295.68
Social Care Services,New Hope Specialist Care Ltd,Services to People,Care Payments,02/05/2023,295.68
Social Care Services,New Hope Specialist Care Ltd,Services to People,Care Payments,02/05/2023,295.68
Social Care Services,New Hope Specialist Care Ltd,Services to People,Care Payments,02/05/2023,295.68
Social Care Services,New Hope Specialist Care Ltd,Services to People,Care Payments,02/05/2023,253.44
Social Care Services,New Hope Specialist Care Ltd,Services to People,Care Payments,02/05/2023,253.44
Social Care Services,New Hope Specialist Care Ltd,Services to People,Care Payments,02/05/2023,253.44
Social Care Services,New Hope Specialist Care Ltd,Services to People,Care Payments,02/05/2023,190.08
Social Care Services,New Hope Specialist Care Ltd,Services to People,Care Payments,02/05/2023,147.84
Social Care Services,New Hope Specialist Care Ltd,Services to People,Care Payments,02/05/2023,147.84
Social Care Services,New Hope Specialist Care Ltd,Services to People,Care Payments,02/05/2023,142.56
Social Care Services,New Hope Specialist Care Ltd,Services to People,Care Payments,02/05/2023,126.72
Social Care Services,New Hope Specialist Care Ltd,Services to People,Care Payments,02/05/2023,84.48
Social Care Services,New Hope Specialist Care Ltd,Services to People,Care Payments,02/05/2023,63.36
Social Care Services,New Hope Specialist Care Ltd,Services to People,Care Payments,02/05/2023,63.36
Social Care Services,New Hope Specialist Care Ltd,Services to People,Care Payments,02/05/2023,63.36
Social Care Services,New Hope Specialist Care Ltd,Services to People,Care Payments,02/05/2023,42.24
Social Care Services,New Hope Specialist Care Ltd,Services to People,Care Payments,02/05/2023,42.24
Social Care Services,New Hope Specialist Care Ltd,Services to People,Care Payments,02/05/2023,31.68
Social Care Services,New Hope Specialist Care Ltd,Services to People,Care Payments,02/05/2023,31.68
Social Care Services,New Hope Specialist Care Ltd,Services to People,Care Payments,02/05/2023,10.56
Social Care Services,New Hope Specialist Care Ltd,Services to People,Care Payments,02/05/2023,-57.24
Social Care Services,New Hope Specialist Care Ltd,Services to People,Care Payments,02/05/2023,749.76
Social Care Services,New Hope Specialist Care Ltd,Services to People,Care Payments,02/05/2023,665.28
Social Care Services,New Hope Specialist Care Ltd,Services to People,Care Payments,02/05/2023,665.28
Social Care Services,New Hope Specialist Care Ltd,Services to People,Care Payments,02/05/2023,665.28
Social Care Services,New Hope Specialist Care Ltd,Services to People,Care Payments,02/05/2023,591.36
Social Care Services,New Hope Specialist Care Ltd,Services to People,Care Payments,02/05/2023,591.36
Social Care Services,New Hope Specialist Care Ltd,Services to People,Care Payments,02/05/2023,591.36
Social Care Services,New Hope Specialist Care Ltd,Services to People,Care Payments,02/05/2023,580.8
Social Care Services,New Hope Specialist Care Ltd,Services to People,Care Payments,02/05/2023,517.44
Social Care Services,New Hope Specialist Care Ltd,Services to People,Care Payments,02/05/2023,443.52
Social Care Services,New Hope Specialist Care Ltd,Services to People,Care Payments,02/05/2023,390.72
Social Care Services,New Hope Specialist Care Ltd,Services to People,Care Payments,02/05/2023,316.8
Social Care Services,New Hope Specialist Care Ltd,Services to People,Care Payments,02/05/2023,295.68
Social Care Services,New Hope Specialist Care Ltd,Services to People,Care Payments,02/05/2023,295.68
Social Care Services,New Hope Specialist Care Ltd,Services to People,Care Payments,02/05/2023,274.56
Social Care Services,New Hope Specialist Care Ltd,Services to People,Care Payments,02/05/2023,221.76
Social Care Services,New Hope Specialist Care Ltd,Services to People,Care Payments,02/05/2023,221.76
Social Care Services,New Hope Specialist Care Ltd,Services to People,Care Payments,02/05/2023,190.08
Social Care Services,New Hope Specialist Care Ltd,Services to People,Care Payments,02/05/2023,174.24
Social Care Services,New Hope Specialist Care Ltd,Services to People,Care Payments,02/05/2023,168.96
Social Care Services,New Hope Specialist Care Ltd,Services to People,Care Payments,02/05/2023,168.96
Social Care Services,New Hope Specialist Care Ltd,Services to People,Care Payments,02/05/2023,168.96
Social Care Services,New Hope Specialist Care Ltd,Services to People,Care Payments,02/05/2023,168.96
Social Care Services,New Hope Specialist Care Ltd,Services to People,Care Payments,02/05/2023,158.4
Social Care Services,New Hope Specialist Care Ltd,Services to People,Care Payments,02/05/2023,157.41
Social Care Services,New Hope Specialist Care Ltd,Services to People,Care Payments,02/05/2023,110.88
Social Care Services,New Hope Specialist Care Ltd,Services to People,Care Payments,02/05/2023,95.04
Social Care Services,New Hope Specialist Care Ltd,Services to People,Care Payments,02/05/2023,95.04
Social Care Services,New Hope Specialist Care Ltd,Services to People,Care Payments,02/05/2023,71.55
Social Care Services,New Hope Specialist Care Ltd,Services to People,Care Payments,02/05/2023,63.36
Social Care Services,New Hope Specialist Care Ltd,Services to People,Care Payments,02/05/2023,28.62
Social Care Services,New Hope Specialist Care Ltd,Services to People,Care Payments,02/05/2023,-28.62
Social Care Services,New Hope Specialist Care Ltd,Services to People,Care Payments,02/05/2023,-71.55
Social Care Services,New Hope Specialist Care Ltd,Services to People,Care Payments,02/05/2023,-100.17
Social Care Services,New Hope Specialist Care Ltd,Services to People,Care Payments,02/05/2023,-110.88
Social Care Services,New Hope Specialist Care Ltd,Services to People,Care Payments,02/05/2023,908.16
Social Care Services,New Hope Specialist Care Ltd,Services to People,Care Payments,02/05/2023,696.96
Social Care Services,New Hope Specialist Care Ltd,Services to People,Care Payments,02/05/2023,528
Social Care Services,New Hope Specialist Care Ltd,Services to People,Care Payments,02/05/2023,271.54
Social Care Services,New Hope Specialist Care Ltd,Services to People,Care Payments,02/05/2023,147.84
Social Care Services,New Hope Specialist Care Ltd,Services to People,Care Payments,02/05/2023,147.84
Social Care Services,New Hope Specialist Care Ltd,Services to People,Care Payments,02/05/2023,84.48
Social Care Services,New Hope Specialist Care Ltd,Services to People,Care Payments,02/05/2023,45.26
Social Care Services,New Hope Specialist Care Ltd,Services to People,Care Payments,02/05/2023,591.36
Social Care Services,New Hope Specialist Care Ltd,Services to People,Care Payments,02/05/2023,591.36
Social Care Services,New Hope Specialist Care Ltd,Services to People,Care Payments,02/05/2023,443.52
Social Care Services,New Hope Specialist Care Ltd,Services to People,Care Payments,02/05/2023,427.68
Social Care Services,New Hope Specialist Care Ltd,Services to People,Care Payments,02/05/2023,316.8
Social Care Services,New Hope Specialist Care Ltd,Services to People,Care Payments,02/05/2023,221.76
Social Care Services,New Hope Specialist Care Ltd,Services to People,Care Payments,02/05/2023,147.84
Social Care Services,New Hope Specialist Care Ltd,Services to People,Care Payments,02/05/2023,147.84
Social Care Services,New Hope Specialist Care Ltd,Services to People,Care Payments,02/05/2023,137.28
Social Care Services,New Hope Specialist Care Ltd,Services to People,Care Payments,02/05/2023,116.16
Social Care Services,New Hope Specialist Care Ltd,Services to People,Care Payments,02/05/2023,52.8
Social Care Services,New Hope Specialist Care Ltd,Services to People,Care Payments,02/05/2023,73.92
Social Care Services,New Hope Specialist Care Ltd,Services to People,Care Payments,02/05/2023,702.24
Social Care Services,New Hope Specialist Care Ltd,Services to People,Care Payments,02/05/2023,168.96
Social Care Services,New Hope Specialist Care Ltd,Services to People,Care Payments,02/05/2023,147.84
Social Care Services,New Hope Specialist Care Ltd,Services to People,Care Payments,02/05/2023,10.56
Social Care Services,New Hope Specialist Care Ltd,Services to People,Care Payments,02/05/2023,10.56
Social Care Services,Safe Hands Care & Support Services,Services to People,Care Payments,02/05/2023,168.96
Social Care Services,Safe Hands Care & Support Services,Services to People,Care Payments,02/05/2023,35.12
Social Care Services,Safe Hands Care & Support Services,Services to People,Care Payments,02/05/2023,1108.8
Social Care Services,Safe Hands Care & Support Services,Services to People,Care Payments,02/05/2023,1108.8
Social Care Services,Safe Hands Care & Support Services,Services to People,Care Payments,02/05/2023,517.44
Social Care Services,Safe Hands Care & Support Services,Services to People,Care Payments,02/05/2023,491.68
Social Care Services,Safe Hands Care & Support Services,Services to People,Care Payments,02/05/2023,327.36
Social Care Services,Safe Hands Care & Support Services,Services to People,Care Payments,02/05/2023,316.8
Social Care Services,Safe Hands Care & Support Services,Services to People,Care Payments,02/05/2023,316.8
Social Care Services,Safe Hands Care & Support Services,Services to People,Care Payments,02/05/2023,295.68
Social Care Services,Safe Hands Care & Support Services,Services to People,Care Payments,02/05/2023,211.2
Social Care Services,Safe Hands Care & Support Services,Services to People,Care Payments,02/05/2023,200.34
Social Care Services,Safe Hands Care & Support Services,Services to People,Care Payments,02/05/2023,168.96
Social Care Services,Safe Hands Care & Support Services,Services to People,Care Payments,02/05/2023,71.55
Social Care Services,Safe Hands Care & Support Services,Services to People,Care Payments,02/05/2023,42.24
Social Care Services,Safe Hands Care & Support Services,Services to People,Care Payments,02/05/2023,40
Social Care Services,Safe Hands Care & Support Services,Services to People,Care Payments,02/05/2023,28.62
Social Care Services,Safe Hands Care & Support Services,Services to People,Care Payments,02/05/2023,-57.24
Social Care Services,Safe Hands Care & Support Services,Services to People,Care Payments,02/05/2023,-143.1
Social Care Services,Safe Hands Care & Support Services,Services to People,Care Payments,02/05/2023,-221.76
Social Care Services,Safe Hands Care & Support Services,Services to People,Care Payments,02/05/2023,-286.2
Social Care Services,Safe Hands Care & Support Services,Services to People,Care Payments,02/05/2023,-286.2
Social Care Services,Safe Hands Care & Support Services,Services to People,Care Payments,02/05/2023,-400.68
Social Care Services,Safe Hands Care & Support Services,Services to People,Care Payments,02/05/2023,960.96
Social Care Services,Safe Hands Care & Support Services,Services to People,Care Payments,02/05/2023,887.04
Social Care Services,Safe Hands Care & Support Services,Services to People,Care Payments,02/05/2023,887.04
Social Care Services,Safe Hands Care & Support Services,Services to People,Care Payments,02/05/2023,665.28
Social Care Services,Safe Hands Care & Support Services,Services to People,Care Payments,02/05/2023,665.28
Social Care Services,Safe Hands Care & Support Services,Services to People,Care Payments,02/05/2023,665.28
Social Care Services,Safe Hands Care & Support Services,Services to People,Care Payments,02/05/2023,601.92
Social Care Services,Safe Hands Care & Support Services,Services to People,Care Payments,02/05/2023,591.36
Social Care Services,Safe Hands Care & Support Services,Services to People,Care Payments,02/05/2023,475.2
Social Care Services,Safe Hands Care & Support Services,Services to People,Care Payments,02/05/2023,443.52
Social Care Services,Safe Hands Care & Support Services,Services to People,Care Payments,02/05/2023,295.68
Social Care Services,Safe Hands Care & Support Services,Services to People,Care Payments,02/05/2023,295.68
Social Care Services,Safe Hands Care & Support Services,Services to People,Care Payments,02/05/2023,295.68
Social Care Services,Safe Hands Care & Support Services,Services to People,Care Payments,02/05/2023,253.44
Social Care Services,Safe Hands Care & Support Services,Services to People,Care Payments,02/05/2023,253.44
Social Care Services,Safe Hands Care & Support Services,Services to People,Care Payments,02/05/2023,232.32
Social Care Services,Safe Hands Care & Support Services,Services to People,Care Payments,02/05/2023,190.08
Social Care Services,Safe Hands Care & Support Services,Services to People,Care Payments,02/05/2023,147.84
Social Care Services,Safe Hands Care & Support Services,Services to People,Care Payments,02/05/2023,147.84
Social Care Services,Safe Hands Care & Support Services,Services to People,Care Payments,02/05/2023,147.84
Social Care Services,Safe Hands Care & Support Services,Services to People,Care Payments,02/05/2023,133.56
Social Care Services,Safe Hands Care & Support Services,Services to People,Care Payments,02/05/2023,133.56
Social Care Services,Safe Hands Care & Support Services,Services to People,Care Payments,02/05/2023,126.72
Social Care Services,Safe Hands Care & Support Services,Services to People,Care Payments,02/05/2023,73.92
Social Care Services,Safe Hands Care & Support Services,Services to People,Care Payments,02/05/2023,47.7
Social Care Services,Safe Hands Care & Support Services,Services to People,Care Payments,02/05/2023,47.7
Social Care Services,Safe Hands Care & Support Services,Services to People,Care Payments,02/05/2023,19.08
Social Care Services,Safe Hands Care & Support Services,Services to People,Care Payments,02/05/2023,19.08
Social Care Services,Safe Hands Care & Support Services,Services to People,Care Payments,02/05/2023,-76.32
Social Care Services,Safe Hands Care & Support Services,Services to People,Care Payments,02/05/2023,-190.8
Social Care Services,Safe Hands Care & Support Services,Services to People,Care Payments,02/05/2023,-267.12
Social Care Services,Safe Hands Care & Support Services,Services to People,Care Payments,02/05/2023,-295.68
Social Care Services,Safe Hands Care & Support Services,Services to People,Care Payments,02/05/2023,295.68
Social Care Services,Kare Plus Altrincham and Trafford,Services to People,Care Payments,02/05/2023,522.72
Social Care Services,Kare Plus Altrincham and Trafford,Services to People,Care Payments,02/05/2023,380.16
Social Care Services,Kare Plus Altrincham and Trafford,Services to People,Care Payments,02/05/2023,380.16
Social Care Services,Kare Plus Altrincham and Trafford,Services to People,Care Payments,02/05/2023,285.12
Social Care Services,Kare Plus Altrincham and Trafford,Services to People,Care Payments,02/05/2023,285.12
Social Care Services,Kare Plus Altrincham and Trafford,Services to People,Care Payments,02/05/2023,95.04
Social Care Services,Kare Plus Altrincham and Trafford,Services to People,Care Payments,02/05/2023,570.24
Social Care Services,Kare Plus Altrincham and Trafford,Services to People,Care Payments,02/05/2023,570.24
Social Care Services,Kare Plus Altrincham and Trafford,Services to People,Care Payments,02/05/2023,427.68
Social Care Services,Kare Plus Altrincham and Trafford,Services to People,Care Payments,02/05/2023,427.68
Social Care Services,Kare Plus Altrincham and Trafford,Services to People,Care Payments,02/05/2023,380.16
Social Care Services,Kare Plus Altrincham and Trafford,Services to People,Care Payments,02/05/2023,380.16
Social Care Services,Kare Plus Altrincham and Trafford,Services to People,Care Payments,02/05/2023,380.16
Social Care Services,Kare Plus Altrincham and Trafford,Services to People,Care Payments,02/05/2023,332.64
Social Care Services,Kare Plus Altrincham and Trafford,Services to People,Care Payments,02/05/2023,332.64
Social Care Services,Kare Plus Altrincham and Trafford,Services to People,Care Payments,02/05/2023,237.6
Social Care Services,Kare Plus Altrincham and Trafford,Services to People,Care Payments,02/05/2023,237.6
Social Care Services,Kare Plus Altrincham and Trafford,Services to People,Care Payments,02/05/2023,190.08
Social Care Services,Kare Plus Altrincham and Trafford,Services to People,Care Payments,02/05/2023,149.91
Social Care Services,Kare Plus Altrincham and Trafford,Services to People,Care Payments,02/05/2023,149.91
Social Care Services,Kare Plus Altrincham and Trafford,Services to People,Care Payments,02/05/2023,107.67
Social Care Services,Kare Plus Altrincham and Trafford,Services to People,Care Payments,02/05/2023,107.67
Social Care Services,Kare Plus Altrincham and Trafford,Services to People,Care Payments,02/05/2023,855.36
Social Care Services,Kare Plus Altrincham and Trafford,Services to People,Care Payments,02/05/2023,855.36
Social Care Services,Kare Plus Altrincham and Trafford,Services to People,Care Payments,02/05/2023,427.68
Social Care Services,Kare Plus Altrincham and Trafford,Services to People,Care Payments,02/05/2023,427.68
Social Care Services,Kare Plus Altrincham and Trafford,Services to People,Care Payments,02/05/2023,63.36
Social Care Services,Kare Plus Altrincham and Trafford,Services to People,Care Payments,02/05/2023,427.68
Social Care Services,Kare Plus Altrincham and Trafford,Services to People,Care Payments,02/05/2023,427.68
Social Care Services,Kare Plus Altrincham and Trafford,Services to People,Care Payments,02/05/2023,285.12
Social Care Services,Kare Plus Altrincham and Trafford,Services to People,Care Payments,02/05/2023,95.04
Social Care Services,Kare Plus Altrincham and Trafford,Services to People,Care Payments,02/05/2023,380.16
Social Care Services,Kare Plus Altrincham and Trafford,Services to People,Care Payments,02/05/2023,380.16
Social Care Services,Kare Plus Altrincham and Trafford,Services to People,Care Payments,02/05/2023,184.8
Social Care Services,Kare Plus Altrincham and Trafford,Services to People,Care Payments,02/05/2023,184.8
Social Care Services,Kare Plus Altrincham and Trafford,Services to People,Care Payments,02/05/2023,475.2
Social Care Services,Kare Plus Altrincham and Trafford,Services to People,Care Payments,02/05/2023,475.2
Social Care Services,Kare Plus Altrincham and Trafford,Services to People,Care Payments,02/05/2023,73.92
Social Care Services,Wellesley House,Services to People,Care Payments,02/05/2023,1541.54
Social Care Services,Wellesley House,Services to People,Care Payments,02/05/2023,1127.29
Social Care Services,Wellesley House,Services to People,Care Payments,02/05/2023,320.32
Social Care Services,Wellesley House,Services to People,Care Payments,02/05/2023,234.24
Social Care Services,Wellesley House,Services to People,Care Payments,02/05/2023,187.87
Social Care Services,Wellesley House,Services to People,Care Payments,02/05/2023,39.04
Social Care Services,Wellesley House,Services to People,Care Payments,02/05/2023,296
Social Care Services,Wellesley House,Services to People,Care Payments,02/05/2023,222
Social Care Services,Broadstone Care,Services to People,Care Payments,02/05/2023,591.36
Social Care Services,Broadstone Care,Services to People,Care Payments,02/05/2023,591.36
Social Care Services,Broadstone Care,Services to People,Care Payments,02/05/2023,295.68
Social Care Services,Broadstone Care,Services to People,Care Payments,02/05/2023,295.68
Social Care Services,Broadstone Care,Services to People,Care Payments,02/05/2023,295.68
Social Care Services,Broadstone Care,Services to People,Care Payments,02/05/2023,274.56
Social Care Services,Broadstone Care,Services to People,Care Payments,02/05/2023,84.48
Social Care Services,Broadstone Care,Services to People,Care Payments,02/05/2023,42.24
Social Care Services,Broadstone Care,Services to People,Care Payments,02/05/2023,707.52
Social Care Services,Broadstone Care,Services to People,Care Payments,02/05/2023,591.36
Social Care Services,Broadstone Care,Services to People,Care Payments,02/05/2023,591.36
Social Care Services,Broadstone Care,Services to People,Care Payments,02/05/2023,591.36
Social Care Services,Broadstone Care,Services to People,Care Payments,02/05/2023,443.52
Social Care Services,Broadstone Care,Services to People,Care Payments,02/05/2023,443.52
Social Care Services,Broadstone Care,Services to People,Care Payments,02/05/2023,369.6
Social Care Services,Broadstone Care,Services to People,Care Payments,02/05/2023,316.8
Social Care Services,Broadstone Care,Services to People,Care Payments,02/05/2023,295.68
Social Care Services,Broadstone Care,Services to People,Care Payments,02/05/2023,295.68
Social Care Services,Broadstone Care,Services to People,Care Payments,02/05/2023,295.68
Social Care Services,Broadstone Care,Services to People,Care Payments,02/05/2023,295.68
Social Care Services,Broadstone Care,Services to People,Care Payments,02/05/2023,295.68
Social Care Services,Broadstone Care,Services to People,Care Payments,02/05/2023,147.84
Social Care Services,Broadstone Care,Services to People,Care Payments,02/05/2023,591.36
Social Care Services,Broadstone Care,Services to People,Care Payments,02/05/2023,591.36
Social Care Services,Broadstone Care,Services to People,Care Payments,02/05/2023,591.36
Social Care Services,Broadstone Care,Services to People,Care Payments,02/05/2023,591.36
Social Care Services,Broadstone Care,Services to People,Care Payments,02/05/2023,295.68
Social Care Services,Broadstone Care,Services to People,Care Payments,02/05/2023,295.68
Social Care Services,Broadstone Care,Services to People,Care Payments,02/05/2023,792
Social Care Services,Broadstone Care,Services to People,Care Payments,02/05/2023,792
Social Care Services,Broadstone Care,Services to People,Care Payments,02/05/2023,454.08
Social Care Services,Broadstone Care,Services to People,Care Payments,02/05/2023,1129.92
Social Care Services,Broadstone Care,Services to People,Care Payments,02/05/2023,295.68
Social Care Services,Westwood Homecare Ltd (NW),Services to People,Care Payments,02/05/2023,739.2
Social Care Services,Westwood Homecare Ltd (NW),Services to People,Care Payments,02/05/2023,739.2
Social Care Services,Westwood Homecare Ltd (NW),Services to People,Care Payments,02/05/2023,591.36
Social Care Services,Westwood Homecare Ltd (NW),Services to People,Care Payments,02/05/2023,591.36
Social Care Services,Westwood Homecare Ltd (NW),Services to People,Care Payments,02/05/2023,591.36
Social Care Services,Westwood Homecare Ltd (NW),Services to People,Care Payments,02/05/2023,591.36
Social Care Services,Westwood Homecare Ltd (NW),Services to People,Care Payments,02/05/2023,591.36
Social Care Services,Westwood Homecare Ltd (NW),Services to People,Care Payments,02/05/2023,591.36
Social Care Services,Westwood Homecare Ltd (NW),Services to People,Care Payments,02/05/2023,369.6
Social Care Services,Westwood Homecare Ltd (NW),Services to People,Care Payments,02/05/2023,369.6
Social Care Services,Westwood Homecare Ltd (NW),Services to People,Care Payments,02/05/2023,295.68
Social Care Services,Westwood Homecare Ltd (NW),Services to People,Care Payments,02/05/2023,295.68
Social Care Services,Westwood Homecare Ltd (NW),Services to People,Care Payments,02/05/2023,295.68
Social Care Services,Westwood Homecare Ltd (NW),Services to People,Care Payments,02/05/2023,295.68
Social Care Services,Westwood Homecare Ltd (NW),Services to People,Care Payments,02/05/2023,295.68
Social Care Services,Westwood Homecare Ltd (NW),Services to People,Care Payments,02/05/2023,295.68
Social Care Services,Westwood Homecare Ltd (NW),Services to People,Care Payments,02/05/2023,295.68
Social Care Services,Westwood Homecare Ltd (NW),Services to People,Care Payments,02/05/2023,295.68
Social Care Services,Westwood Homecare Ltd (NW),Services to People,Care Payments,02/05/2023,245
Social Care Services,Westwood Homecare Ltd (NW),Services to People,Care Payments,02/05/2023,245
Social Care Services,Westwood Homecare Ltd (NW),Services to People,Care Payments,02/05/2023,245
Social Care Services,Westwood Homecare Ltd (NW),Services to People,Care Payments,02/05/2023,245
Social Care Services,Westwood Homecare Ltd (NW),Services to People,Care Payments,02/05/2023,-15
Social Care Services,Westwood Homecare Ltd (NW),Services to People,Care Payments,02/05/2023,-35
Social Care Services,Westwood Homecare Ltd (NW),Services to People,Care Payments,02/05/2023,-37.5
Social Care Services,Westwood Homecare Ltd (NW),Services to People,Care Payments,02/05/2023,-66.78
Social Care Services,Westwood Homecare Ltd (NW),Services to People,Care Payments,02/05/2023,-66.78
Social Care Services,Westwood Homecare Ltd (NW),Services to People,Care Payments,02/05/2023,-87.5
Social Care Services,Westwood Homecare Ltd (NW),Services to People,Care Payments,02/05/2023,-267.12
Social Care Services,Westwood Homecare Ltd (NW),Services to People,Care Payments,02/05/2023,-267.12
Social Care Services,Westwood Homecare Ltd (NW),Services to People,Care Payments,02/05/2023,-267.12
Social Care Services,Westwood Homecare Ltd (NW),Services to People,Care Payments,02/05/2023,-267.12
Social Care Services,Westwood Homecare Ltd (NW),Services to People,Care Payments,02/05/2023,-267.12
Social Care Services,Westwood Homecare Ltd (NW),Services to People,Care Payments,02/05/2023,-267.12
Social Care Services,Westwood Homecare Ltd (NW),Services to People,Care Payments,02/05/2023,-333.9
